{"text_format":"1","workbook":"xlsx","n_sheets":22,"sheets":["AER CF","AER NRs","AER lookups","AER ETL","Instructions","Contents","Business & other details","2.1 Expenditure summary","2.2 Repex","2.3(a) Augex","2.3(b) Augex","2.5 Connections","2.6 Non-network","2.7 Vegetation management","2.8 Maintenance","2.9 Emergency Response","2.11 Labour","2.12 Input tables","4.2 Metering","4.3 Fee-based services","4.4 Quoted services","Amendments"],"not_rendered":{"charts":0,"images":5,"macros":1,"external_links":1,"defined_names":588,"comments":1,"pivot_tables":0},"unopened":[],"bounds":{"document_bytes":16777216,"sheet_cells":100000,"rows_first":2000,"rows_last":500,"rows_between":2000,"halvings":0,"cell_chars":16384,"cell_head_chars":4096},"cells_cut":0,"cells_raw":0,"read":"whole","date_system":"1900"}

{"sheet":"AER CF","index":0,"n_rows":127,"n_cols":24,"rows_kept":127,"cut":false,"hidden":true,"merged":[[3,1,3,21]]}
[null,"AER CONDITIONAL FORMATTING"]
[]
[]
[null,"CONDITIONAL FORMATTING MAP"]
[null,null,null,null,null,"=INDEX(dms_CF_3.6.1, MATCH(dms_TradingName,dms_CF_TradingName))=\"Y\"","=INDEX(dms_CF_3.6.5, MATCH(dms_TradingName,dms_CF_TradingName))=\"Y\"","=INDEX(dms_CF_3.6.6, MATCH(dms_TradingName,dms_CF_TradingName))=\"Y\"","=INDEX(dms_CF_3.6.7.1, MATCH(dms_TradingName,dms_CF_TradingName))=\"Y\"","=INDEX(dms_CF_3.6.7.2, MATCH(dms_TradingName,dms_CF_TradingName))=\"Y\"","=INDEX(dms_CF_3.6.7.3, MATCH(dms_TradingName,dms_CF_TradingName))=\"Y\"","=INDEX(dms_CF_3.6.7.4, MATCH(dms_TradingName,dms_CF_TradingName))=\"Y\"","=INDEX(dms_CF_3.6.8, MATCH(dms_TradingName,dms_CF_TradingName))=\"Y\"","=INDEX(dms_CF_4.1, MATCH(dms_TradingName,dms_CF_TradingName))=\"Y\"","=INDEX(dms_CF_6.6.1, MATCH(dms_TradingName,dms_CF_TradingName))=\"Y\"","=INDEX(dms_CF_6.8, MATCH(dms_TradingName,dms_CF_TradingName))=\"Y\"","=INDEX(dms_CF_7.12, MATCH(dms_TradingName,dms_CF_TradingName))=\"Y\"","=INDEX(dms_CF_8.1_A, MATCH(dms_TradingName,dms_CF_TradingName))=\"Y\"","=INDEX(dms_CF_8.1_B, MATCH(dms_TradingName,dms_CF_TradingName))=\"Y\"","=INDEX(dms_CF_8.1_Neg, MATCH(dms_TradingName,dms_CF_TradingName))=\"Y\"","=INDEX(dms_CF_4.4.1_Neg, MATCH(dms_TradingName,dms_CF_TradingName))=\"Y\""]
[null,"dms_CF_TradingName","JurisdictionList","Sector","Segment","dms_CF_3.6.1","dms_CF_3.6.5","dms_CF_3.6.6","dms_CF_3.6.7.1","dms_CF_3.6.7.2","dms_CF_3.6.7.3","dms_CF_3.6.7.4","dms_CF_3.6.8","dms_CF_4.1","dms_CF_6.6.1","dms_CF_6.8","dms_CF_7.12","dms_CF_8.1_A","dms_CF_8.1_B","dms_CF_8.1_Neg","dms_CF_4.4.1","dms_CF_MAIFI_flag","Spare1","Spare2"]
[null,"ActewAGL Distribution","ACT","Electricity","Distribution",null,"Y",null,"Y","Y","N","Y","N","Y","N","Y","Y","N","Y","Y","N","N","N","N"]
[null,"Ausgrid","NSW","Electricity","Distribution",null,"Y",null,"N","N","N","Y","N","Y","N","Y","Y","N","Y","Y","N","N","N","N"]
[null,"AusNet (D)","Vic","Electricity","Distribution",null,"N",null,"N","N","N","N","N","Y","N","Y","N","N","N","Y","N","N","N","N"]
[null,"AusNet (T)","Vic","Electricity","Transmission",null,"N",null,"N","N","N","N","N","Y","N","Y","N","N","N","Y","N","N","N","N"]
[null,"CitiPower","Vic","Electricity","Distribution",null,"N",null,"N","N","N","N","N","Y","N","Y","N","N","N","Y","N","N","N","N"]
[null,"Directlink","Qld","Electricity","Transmission",null,"N",null,"N","N","N","N","N","Y","N","Y","N","N","Y","Y","N","N","N","N"]
[null,"ElectraNet","SA","Electricity","Transmission",null,"N",null,"N","N","N","N","N","Y","N","Y","N","N","Y","Y","N","N","N","N"]
[null,"Endeavour Energy","NSW","Electricity","Distribution",null,"Y",null,"N","N","N","Y","N","Y","N","Y","Y","N","Y","Y","Y","N","N","N"]
[null,"Energex","Qld","Electricity","Distribution",null,"Y",null,"N","N","N","N","N","Y","N","Y","Y","N","Y","Y","Y","N","N","N"]
[null,"Ergon Energy","Qld","Electricity","Distribution",null,"Y",null,"N","N","N","N","N","Y","N","Y","Y","N","Y","Y","N","N","N","N"]
[null,"Essential Energy","NSW","Electricity","Distribution",null,"Y",null,"N","N","N","Y","N","Y","N","Y","Y","N","Y","Y","N","N","N","N"]
[null,"Jemena Electricity","Vic","Electricity","Distribution",null,"N",null,"N","N","N","N","N","Y","N","Y","N","N","N","Y","N","N","N","N"]
[null,"Murraylink","SA","Electricity","Transmission",null,"N",null,"N","N","N","N","N","Y","N","Y","N","N","Y","Y","N","N","N","N"]
[null,"Power and Water","NT","Electricity","Distribution",null,"N",null,"N","Y","N","N","Y","Y","Y","Y","Y","N","Y","Y","N","N","N","N"]
[null,"Powercor Australia","Vic","Electricity","Distribution",null,"N",null,"N","N","N","N","N","Y","N","Y","N","N","N","Y","N","N","N","N"]
[null,"Powerlink","Qld","Electricity","Transmission",null,"N",null,"N","N","N","N","N","Y","N","Y","N","N","Y","Y","N","N","N","N"]
[null,"SA Power Networks","SA","Electricity","Distribution",null,"Y",null,"N","N","N","N","N","Y","N","Y","Y","Y","Y","N","N","N","N","N"]
[null,"TasNetworks (D)","Tas","Electricity","Distribution",null,"Y",null,"N","N","N","N","N","Y","N","Y","Y","N","Y","Y","N","N","N","N"]
[null,"TasNetworks (T)","Tas","Electricity","Transmission",null,"N",null,"N","N","N","N","N","Y","N","Y","N","N","Y","Y","N","N","N","N"]
[null,"TransGrid","NSW","Electricity","Transmission",null,"N",null,"N","N","N","N","N","Y","N","Y","N","N","Y","Y","N","N","N","N"]
[null,"United Energy","Vic","Electricity","Distribution",null,"N",null,"N","N","N","N","N","Y","N","Y","N","N","N","Y","N","N","N","N"]
[]
[]
[null,"Confidential"]
[null,"Amended"]
[]
[null,"Worksheet 6.2 STPIS reliability"]
[null,"Formula",null,null,null,"Applied to:"]
[]
[null,"=INDEX(dms_CBD_flag,MATCH(dms_TradingName,dms_TradingName_List))=\"NO\"",null,null,null,"$D$11,$D$17,$D$23,$D$33,$D$39,$D$45,$D$55,$D$61,$D$67,$D$77,$D$83,$D$89"]
[null,"=INDEX(dms_Urban_flag,MATCH(dms_TradingName,dms_TradingName_List))=\"NO\"",null,null,null,"$D$12,$D$18,$D$24,$D$56,$D$62,$D$78,$D$68,$D$84"]
[null,"=INDEX(dms_ShortRural_flag,MATCH(dms_TradingName,dms_TradingName_List))=\"NO\"",null,null,null,"$D$13,$D$19,$D$25,$D$57,$D$63,$D$69,$D$79,$D$85"]
[null,"=INDEX(dms_LongRural_flag,MATCH(dms_TradingName,dms_TradingName_List))=\"NO\"",null,null,null,"$D$14,$D$20,$D$26,$D$58,$D$64,$D$65,$D$70,$D$71,$D$80,$D$86"]
[null,"=INDEX(dms_FeederType_5_flag,MATCH(dms_TradingName,dms_TradingName_List))=\"NO\"",null,null,null,"$D$87,$D$81,$D$71,$D$65,$D$59,$D$49,$D$43,$D$37,$D$21,$D$15"]
[null,"=dms_MAIFI_Flag=\"No\"",null,null,null,"$D$55:$D$72"]
[]
[]
[null,"Business & other details"]
[null,"=(INDEX(dms_Model_Span,MATCH(dms_Model,dms_Model_List))>1)"]
[null,"=(INDEX(dms_Model_Span,MATCH(dms_Model,dms_Model_List))=1)"]
[]
[]
[null,"STYLES IN USE","dms_H"]
[null,null,"dms_1"]
[null,null,"dms_2"]
[null,null,"dms_3"]
[null,null,"dms_4"]
[null,null,"dms_5"]
[null,null,"dms_NUM"]
[null,null,"dms_NUM%"]
[null,null,"dms_Row_Locked"]
[null,null,"dms_Row1"]
[null,null,"dms_Row2"]
[null,null,"dms_T1"]
[null,null,"dms_T2"]
[null,null,"dms_BH"]
[null,null,"dms_BY1"]
[null,null,"dms_BY2"]
[null,null,"dms_GH"]
[null,null,"dms_GY1"]
[null,null,"dms_GY2"]
[]
[]
[]
[]
[]
[]
[]
[]
[]
[]
[]
[]
[]
[]
[]
[]
[]
[]
[]
[]
[]
[]
[]
[]
[]
[]
[]
[]
[]
[]
[]
[]
[]
[]
[]
[]
[]
[]
[]
[]
[]
[]
[]
[]
[]
[]
[]
[]
[]
[]
[]
[]
[]
[]
[]
[]
[]
[]
[null,null,"0"]
[null,null,{"$f":"IFERROR(IF(dms_Model=\"ARR\",(MAX(0,dms_0608_LastRow-dms_0608_OffsetRows)),\"not an ARR\"),\"0\")","v":"not an ARR"}]

{"sheet":"AER NRs","index":1,"n_rows":226,"n_cols":15,"rows_kept":226,"cut":false,"hidden":true,"merged":[[197,1,198,1],[206,1,211,1],[150,1,156,1],[158,1,172,1],[174,1,175,1],[177,1,182,1],[189,1,190,1],[193,1,194,1],[133,1,148,1],[4,1,26,1],[30,1,53,1],[30,11,30,12],[31,11,33,11],[34,11,38,11],[42,11,43,11],[63,1,76,1],[82,1,95,1],[98,1,105,1],[108,1,113,1],[116,1,130,1]]}
[null,"AER NAMED RANGES"]
[]
[null,"DROP DOWN SELECTORS USED IN WORKBOOKS"]
[]
[null,"COVER SHEET","dms_DataQuality_List","dms_Confid_status_List"]
[null,null,"-- select --","-- select --"]
[null,null,"Actual","Public"]
[null,null,"Estimate","Confidential"]
[null,null,"Consolidated"]
[]
[]
[null,null,"For all files either AER or business needs to be able to specify the type of submission","For PTRM & RFM templates we must provide a choice in case they change their form of control - otherwise it is drawn from the business specific lookup table above."]
[null,null,"dms_SourceList","dms_FormControl_Choices"]
[null,null,"-- select --","Revenue cap"]
[null,null,"After appeal","Revenue yield"]
[null,null,"Draft decision","Weighted average price cap"]
[null,null,"Final decision"]
[null,null,"PTRM update 1"]
[null,null,"PTRM update 2"]
[null,null,"PTRM update 3"]
[null,null,"PTRM update 4"]
[null,null,"PTRM update 5"]
[null,null,"PTRM update 6"]
[null,null,"PTRM update 7"]
[null,null,"Regulatory proposal"]
[null,null,"Reporting"]
[null,null,"Revised regulatory proposal"]
[]
[]
[null,null,null,null,null,null,null,null,null,null,null,"This is used to create an image to insert on 6.3 STPIS sheet - not for dropdown lists."]
[null,"CA & RESET RINS \nDNSP","dms_DNSP_020301_SubstationType","dms_DNSP_020301_ProjectType","dms_DNSP_020301_ProjectTrigger","dms_DNSP_020302_ProjectType","dms_DNSP_020302_ProjectTrigger","dms_STPIS_Exclusion_List","dms_Reason_Interruption","dms_Reason_Interruption_Detailed",null,"Reason for interruption"]
[null,null,"Subtransmission substation","New substation establishment","Demand growth","New line on new route - single circuit","Demand growth","Weather","Animal","Animal impact",null,"Animal","Animal impact"]
[null,null,"Zone substation","Substation upgrade - capacity"," Voltage issues","New line on new route - dual circuit"," Voltage issues","Equipment failure","Asset failure","Animal nesting/burrowing, etc and other",null,null,"Animal nesting/burrowing, etc and other"]
[null,null,"Switching station","Substation upgrade - voltage"," Reactive power issue","New line on new route - other"," Reactive power issue","Operational error","Other","Other",null,null,"Other"]
[null,null,"Other","Other"," Fault level issues","Line rebuild over existing route - single circuit"," Fault level issues","Vegetation","Overloads","LV",null,"Asset failure","LV"]
[null,null,null,null," Safety","Line rebuild over existing route - dual circuit"," Net market benefit","Animals","Planned","Distribution substation",null,null,"Distribution substation"]
[null,null,null,null," Environment","Reconductor - Single circuit"," Safety","Third party impacts","Network business","HV",null,null,"HV"]
[null,null,null,null," Other","Reconductor - Dual circuit"," Environment","Transmission failure","Third party","Zone substation",null,null,"Zone substation"]
[null,null,null,null,null,"Reconductor - Other"," Other","Load shedding","Unknown","Subtransmission",null,null,"Subtransmission"]
[null,null,null,null,null,"Line upgrade - raising/retensoring",null,"Inter-distributor connection failure","Vegetation","insert description of 'other'",null,"Other","insert description of 'other'"]
[null,null,null,null,null,"Line upgrade - voltage upgrade",null,"Other","Weather","Network error",null,"Overloads"]
[null,null,null,null,null,"Line upgrade - capacity",null,null,"2 - STPIS Exclusion (3.3)(a)","Switching and protection error",null,"Planned"]
[null,null,null,null,null,"String spare circuit",null,null,"3 - STPIS Exclusion (3.3)(a)","Fire",null,"Network business","Network error"]
[null,null,null,null,null,"Other",null,null,"4 - STPIS Exclusion (3.3)(a)","Other",null,null,"Switching and protection error"]
[null,null,null,null,null,null,null,null,"5 - STPIS Exclusion (3.3)(a)","Dig-in",null,"Third party","Fire"]
[null,null,null,null,null,null,null,null,"6 - STPIS Exclusion (3.3)(a)","Unauthorised access",null,null,"Other"]
[null,null,null,null,null,null,null,null,"7 - STPIS Exclusion (3.3)(a)","Vehicle impact",null,null,"Dig-in"]
[null,null,null,null,null,null,null,null,null,"Unknown",null,null,"Unauthorised access"]
[null,null,null,null,null,null,null,null,null,"Blow-in/Fall-in - NSP responsibility",null,null,"Vehicle impact"]
[null,null,null,null,null,null,null,null,null,"Grow-in - NSP responsibility",null,"Unknown","Unknown"]
[null,null,null,null,null,null,null,null,null,"Blow-in/Fall-in - Other responsible party",null,"Vegetation","Blow-in/Fall-in - NSP responsibility"]
[null,null,null,null,null,null,null,null,null,"Grow-in - Other responsible party",null,null,"Grow-in - NSP responsibility"]
[null,null,null,null,null,null,null,null,null,null,null,null,"Blow-in/Fall-in - Other responsible party"]
[null,null,null,null,null,null,null,null,null,null,null,null,"Grow-in - Other responsible party"]
[null,null,null,null,null,null,null,null,null,null,null,"Weather"]
[null,null,null,null,null,null,null,null,null,null,null,"2 - STPIS Exclusion (3.3)(a)"]
[null,null,null,null,null,null,null,null,null,null,null,"3 - STPIS Exclusion (3.3)(a)"]
[null,null,null,null,null,null,null,null,null,null,null,"4 - STPIS Exclusion (3.3)(a)"]
[null,null,null,null,null,null,null,null,null,null,null,"5 - STPIS Exclusion (3.3)(a)"]
[null,null,null,null,null,null,null,null,null,null,null,"6 - STPIS Exclusion (3.3)(a)"]
[null,null,null,null,null,null,null,null,null,null,null,"7 - STPIS Exclusion (3.3)(a)"]
[]
[]
[null,"CA & RESET RINS \nTNSP ","dms_TNSP_0203_SubstationType","dms_TNSP_020301_ProjectType","dms_TNSP_020301_ProjectTrigger","dms_TNSP_020302_ProjectType","dms_TNSP_0203_ProjectTrigger"]
[null,null,"Terminal station","New substation establishment","Demand growth","New line on new route - single circuit","Demand growth"]
[null,null,"Switching station","Capacity upgrade"," Voltage issues","New line on new route - dual circuit"," Voltage issues"]
[null,null,"Transmission substation","Voltage upgrade"," Reactive power issue","New line on new route - other"," Reactive power issue"]
[null,null,"Other","Other"," Fault level issues","Line rebuild over existing route - single circuit"," Fault level issues"]
[null,null,null,null,"Net market benefit","Line rebuild over existing route - dual circuit"," Net market benefit"]
[null,null,null,null," Safety","Reconductor - Single circuit"," Safety"]
[null,null,null,null," Environment","Reconductor - Dual circuit"," Environment"]
[null,null,null,null," Other","Reconductor - Other"," Other"]
[null,null,null,null,null,"Line upgrade - raising/retensoring"]
[null,null,null,null,null,"Line upgrade - voltage upgrade"]
[null,null,null,null,null,"Line upgrade - capacity"]
[null,null,null,null,null,"String spare circuit"]
[null,null,null,null,null,"Other"]
[]
[]
[]
[null,"NAMED RANGES USED IN ETL PROCESS"]
[]
[null,"CA & RESET RINS \nDNSP ONLY","dms_020303_01_UOM","dms_020501_01_UOM","dms_020501_02_UOM","dms_020501_03_UOM","dms_020501_04_UOM","dms_020701_01_UOM","dms_020701_02_UOM","dms_020701_01_Rows","dms_040102_01_UOM","dms_040102_04_UOM"]
[null,null,"Circuit line length in km","0's","0's","0's","0's","km","km","Route line length within zone","0's","days"]
[null,null,"Circuit line length in km","0's","0's","0's","0's","0's","0's","Number of maintenance spans","0's","0's"]
[null,null,"Circuit line length in km","MVA added","MVA added","MVA added","MVA added","km","km","Total length of maintenance spans","0's","$0s"]
[null,null,"Circuit line length in km","0's","0's","0's","0's","km","km","Length of vegetation corridors","$0s","0's"]
[null,null,"Number","total spend $0s","total spend $0s","total spend $0s","total spend $0s","0's","0's","Average number of trees per maintenance span"]
[null,null,"Number","net circuit km added","net circuit km added","net circuit km added","net circuit km added","years","years","Average frequency of cutting cycle"]
[null,null,"Number","total spend $0s","total spend $0s","total spend $0s","total spend $0s"]
[null,null,null,"net circuit km added","net circuit km added","net circuit km added","net circuit km added"]
[null,null,null,"total spend $0s","total spend $0s","total spend $0s","total spend $0s"]
[null,null,null,"0's",null,"$0s"]
[null,null,null,"0's"]
[null,null,null,"0's"]
[null,null,null,"$0s"]
[]
[]
[null,"CA & RESET RINS \nTNSP ONLY","dms_020701_01_UOM"]
[null,null,"km"]
[null,null,"0's"]
[null,null,"km"]
[null,null,"0's"]
[null,null,"km"]
[null,null,"metres"]
[null,null,"years"]
[]
[]
[null,"CA & RESET RINS \nDNSP & TNSP","dms_020603_01_UOM"]
[null,null,"0's"]
[null,null,"0's"]
[null,null,"0's"]
[null,null,"0's"]
[null,null,"(per cent)"]
[]
[]
[null,"EB & RESET RINS \nDNSP ONLY","dms_030601_01_UOM","dms_030601_02_UOM","dms_030701_01_UOM","dms_030702_01_UOM","dms_030703_01_UOM"]
[null,null,"minutes/customer","minutes/customer","Customer / km","%","km"]
[null,null,"minutes/customer","minutes/customer","MWh/customer","Number of spans"]
[null,null,"interruptions/customer","interruptions/customer","kVA / customer","Number of spans"]
[null,null,"interruptions/customer","interruptions/customer",null,"Number of spans"]
[null,null,null,null,null,"Number of spans"]
[null,null,null,null,null,"Years"]
[null,null,null,null,null,"Years"]
[null,null,null,null,null,"Trees"]
[null,null,null,null,null,"Trees"]
[null,null,null,null,null,"Defects"]
[null,null,null,null,null,"Defects"]
[null,null,null,null,null,"Spans"]
[null,null,null,null,null,"km"]
[null,null,null,null,null,"Spans"]
[]
[null,null,"WHEN INSERTING COVER SHEET INTO A TNSP FILE - APPLY THESE NAMED RANGES"]
[null,"EB & RESET RINS \nTNSP ONLY","dms_030601_01_UOM",null,"dms_030701_01_UOM","dms_030702_01_UOM"]
[null,null,"%",null,"Number of spans","km"]
[null,null,"number",null,"Years","%"]
[null,null,"number",null,"Trees","km"]
[null,null,"%",null,"Defects","number"]
[null,null,"number",null,"Number of spans"]
[null,null,"number",null,"km"]
[null,null,"%",null,"km"]
[null,null,"number",null,"Number of spans"]
[null,null,"number"]
[null,null,"%"]
[null,null,"number"]
[null,null,"%"]
[null,null,"number"]
[null,null,"%"]
[null,null,"number"]
[]
[null,"EB & RESET RINS \nDNSP & TNSP","dms_EB_RAB_PIT"]
[null,null,"Beginning of year"]
[null,null,"End of year"]
[null,null,"End of year"]
[null,null,"End of year"]
[null,null,"End of year"]
[null,null,"End of year"]
[]
[null,"ARR \nDNSP ONLY","dms_030605_UOM","dms_03060703_UOM","Spare","Spare"]
[null,null,"number","number"]
[null,null,"number","number"]
[null,null,"number","number"]
[null,null,"number","number"]
[null,null,"number","(per cent)"]
[null,null,"number"]
[null,null,"number"]
[null,null,"number"]
[null,null,"number"]
[null,null,"number"]
[null,null,"number"]
[null,null,"number"]
[null,null,"(per cent)"]
[null,null,"(per cent)",""]
[]
[null,"RFM","dms_Beg","dms_Mid","dms_End"]
[null,null,"Beginning of year","Mid year","End of Year"]
[]
[null,"PTRM","dms_PTRM_RAB_PIT","dms_PTRM_TAB_PIT","DMS_Xfactor"]
[null,null,"Beginning of year","Beginning of year","x factors"]
[null,null,"End of year","End of year"]
[null,null,"End of year","End of year"]
[null,null,"End of year","End of year"]
[null,null,"End of year"]
[]
[]
[null,"STPIS & MIC NAMED RANGES "]
[]
[null,"These \"row descriptions\" are the column headings in the various templates but become row descriptions in the ETL process"]
[]
[null,"Table 6.3 sustained interruptions - row descriptions","dms_060301_CustNo_Affected_Row","dms_060301_Avg_Duration_Sustained_Int_Row","dms_060301_Effect_unplanned_SAIDI_Row","dms_060301_Effect_unplanned_SAIFI_Row"]
[null,null,"Number of customers affected by the interruption","Average duration of sustained customer interruption","Effect on unplanned SAIDI","Effect on unplanned SAIFI"]
[]
[]
[null,"Table 6.1 telephone answering - row descriptions and start date","dms_060101_Rows","dms_060102_Rows","dms_060101_StartDateTxt"]
[null,null,"Total number of calls \n(after removing excluded events)","Number of calls answered within 30 seconds \n(after excluding excluded events) ",{"$f":"dms_060701_StartDateTxt","v":"1-Jan-2009"}]
[]
[]
[null,"Table 6.8.1 - row descriptions","dms_060801_01_Rows","dms_060801_02_Rows","dms_060801_03_Rows","dms_060801_04_Rows"]
[null,null,"Number of interruptions","Duration of interruptions","Total unplanned minutes off supply","Effect on unplanned MAIFI"]
[]
[]
[null,"Table 7.9.4 - market impact component - row descriptions","dms_070904_01_Rows","without exclusions","with exclusions"]
[]
[]
[null,"These headings (Lists) are determined from the INDEX/MATCH function on the NSP selected on the Business & other details sheet"]
[]
[null,"Table 6.7.1 - daily performance data - unplanned - MAIFI  -- row descriptions and header named range values","dms_060701_Feeder_Header_Lvl4",{"$f":"INDEX(dms_FeederName_1,MATCH(dms_TradingName,dms_TradingName_List))","v":"CBD"},{"$f":"INDEX(dms_FeederName_1,MATCH(dms_TradingName,dms_TradingName_List))","v":"CBD"},{"$f":"INDEX(dms_FeederName_2,MATCH(dms_TradingName,dms_TradingName_List))","v":"Urban"},{"$f":"INDEX(dms_FeederName_2,MATCH(dms_TradingName,dms_TradingName_List))","v":"Urban"},{"$f":"INDEX(dms_FeederName_3,MATCH(dms_TradingName,dms_TradingName_List))","v":"Short rural"},{"$f":"INDEX(dms_FeederName_3,MATCH(dms_TradingName,dms_TradingName_List))","v":"Short rural"},{"$f":"INDEX(dms_FeederName_4,MATCH(dms_TradingName,dms_TradingName_List))","v":"Long rural"},{"$f":"INDEX(dms_FeederName_4,MATCH(dms_TradingName,dms_TradingName_List))","v":"Long rural"},{"$f":"IF((INDEX(dms_FeederName_5,MATCH(dms_TradingName,dms_TradingName_List))=0),\"Network\",(INDEX(dms_FeederName_5,MATCH(dms_TradingName,dms_TradingName_List))))","v":"Network"},{"$f":"IF((INDEX(dms_FeederName_5,MATCH(dms_TradingName,dms_TradingName_List))=0),\"Network\",(INDEX(dms_FeederName_5,MATCH(dms_TradingName,dms_TradingName_List))))","v":"Network"},"Network","Network"]
[]
[null,null,"dms_060701_Rows","All events","After removing excluded events","All events","After removing excluded events","All events","After removing excluded events","All events","After removing excluded events","All events","After removing excluded events","All events","After removing excluded events"]
[null,null,null,"the number of column headings changes from 10 to 12 depending on the number of feeder categories for the NSP"]
[]
[null,null,"dms_0603_FeederList",{"$f":"INDEX(dms_FeederName_1,MATCH(dms_TradingName,dms_TradingName_List))","v":"CBD"},{"$f":"INDEX(dms_FeederName_2,MATCH(dms_TradingName,dms_TradingName_List))","v":"Urban"},{"$f":"INDEX(dms_FeederName_3,MATCH(dms_TradingName,dms_TradingName_List))","v":"Short rural"},{"$f":"INDEX(dms_FeederName_4,MATCH(dms_TradingName,dms_TradingName_List))","v":"Long rural"}]
[]
[]
[null,"Use these to add to specific worksheets in existing files","Use these to add to specific worksheets in existing files"]
[]
[]
[null,"ARRs 6.7 STPIS daily performance","dms_060101_Values","dms_060102_Values","dms_060701_Values"]
[null,null,"dms_LeapYear"]
[]
[]
[null,"ARR's  6.8 STPIS exclusions","dms_060801_Event_Date","dms_060801_OutageID","dms_060801_FeederID","dms_060801_FeederClass","dms_060801_CauseID","dms_060801_01_Values","dms_060801_02_Values","dms_060801_03_Values","dms_060801_Excl_Cat","dms_060801_04_Values"]
[null,null,"dms_060801_StartCell"]
[]
[]
[null,"CA 6.3 sustained interruptions","dms_060301_Event_Date","dms_060301_Event_Time","dms_060301_AssetID","dms_060301_FeederClass","dms_060301_Reason","dms_060301_DetailedReason","dms_060301_CustNo_Affected_Values","dms_060301_Avg_Duration_Sustained_Int_Values","dms_060301_Effect_unplanned_SAIDI_Values","dms_060301_Effect_unplanned_SAIFI_Values","dms_060301_MED"]

{"sheet":"AER lookups","index":2,"n_rows":88,"n_cols":38,"rows_kept":88,"cut":false,"hidden":true,"merged":[[6,25,6,36],[22,1,22,4],[8,30,10,30],[8,29,9,29],[8,25,9,28],[8,31,10,35]]}
[null,"AER LOOKUP TABLES"]
[]
[null,"Data in these columns used for data validation and database purposes."]
[null,"Date last modified:","2017-01-16","added (Albury and Victora) for AGN"]
[null,null,"2016-10-17","updated TransGrid's correct legal name, corrected TasNetworks (T) to June financial year"]
[null,null,"2017-02-01","inserted Power and Water, added NRs (dms_FeederCat_1 and dms_FeederCat_2)"]
[null,null,"2017-03-03","inserted AEMO as a business",null,null,null,null,null,null,null,null,null,null,null,null,null,null,null,null,null,null,null,null,null,"FOR ELECTRICITY BUSINESSES ONLY"]
[null,null,"2018-03-28","major changes to accommodate STPIS"]
[null,null,"Template Version",5,null,null,null,null,null,null,null,null,null,null,null,null,null,null,null,null,null,null,null,null,null,"Feeder Types",null,null,null,"TasNetworks (D)","MAIFI flag","Feeder Names"]
[]
[null,null,null,null,null,null,null,null,null,null,null,null,null,null,null,null,null,null,null,null,null,null,null,null,null,"CBD","Urban","Short rural","long rural","EXTRA"]
[null,"dms_TradingName_List","dms_TradingNameFull_List","dms_ABN_List","dms_JurisdictionList","dms_Sector_List","dms_Segment_List","dms_FormControl_List","dms_RPT_List","dms_RPTMonth_List","dms_CRCPlength_List","dms_FRCPlength_List","dms_PRCPlength_List","dms_663_List","dms_DeterminationRef_List","dms_Addr1_List","dms_Addr2_List","dms_Suburb_List","dms_State_List","dms_PostCode_List","dms_PAddr1_List","dms_PAddr2_List","dms_PSuburb_List","dms_PState_List","dms_PPostCode_List","dms_CBD_flag","dms_Urban_flag","dms_ShortRural_flag","dms_LongRural_flag","dms_FeederType_5_flag","dms_MAIFI_flag_List","dms_FeederName_1","dms_FeederName_2","dms_FeederName_3","dms_FeederName_4","dms_FeederName_5","dms_Public_Lighting_List","Names"]
[null,"AusNet (D)","AusNet Electricity Services Pty Ltd",91064651118,"Vic","Electricity","Distribution","Revenue cap","Calendar","December",5,5,5,2,"2016-20 Distribution Determination","Level 32","2 Southbank Boulevard","SOUTHBANK","Vic",3006,"Locked Bag 14051",null,"MELBOURNE CITY MAIL CENTRE","Vic",8001,"NO","YES","YES","YES","NO","YES","CBD","Urban","Short rural","Long rural",null,"YES","AusNet (D)"]
[null,"Australian Distribution Co. (Vic)","Australian Distribution Co. (Victoria)",11222333444,"Vic","Electricity","Distribution","Revenue cap","Calendar","December",5,5,5,2,"distribution determination","123 Straight Street",null,"MELBOURNE","Vic",3000,"PO Box 123",null,"MELBOURNE","Vic",3000,"NO","NO","NO","NO","NO","YES","CBD","Urban","Short rural","Long rural",null,"YES","Australian Distribution Co. (Vic)"]
[null,"CitiPower","CitiPower",76064651056,"Vic","Electricity","Distribution","Revenue cap","Calendar","December",5,5,5,2,"2016-20 Distribution Determination","40 Market Street",null,"MELBOURNE","Vic",3000,"Locked Bag 14090",null,"MELBOURNE","Vic",8001,"YES","YES","NO","NO","NO","YES","CBD","Urban","Short rural","Long rural",null,"YES","CitiPower"]
[null,"Jemena Electricity","Jemena Electricity",82064651083,"Vic","Electricity","Distribution","Revenue cap","Calendar","December",5,5,5,2,"2016-20 Distribution Determination","Level 16","567 Collins Street","MELBOURNE","Vic",3000,"PO Box 16182",null,"MELBOURNE","Vic",8001,"NO","YES","YES","NO","NO","YES","CBD","Urban","Short rural","Long rural",null,"YES","Jemena Electricity"]
[null,"Powercor Australia","Powercor Australia",89064651109,"Vic","Electricity","Distribution","Revenue cap","Calendar","December",5,5,5,2,"2016-20 Distribution Determination","40 Market Street",null,"MELBOURNE","Vic",3000,"Locked bag 14090",null,"MELBOURNE","Vic",8001,"NO","NO","YES","YES","NO","YES","CBD","Urban","Short rural","Long rural",null,"YES","Powercor Australia"]
[null,"United Energy","United Energy",70064651029,"Vic","Electricity","Distribution","Revenue cap","Calendar","December",5,5,5,2,"2016-20 Distribution Determination","43-45 Centreway",null,"MOUNT WAVERLEY","Vic",3149,"PO Box 449",null,"MOUNT WAVERLEY","Vic",3170,"NO","NO","YES","NO","NO","YES","CBD","Urban","Short rural","Long rural",null,"YES","United Energy"]
[]
[]
[]
[]
[null,"The Reg Year Ending (dms_RYE) must be set to the last year of the regulatory period. For forecast data is is usually (FRCP_y5) for actual it is a single year (CRY). For historical actual data the RYE will need to be set manually in the business details sheet by setting the dms_Multiyear_flag to 1 and putting the correct value in 'dms_Specified_FinalYear. See cells C67:C68"]
[null,"dms_Model_List ","dms_Model_Name_Format1","dms_Worksheet_List","dms_Model_Span_List"]
[null,"ARR","Annual Reporting",{"$f":"IF(dms_MultiYear_ResponseFlag=\"yes\",\"RECAST HISTORICAL ANNUAL REPORTING\",\"ANNUAL REPORTING\")","v":"RECAST HISTORICAL ANNUAL REPORTING"},1]
[null,"CA","Category Analysis",{"$f":"IF(dms_MultiYear_ResponseFlag=\"yes\",\"RECAST HISTORICAL CATEGORY ANALYSIS - CALENDAR YEARS\",\"CATEGORY ANALYSIS\")","v":"RECAST HISTORICAL CATEGORY ANALYSIS - CALENDAR YEARS"},1]
[null,"CESS","Capitlal Expenditure","CAPITLAL EXPENDITURE SHARING SCHEMING",5]
[null,"CPI","CPI","CPI",5]
[null,"EB","Economic Benchmarking",{"$f":"IF(dms_MultiYear_ResponseFlag=\"yes\",\"RECAST HISTORICAL ECONOMIC BENCHMARKING\",\"ECONOMIC BENCHMARKING\")","v":"RECAST HISTORICAL ECONOMIC BENCHMARKING"},1]
[null,"Pricing","Pricing Proposal","PRICING PROPOSAL",5]
[null,"PTRM","Post Tax Revenue Model","POST TAX REVENUE MODEL",5]
[null,"Reset","Regulatory Reporting (Reset)","REGULATORY REPORTING STATEMENT",5]
[null,"RFM","Roll Forward Model","ROLL FORWARD MODEL",5]
[null,"WACC","Weighted Average Cost of Capital","WEIGHTED AVERAGE COST OF CAPITAL",1]
[]
[]
[]
[null,"Financial","Calendar",null,"PREVIOUS",null,"CURRENT",null,"FORTHCOMING"]
[null,"1987-88","1988","PRCP_y1",{"$f":"INDEX(INDIRECT(dms_RPT),dms_PRCP_start_row)","v":2011},"CRCP_y1",{"$f":"INDEX(INDIRECT(dms_RPT),dms_CRCP_start_row)","v":2016},{"$f":"FRCP_y1","v":2021},{"$f":"INDEX(INDIRECT(dms_RPT),dms_FRCP_start_row)","v":2021}]
[null,"1988-89","1989","PRCP_y2",{"$f":"INDEX(INDIRECT(dms_RPT),dms_PRCP_start_row+1)","v":2012},"CRCP_y2",{"$f":"INDEX(INDIRECT(dms_RPT),dms_CRCP_start_row+1)","v":2017},"FRCP_y2",{"$f":"INDEX(INDIRECT(dms_RPT),dms_FRCP_start_row+1)","v":2022}]
[null,"1989-90","1990","PRCP_y3",{"$f":"INDEX(INDIRECT(dms_RPT),dms_PRCP_start_row+2)","v":2013},"CRCP_y3",{"$f":"INDEX(INDIRECT(dms_RPT),dms_CRCP_start_row+2)","v":2018},"FRCP_y3",{"$f":"INDEX(INDIRECT(dms_RPT),dms_FRCP_start_row+2)","v":2023}]
[null,"1990-91","1991","PRCP_y4",{"$f":"INDEX(INDIRECT(dms_RPT),dms_PRCP_start_row+3)","v":2014},"CRCP_y4",{"$f":"INDEX(INDIRECT(dms_RPT),dms_CRCP_start_row+3)","v":2019},"FRCP_y4",{"$f":"INDEX(INDIRECT(dms_RPT),dms_FRCP_start_row+3)","v":2024}]
[null,"1991-92","1992","PRCP_y5",{"$f":"INDEX(INDIRECT(dms_RPT),dms_PRCP_start_row+4)","v":2015},"CRCP_y5",{"$f":"INDEX(INDIRECT(dms_RPT),dms_CRCP_start_row+4)","v":2020},"FRCP_y5",{"$f":"INDEX(INDIRECT(dms_RPT),dms_FRCP_start_row+4)","v":2025}]
[null,"1992-93","1993","PRCP_y6",{"$f":"INDEX(INDIRECT(dms_RPT),dms_PRCP_start_row+5)","v":2016},"CRCP_y6",{"$f":"INDEX(INDIRECT(dms_RPT),dms_CRCP_start_row+5)","v":2021},"FRCP_y6",{"$f":"INDEX(INDIRECT(dms_RPT),dms_FRCP_start_row+5)","v":2026}]
[null,"1993-94","1994","PRCP_y7",{"$f":"INDEX(INDIRECT(dms_RPT),dms_PRCP_start_row+6)","v":2017},"CRCP_y7",{"$f":"INDEX(INDIRECT(dms_RPT),dms_CRCP_start_row+6)","v":2022},"FRCP_y7",{"$f":"INDEX(INDIRECT(dms_RPT),dms_FRCP_start_row+6)","v":2027}]
[null,"1994-95","1995","PRCP_y8",{"$f":"INDEX(INDIRECT(dms_RPT),dms_PRCP_start_row+7)","v":2018},"CRCP_y8",{"$f":"INDEX(INDIRECT(dms_RPT),dms_CRCP_start_row+7)","v":2023},"FRCP_y8",{"$f":"INDEX(INDIRECT(dms_RPT),dms_FRCP_start_row+7)","v":2028}]
[null,"1995-96","1996","PRCP_y9",{"$f":"INDEX(INDIRECT(dms_RPT),dms_PRCP_start_row+8)","v":2019},"CRCP_y9",{"$f":"INDEX(INDIRECT(dms_RPT),dms_CRCP_start_row+8)","v":2024},"FRCP_y9",{"$f":"INDEX(INDIRECT(dms_RPT),dms_FRCP_start_row+8)","v":2029}]
[null,"1996-97","1997","PRCP_y10",{"$f":"INDEX(INDIRECT(dms_RPT),dms_PRCP_start_row+9)","v":2020},"CRCP_y10",{"$f":"INDEX(INDIRECT(dms_RPT),dms_CRCP_start_row+9)","v":2025},"FRCP_y10",{"$f":"INDEX(INDIRECT(dms_RPT),dms_FRCP_start_row+9)","v":2030}]
[null,"1997-98","1998","PRCP_y11",{"$f":"INDEX(INDIRECT(dms_RPT),dms_PRCP_start_row+10)","v":2021},"CRCP_y11",{"$f":"INDEX(INDIRECT(dms_RPT),dms_CRCP_start_row+10)","v":2026},"FRCP_y11",{"$f":"INDEX(INDIRECT(dms_RPT),dms_FRCP_start_row+10)","v":2031}]
[null,"1998-99","1999","PRCP_y12",{"$f":"INDEX(INDIRECT(dms_RPT),dms_PRCP_start_row+11)","v":2022},"CRCP_y12",{"$f":"INDEX(INDIRECT(dms_RPT),dms_CRCP_start_row+11)","v":2027},"FRCP_y12",{"$f":"INDEX(INDIRECT(dms_RPT),dms_FRCP_start_row+11)","v":2032}]
[null,"1999-00","2000","PRCP_y13",{"$f":"INDEX(INDIRECT(dms_RPT),dms_PRCP_start_row+12)","v":2023},"CRCP_y13",{"$f":"INDEX(INDIRECT(dms_RPT),dms_CRCP_start_row+12)","v":2028},"FRCP_y13",{"$f":"INDEX(INDIRECT(dms_RPT),dms_FRCP_start_row+12)","v":2033}]
[null,"2000-01","2001","PRCP_y14",{"$f":"INDEX(INDIRECT(dms_RPT),dms_PRCP_start_row+13)","v":2024},"CRCP_y14",{"$f":"INDEX(INDIRECT(dms_RPT),dms_CRCP_start_row+13)","v":2029},"FRCP_y14",{"$f":"INDEX(INDIRECT(dms_RPT),dms_FRCP_start_row+13)","v":2034}]
[null,"2001-02","2002","PRCP_y15",{"$f":"INDEX(INDIRECT(dms_RPT),dms_PRCP_start_row+14)","v":2025},"CRCP_y15",{"$f":"INDEX(INDIRECT(dms_RPT),dms_CRCP_start_row+14)","v":2030},"FRCP_y15",{"$f":"INDEX(INDIRECT(dms_RPT),dms_FRCP_start_row+14)","v":2035}]
[null,"2002-03","2003","PRCP_y16",{"$f":"INDEX(INDIRECT(dms_RPT),dms_PRCP_start_row+15)","v":2026},"CRCP_y16",{"$f":"INDEX(INDIRECT(dms_RPT),dms_CRCP_start_row+15)","v":2031},"FRCP_y16",{"$f":"INDEX(INDIRECT(dms_RPT),dms_FRCP_start_row+15)","v":2036}]
[null,"2003-04","2004"]
[null,"2004-05","2005"]
[null,"2005-06","2006",null,"CRY - FRY"]
[null,"2006-07","2007","dms_y1",{"$f":"IFERROR(INDEX(INDIRECT(dms_RPT),dms_CRY_start_row),0)","v":"2009"}]
[null,"2007-08","2008","dms_y2",{"$f":"IFERROR(INDEX(INDIRECT(dms_RPT),dms_CRY_start_row+1),0)","v":2010}]
[null,"2008-09","2009","dms_y3",{"$f":"IFERROR(INDEX(INDIRECT(dms_RPT),dms_CRY_start_row+2),0)","v":2011}]
[null,"2009-10",2010,"dms_y4",{"$f":"IFERROR(INDEX(INDIRECT(dms_RPT),dms_CRY_start_row+3),0)","v":2012}]
[null,"2010-11",2011,"dms_y5",{"$f":"IFERROR(INDEX(INDIRECT(dms_RPT),dms_CRY_start_row+4),0)","v":2013}]
[null,"2011-12",2012,"dms_y6",{"$f":"IFERROR(INDEX(INDIRECT(dms_RPT),dms_CRY_start_row+5),0)","v":2014}]
[null,"2012-13",2013,"dms_y7",{"$f":"IFERROR(INDEX(INDIRECT(dms_RPT),dms_CRY_start_row+6),0)","v":2015}]
[null,"2013-14",2014,"dms_y8",{"$f":"IFERROR(INDEX(INDIRECT(dms_RPT),dms_CRY_start_row+7),0)","v":2016}]
[null,"2014-15",2015,"dms_y9",{"$f":"IFERROR(INDEX(INDIRECT(dms_RPT),dms_CRY_start_row+8),0)","v":2017}]
[null,"2015-16",2016,"dms_y10",{"$f":"IFERROR(INDEX(INDIRECT(dms_RPT),dms_CRY_start_row+9),0)","v":2018}]
[null,"2016-17",2017,"dms_y11",{"$f":"IFERROR(INDEX(INDIRECT(dms_RPT),dms_CRY_start_row+10),0)","v":2019}]
[null,"2017-18",2018,"dms_y12",{"$f":"IFERROR(INDEX(INDIRECT(dms_RPT),dms_CRY_start_row+11),0)","v":2020}]
[null,"2018-19",2019,"dms_y13",{"$f":"IFERROR(INDEX(INDIRECT(dms_RPT),dms_CRY_start_row+12),0)","v":2021}]
[null,"2019-20",2020,"dms_y14",{"$f":"IFERROR(INDEX(INDIRECT(dms_RPT),dms_CRY_start_row+13),0)","v":2022}]
[null,"2020-21",2021,"dms_y15",{"$f":"IFERROR(INDEX(INDIRECT(dms_RPT),dms_CRY_start_row+14),0)","v":2023}]
[null,"2021-22",2022,"dms_y16",{"$f":"IFERROR(INDEX(INDIRECT(dms_RPT),dms_CRY_start_row+15),0)","v":2024}]
[null,"2022-23",2023]
[null,"2023-24",2024]
[null,"2024-25",2025]
[null,"2025-26",2026]
[null,"2026-27",2027]
[null,"2027-28",2028]
[null,"2028-29",2029]
[null,"2029-30",2030]
[null,"2030-31",2031]
[null,"2031-32",2032]
[null,"2032-33",2033]
[null,"2033-34",2034]
[null,"2034-35",2035]
[null,"2035-36",2036]
[null,"2036-37","2037"]

{"sheet":"AER ETL","index":3,"n_rows":144,"n_cols":8,"rows_kept":144,"cut":false,"hidden":true,"merged":[[70,1,72,1],[10,0,14,0],[11,4,11,8],[13,2,13,4],[17,0,24,0],[25,0,30,0],[33,0,58,0]]}
[null,"AER ETL INFORMATION"]
[]
[null,"USES NAMED RANGES FLAG","yes","dms_Defined_Names_Used"]
[]
[null,"IF THIS IS AN ABC RIN - make sure the the named range CRY is applied and the named range dms_dollar_nom_UOM is applied"]
[null,"IF THIS IS A RESET RIN - make sure the named ranges CRY and dms_dollar_nom_UOM are NOT present in the workbook"]
[null,"FOR ABC RINS THAT SPAN MULTIPLE YEARS - make sure MultiYear Flag is set and final year entered as required"]
[]
[null,"Full trading name",{"$f":"INDEX(dms_TradingNameFull_List,MATCH(dms_TradingName,dms_TradingName_List))","v":"Powercor Australia"},null,"dms_TradingNameFull"]
["Selected here","Model / RIN","CA","dms_Model"]
["Read from Business & other details","Source",{"$f":"dms_Selected_Source","v":"Regulatory proposal"},"dms_Source"]
[null,"Data quality",{"$f":"dms_Selected_Quality","v":"Consolidated"},"dms_DQ_1"]
[null,"Data status",{"$f":"dms_Selected_Status","v":"Public"},"dms_DQ_2"]
[null,"Amendment reason",{"$f":"dms_Amendment_Text","v":"."},null,null,"dms_AmendmentReason"]
[null,"Submission date",{"$f":"dms_Typed_Submission_Date","v":"2020-01-31"},"dms_SubmissionDate"]
[]
["Redundant","EBSS - First application of scheme in forthcoming period?","No"]
["Pre-populated from lookup table","Data ingestion data quality","Consolidated","dms_DataQuality","=IF(dms_DQ_2=\"Confidential\",\"Consolidated\",\"Public\")"]
[null,"Sector",{"$f":"INDEX(dms_Sector_List,MATCH(dms_TradingName,dms_TradingName_List))","v":"Electricity"},"dms_Sector","=INDEX(dms_Sector_List,MATCH(dms_TradingName,dms_TradingName_List))"]
[null,"Segment",{"$f":"INDEX(dms_Segment_List,MATCH(dms_TradingName,dms_TradingName_List))","v":"Distribution"},"dms_Segment","=INDEX(dms_Segment_List,MATCH(dms_TradingName,dms_TradingName_List))"]
[null,"Regulatory Year Ending",{"$f":"dms_RYE_result","v":"2018"},"dms_RYE","=IF(dms_MultiYear_Flag=1,LEFT(dms_Specified_FinalYear,2)&RIGHT(dms_Specified_FinalYear,2),INDEX(dms_RYE_Formula_Result,MATCH(dms_Model,dms_Model_List)))"]
[null,"Reporting Period Type",{"$f":"INDEX(dms_RPT_List,MATCH(dms_TradingName,dms_TradingName_List))","v":"Calendar"},"dms_RPT","=INDEX(dms_RPT_List,MATCH(dms_TradingName,dms_TradingName_List))"]
[null,"EB/CA Unit of Measure for Monetary Values","$0s","dms_dollar_nom_UOM","If the cover sheet is attached to an ABC RIN apply the NAMED RANGE to the cell"]
[null,"Security Classification","Public","dms_Classification","Always Public"]
[null,"Jurisdiction",{"$f":"INDEX(dms_JurisdictionList,MATCH(dms_TradingName,dms_TradingName_List))","v":"Vic"},"dms_Jurisdiction","=INDEX(dms_JurisdictionList,MATCH(dms_TradingName,dms_TradingName_List))"]
["Relevant for PTRM, RFMs and Reset RINS","$ REAL REFERENCES"]
[null,"Does the named range CRY exist in this file? ",{"$f":"IFERROR(CRY,\"NO\")","v":"2009"}]
[null,"CRY-1  (last full calendar year before CRY)",{"$f":"IFERROR(IF(dms_RPT=\"calendar\",CRY-1,LEFT(CRY,4)),\"CRY not present\")","v":2008},"dms_Cal_Year_B4_CRY","'=IF(dms_RPT=\"financial\",VALUE(LEFT(dms_SingleYear_FinalYear_Result,4)),VALUE(LEFT(dms_SingleYear_FinalYear_Result,4)-1))"]
[null,"Dollar $ real month",{"$f":"INDEX(dms_RPTMonth_List,MATCH(dms_TradingName,dms_TradingName_List))","v":"December"},"dms_RPTMonth","=INDEX(dms_RPTMonth_List,MATCH(dms_TradingName,dms_TradingName_List))"]
[null,"Dollar $ real  (the last month before the FRCP_y1)",{"$f":"IF(dms_SingleYearModel=\"yes\",CONCATENATE(dms_RPTMonth)&\" \"&VALUE((LEFT(CRY,2))&RIGHT(CRY,2)),CONCATENATE(dms_RPTMonth)&\" \"&dms_DollarReal_year)","v":"December 2009"},"dms_DollarReal","=IF(SUM(dms_SingleYear_Model)>0,CONCATENATE(dms_RPTMonth)&\" \"&VALUE((LEFT(CRY,2))&RIGHT(CRY,2)),CONCATENATE(dms_RPTMonth)&\" \"&VALUE((LEFT(dms_RYE,2)&RIGHT(dms_RYE,2))))"]
[null,"Dollar $ real previous year (PRCP_y5)",{"$f":"IF(dms_SingleYearModel=\"yes\",CONCATENATE(dms_RPTMonth)&\" \"&VALUE((LEFT(CRY,2))&RIGHT(CRY,2)),CONCATENATE(dms_RPTMonth)&\" \"&dms_Previous_DollarReal_year)","v":"December 2009"},"dms_DollarReal_Prev","=IF(SUM(dms_SingleYear_Model)>0,CONCATENATE(dms_RPTMonth)&\" \"&VALUE(((LEFT(CRY,2))&RIGHT(CRY,2))-1),CONCATENATE(dms_RPTMonth)&\" \"&VALUE(((LEFT(dms_CRCP_FirstYear_Result,2)&RIGHT(dms_CRCP_FirstYear_Result,2))))-1)"]
[null,"PTRM/ RFMs"]
[null,"Form of control",{"$f":"INDEX(dms_FormControl_List,MATCH(dms_TradingName,dms_TradingName_List))","v":"Revenue cap"},"dms_FormControl","=INDEX(dms_FormControl_List,MATCH(dms_TradingName,dms_TradingName_List))"]
["All potential values for Regulatory Years or RYEs as calculated","This block works out the various RYE's for ALL RIN types and MODELS"]
[null,"dms_start_year",{"$f":"FRCP_y1","v":2021},"FRCP_y1 from cover sheet"]
[null,"dms_CRY_start_year",{"$f":"IFERROR(CRY,CRCP_y4)","v":"2009"}]
[null,"dms_CRY_start_row",{"$f":"MATCH(dms_CRY_start_year,INDIRECT(dms_RPT),0)","v":22}]
[null,"dms_FRCP_start_row",{"$f":"MATCH(dms_start_year,INDIRECT(dms_RPT),0)","v":34},"Uses FRCP_y1 as a start reference"]
[null,"dms_CRCP_start_row",{"$f":"dms_FRCP_start_row-dms_CRCPlength_Num","v":29},"Uses the value in dms_CRCPlength_Num"]
[null,"dms_PRCP_start_row",{"$f":"dms_FRCP_start_row-dms_CRCPlength_Num-dms_PRCPlength_Num","v":24},"Uses the value in dms_CRCPlength_Num and dms_PRCPlength_Num"]
[null,"dms_RYE_start_row",{"$f":"dms_FRCP_start_row+(dms_FRCPlength_Num-1)","v":38},"Uses the value in dms_FRCPlength_Num-1"]
[null,"FRCP_start_year",{"$f":"INDEX(INDIRECT(dms_RPT),dms_FRCP_start_row)","v":2021},"Converts the FRCP start row to display the year"]
[null,"CRCP_start_year",{"$f":"INDEX(INDIRECT(dms_RPT),dms_CRCP_start_row)","v":2016},"Converts the CRCP start row to display the year"]
[null,"PRCP_start_year",{"$f":"INDEX(INDIRECT(dms_RPT),dms_PRCP_start_row)","v":2011},"Converts the PRCP start row to display the year"]
[null,"FRCP_final_year",{"$f":"INDEX(INDIRECT(dms_RPT),dms_FRCP_start_row+dms_FRCPlength_Num-1)","v":2025},"Finds the FRCP final year"]
[null,"CRCP_final_year",{"$f":"INDEX(INDIRECT(dms_RPT),dms_CRCP_start_row+dms_CRCPlength_Num-1)","v":2020},"Finds the CRCP final year"]
[null,"PRCP_final_year",{"$f":"INDEX(INDIRECT(dms_RPT),dms_PRCP_start_row+dms_FRCPlength_Num-1)","v":2015},"Finds the PRCP final year"]
[null,"dms_Reset_final_year",{"$f":"INDEX(INDIRECT(dms_RPT),dms_RYE_start_row)","v":2025},"For Resets and PTRM/RFMs (same as FRCP_final_year)"]
[null,"dms_SpecifiedYear_final_year",{"$f":"FRY","v":2018},"FRY from cover sheet"]
[null,"dms_DollarReal_year",{"$f":"LEFT(CRCP_final_year,2)&RIGHT(CRCP_final_year,2)","v":"2020"},"Uses the value in CRCP_final_year"]
[null,"dms_Previous_DollarReal_year",{"$f":"LEFT(PRCP_final_year,2)&RIGHT(PRCP_final_year,2)","v":"2015"},"Uses the value in PRCP_final_year"]
[null,"dms_CRY_RYE",{"$f":"IFERROR(LEFT(CRY,2)&RIGHT(CRY,2),0)","v":"2009"},"For ABC single year RINS"]
[null,"dms_Reset_RYE",{"$f":"IF(dms_Model_Span>1,(LEFT(dms_Reset_final_year,2)&RIGHT(dms_Reset_final_year,2)),0)","v":0},"If model span > 1 then uses dms_Reset_RYE otherwise it's a multi year ABC and uses dms_Specified_RYE"]
[null,"dms_Specified_RYE",{"$f":"IF(dms_MultiYear_ResponseFlag=\"Yes\",(LEFT(dms_Specified_FinalYear,2)&RIGHT(dms_Specified_FinalYear,2)),0)","v":"2018"},"If multi year ABC - uses dms_Specified_FinalYear"]
[null,"dms_Model_Span",{"$f":"INDEX(dms_Model_Span_List,MATCH(dms_Model,dms_Model_List))","v":1},"A result of 5 is used to signify that it is more than 1 year span"]
[null,"dms_RYE_result",{"$f":"IF(dms_MultiYear_ResponseFlag=\"yes\",dms_Specified_RYE,(IF(dms_Model_Span>1,dms_Reset_RYE,dms_CRY_RYE)))","v":"2018"},"Nested IF - feeds into dms_RYE"]
[null,"dms_Reset_Span",{"$f":"IF(dms_Reset_RYE>0,CONCATENATE(FRCP_y1,\" to \",FRCP_final_year),0)","v":0},"Reset span of years as text"]
[null,"dms_SpecifiedYear_Span",{"$f":"IF(dms_Specified_RYE>0,CONCATENATE(CRY,\" to \",dms_Specified_FinalYear),0)","v":"2009 to 2018"},"Multi year ABC span of years as text"]
[null,"dms_Header_Span",{"$f":"IF(dms_MultiYear_Flag=1,dms_SpecifiedYear_Span,IF(dms_Model_Span>1,dms_Reset_Span,CRY))","v":"2009 to 2018"},"NESTED IF - for Sheet Headers"]
[null,"ABC RINS THAT SPAN MULTIPLE YEARS"]
[null,"This is a multi year ABC RIN?","Yes"]
[null,null,{"$f":"IF(dms_MultiYear_ResponseFlag=\"No\",0,1)","v":1},"dms_MultiYear_Flag","This is set from the answer provided above"]
[null,null,{"$f":"IF(dms_MultiYear_Flag=1,FRY,\"not a Multiple year submission\")","v":2018},"dms_Specified_FinalYear","The result here is returned to dms_CRCP_FinalYear_Result if response to Q in C73 is \"yes\" and dms_MultiYear_Flag is set to 1"]
[null," Start year for 5.2 in Multi year ABC RINS",{"$f":"IFERROR(IF(dms_MultiYear_Flag=1,FRY,CRY),\"not an ABC\")","v":2018},"dms_0502_Inst_Year","=IF(dms_MultiYear_Flag=1,FRY,CRY)",null,"For single year RINS this is CRY - multi year RINS need to start a the end of the span of years (ie. FRY)"]
[null,"WHAT IS THE RYE?"]
[null,"Reg Period Lengths"]
[null,"PRCP length in years",{"$f":"INDEX(dms_PRCPlength_List,MATCH(dms_TradingName,dms_TradingName_List))","v":5},"dms_PRCPlength_Num","=INDEX(dms_PRCPlength_List,MATCH(dms_TradingName,dms_TradingName_List))"]
[null,"CRCP length in years",{"$f":"INDEX(dms_CRCPlength_List,MATCH(dms_TradingName,dms_TradingName_List))","v":5},"dms_CRCPlength_Num","=INDEX(dms_CRCPlength_List,MATCH(dms_TradingName,dms_TradingName_List))"]
[null,"FRCP length in years",{"$f":"INDEX(dms_FRCPlength_List,MATCH(dms_TradingName,dms_TradingName_List))","v":5},"dms_FRCPlength_Num","=INDEX(dms_FRCPlength_List,MATCH(dms_TradingName,dms_TradingName_List))"]
[null,"Single year RIN?"]
[null,"Single Year ABC RIN ?",{"$f":"IF(dms_Model=\"EB\",1,0)","v":0},"dms_EB"]
[null,null,{"$f":"IF(dms_Model=\"CA\",1,0)","v":1},"dms_CA","=dms_SingleYear_Model"]
[null,null,{"$f":"IF(dms_Model=\"ARR\",1,0)","v":0},"dms_ARR"]
[null,"Is this a single Year ABC RIN?",{"$f":"IF(SUM(dms_SingleYear_Model)=1,\"yes\",\"no\")","v":"yes"},"dms_SingleYearModel","=IF(SUM(dms_SingleYear_Model)=1,\"yes\",\"no\")"]
[null,"Single Year Final Year Result",{"$f":"IF(AND(dms_SingleYearModel=\"yes\",dms_MultiYear_Flag=0),CRY,0)","v":0},"dms_SingleYear_FinalYear_Result","=IFERROR(IF(SUM(dms_SingleYear_Model)<>0,(INDIRECT(dms_SingleYear_FinalYear_Ref)),\"not a single year RIN\"),\"CRY not present\")"]
[null,"Multi year RIN?"]
[]
[null,"Multi Year Reset/Model?",{"$f":"IF(dms_Model_Span>1,\"yes\",\"no\")","v":"no"}]
[null,"Final year result for Reset/Model",{"$f":"IF(dms_Model_Span>1,dms_Reset_final_year,0)","v":0}]
[]
[null,"Multi Year ABC RIN?",{"$f":"IF(dms_MultiYear_Flag=1,\"yes\",\"no\")","v":"yes"}]
[null,"Final year result for ABC multi year",{"$f":"IF(dms_MultiYear_Flag=1,C49,0)","v":2018}]
[]
[null,"EB RINS"]
[null,"Calendar Year for table 3.6 data",{"$f":"IFERROR(IF(dms_Segment=\"Transmission\",dms_Cal_Year_B4_CRY,CRY),\"CRY not present\")","v":"2009"},"dms_0306_Year","=IF(dms_Segment=\"Transmission\",dms_Cal_Year_B4_CRY,CRY)"]
[null,"CA RINS"]
[null,"Find how many rows in tables 6.3 sustained interruptions?",null,null,"dms_060301_MaxRows only returns a valid value when cover sheet is attached to a CA file"]
[null,null,{"$f":"IF(dms_Model<>\"CA\",\"not a CA\",\"Is a CA\")","v":"Is a CA"},null,"=IF(dms_Model<>\"CA\",\"not a CA\",\"Is a CA\")"]
[null,"dms_060301_Avg_Duration_Sustained_Int_Values present?",{"$f":"IFERROR(IF(INDEX(dms_060301_Avg_Duration_Sustained_Int_Values,1,1)<>\"\",\"yes\",\"no\"),\"no\")","v":"no"},"dms_060301_checkvalue","=IFERROR(IF(INDEX(dms_060301_Avg_Duration_Sustained_Int_Values,1,1)<>\"\",\"yes\",\"no\"),\"no\")"]
[null,null,{"$f":"IF(AND(dms_Model=\"CA\",(dms_060301_checkvalue=\"no\")),\"error - NR not present\",\"no errors\")","v":"error - NR not present"},null,"=IF(AND(dms_Model=\"CA\",(dms_060301_checkvalue=\"no\")),\"error - NR not present\",\"no errors\")"]
[null,"Table 6.3.1 - last row reference",{"$f":"IFERROR(IF(dms_Model=\"CA\",LOOKUP(2,1/(dms_060301_Avg_Duration_Sustained_Int_Values<>\"\"),(ROW(dms_060301_Avg_Duration_Sustained_Int_Values))),\"not a CA\"),\"6.3 not present\")","v":"6.3 not present"},"dms_060301_LastRow","=IFERROR(IF(dms_Model=\"CA\",LOOKUP(2,1/(dms_060301_Avg_Duration_Sustained_Int_Values<>\"\"),(ROW(dms_060301_Avg_Duration_Sustained_Int_Values))),\"not a CA\"),\"6.3 not present\")"]
[null,"Table 6.3.1 - max number rows",{"$f":"IFERROR(IF(dms_Model=\"CA\",(dms_060301_LastRow-15),\"not a CA\"),\"error\")","v":"error"},"dms_060301_MaxRows","=IFERROR(IF(dms_Model=\"CA\",(dms_060301_LastRow-15),\"not a CA\"),\"error\")"]
[null,"Table 6.6.3 - Public lighting repair - no. business days",{"$f":"INDEX(dms_663_List,MATCH(dms_TradingName,dms_TradingName_List))","v":2},"dms_663","=INDEX(dms_663_List,MATCH(dms_TradingName,dms_TradingName_List))"]
[null,"ARR or RESET RINS"]
[null,"How many rows in tables 6.1 or 6.7?  (leap year?)","insert dms_LeapYear NR if required",null,"'dms_LeapYear is used to determine dms_060701_Max_Rows BUT it is only found on worksheet 6.1 or 6.7 and the date value in the cell is used to determine whether it is a leap year"]
[null,"Is dms_LeapYear named range present?",{"$f":"IFERROR(IF(dms_LeapYear,\"yes\"),\"no\")","v":"no"}]
[null,"Table 6.7.1 - includes a leap year?",{"$f":"\nIFERROR(IF(MONTH(DATE(YEAR(dms_LeapYear),2,29))=2,\"is a leap year\",\"not a leap year\"),\n\"dms_LeapYear not present\")","v":"dms_LeapYear not present"},"dms_LeapYear_Result","=IFERROR(IF(MONTH(DATE(YEAR(dms_LeapYear),2,29))=2,\"is a leap year\",\"not a leap year\"),\"dms_LeapYear not present\")"]
[null,"MaxRows if Reset and leap year",{"$f":"IF(dms_LeapYear_Result=\"is a leap year\",1827,1826)","v":1826},"dms_060701_Reset_MaxRows","=IF(dms_LeapYear_Result=\"is a leap year\",1827,1826)",null,null,"number of days present in Reset RIN table"]
[null,"MaxRows if ARR and leap year",{"$f":"IF(dms_LeapYear_Result=\"is a leap year\",366,365)","v":365},"dms_060701_ARR_MaxRows","=IF(dms_LeapYear_Result=\"is a leap year\",366,365)",null,null,"number of days present in ARR RIN table"]
[null,"Table 6.7.1 - Max Rows (leap year/ non leap year)",{"$f":"IF(dms_Model=\"ARR\",dms_060701_ARR_MaxRows,IF(dms_Model=\"Reset\",dms_060701_Reset_MaxRows,\"not a relevant RIN type\"))","v":"not a relevant RIN type"},"dms_060701_MaxRows","=IF(dms_Model=\"ARR\",dms_060701_ARR_MaxRows,IF(dms_Model=\"Reset\",dms_060701_Reset_MaxRows,\"not a relevant RIN type\"))"]
[null,"How many columns in 6.7?   (4 or 5 feeder categories)",{"$f":"IF(dms_FifthFeeder_flag_NSP=\"NO\",\"This NSP has only 4 feeder categories\",\"This NSP has 5 feeder categories\")","v":"This NSP has only 4 feeder categories"}]
[null,"Table 6.7.1 - Last column (# of feeder categories > 4)",{"$f":"IF(dms_FifthFeeder_flag_NSP=\"NO\",10,12)","v":10},"dms_060701_MaxCols","=IF(dms_FifthFeeder_flag_NSP=\"NO\",8,10)"]
[null,"Table 6.7.1 - Number of offset rows",{"$f":"IF(dms_Model=\"ARR\",15,9)","v":9},"dms_060701_OffsetRows","=IF(dms_Model=\"ARR\",15,9)"]
[null,"Start date for telephone answering in 6.1 or 6.7?",null,null,"Using 060101 as naming standard not 060701 for start dates"]
[null,"Table 6.1.1 and 6.7.1 - Start Date as Text",{"$f":"IF(dms_SingleYearModel=\"yes\",(CONCATENATE(IF(LEN(CRY)=4,\"1-Jan-\",\"1-Jul-\"),LEFT(CRY,4))),(CONCATENATE(IF(LEN(PRCP_y4)=4,\"1-Jan-\",\"1-Jul-\"),LEFT(PRCP_y4,4))))","v":"1-Jan-2009"},"dms_060101_StartDateTxt","=IF(SUM(dms_SingleYear_Model)>1,(CONCATENATE(IF(LEN(CRY)=4,\"1-Jan-\",\"1-Jul-\"),LEFT(CRY,4))),(CONCATENATE(IF(LEN(CRCP_y4)=4,\"1-Jan-\",\"1-Jul-\"),LEFT(CRCP_y4,4))))"]
[null,"Table 6.1.1 and 6.7.1 - Start Date as Date Value",{"$f":"DATEVALUE(dms_060701_StartDateTxt)","v":39814},"dms_060101_StartDateVal","=DATEVALUE(dms_060701_StartDateTxt)"]
[null,"ARRs"]
[null,"How many rows in table 6.8?","insert dms_060801_StartCell NR if required",null,"dms_060801_StartCell is only found on worksheet 6.8 and is used to determine the starting date for the date range"]
[null,"Is dms_060801_StartCell named range present?","yes",null,"=IFERROR(IF((ROW(dms_060801_StartCell)-1)=1,\"yes\",\"yes\"),\"no\")"]
[null,"Table 6.8 - Number of offset rows",12,"dms_0608_OffsetRows","=IFERROR(IF(dms_Model=\"ARR\",(ROW(dms_060801_StartCell)-1),\"not an ARR\"),\"6.8 error\")"]
[null,"Table 6.8 - Last row","0","dms_0608_LastRow","=IFERROR(IF(dms_060801_StartCell<>\"\",IF(dms_Model=\"ARR\",(LOOKUP(2,1/(dms_060801_01_Values<>\"\"),(ROW(dms_060801_01_Values)))),\"not an ARR\"),0),\"0\")"]
[null,"Table 6.8 - MaxRows",{"$f":"IFERROR(IF(dms_Model=\"ARR\",(MAX(0,dms_0608_LastRow-dms_0608_OffsetRows)),\"not an ARR\"),\"0\")","v":"not an ARR"},"dms_060801_MaxRows","=IFERROR(IF(dms_Model=\"ARR\",(MAX(0,dms_0608_LastRow-dms_0608_OffsetRows)),\"not an ARR\"),\"0\")"]
[null,"TNSP RESET RINS"]
[null,"Table 7.9.4 only appears in TNSPs Reset RIN"]
[null,"Table 7.9.4 - first year",{"$f":"LEFT(PRCP_y3,4)","v":"2013"},"dms_070904_Start_Year","=LEFT(PRCP_y3,4)"]
[]
[null,"MISC"]
[null,"Distribution Determination Reference",{"$f":"INDEX(dms_DeterminationRef_List,MATCH(dms_TradingName,dms_TradingName_List))","v":"2016-20 Distribution Determination"},"dms_DeterminationRef"]
[null,"Public lighting NSP?",{"$f":"INDEX(dms_Public_Lighting_List,MATCH(dms_TradingName,dms_TradingName_List))","v":"YES"},"dms_Public_Lighting","=INDEX(dms_Public_Lighting_List,MATCH(dms_TradingName,dms_TradingName_List))"]
[null,"CBD Feeder for this business",{"$f":"INDEX(dms_CBD_flag,MATCH(dms_TradingName,dms_TradingName_List))","v":"NO"},"dms_CBD_flag_NSP"]
[null,"Urban Feeder for this business",{"$f":"INDEX(dms_Urban_flag,MATCH(dms_TradingName,dms_TradingName_List))","v":"NO"},"dms_Urban_flag_NSP"]
[null,"Short rural Feeder for this business",{"$f":"INDEX(dms_ShortRural_flag,MATCH(dms_TradingName,dms_TradingName_List))","v":"YES"},"dms_ShortRural_flag_NSP"]
[null,"Long rural Feeder for this business",{"$f":"INDEX(dms_LongRural_flag,MATCH(dms_TradingName,dms_TradingName_List))","v":"YES"},"dms_LongRural_flag_NSP"]
[null,"Fifth Feeder Category (eg. TasNetworks (D))",{"$f":"INDEX(dms_FeederType_5_flag,MATCH(dms_TradingName,dms_TradingName_List))","v":"NO"},"dms_FifthFeeder_flag_NSP","=INDEX(dms_FeederType_5_flag,MATCH(dms_TradingName,dms_TradingName_List))"]
[]
[null,"DISCARD FILES"]
[null,"discard this record?","NO","dms_DISCARD","If record is to be discarded from DB set this flag to YES"]
[]
[null,"SUBSET FILES"]
[null,"Is this Submission File a Subset File","NO","dms_Partial"]
[]
[]
[null,"REGULATORY YEARS FOR MULTI RYE SUBMISSIONS"]
[null,"Multiple RYE flag","NO","dms_Multi_RYE_flag"]
[null,null,"Manually specify RYE","Named ranges to apply"]
[null,null,2013,"dms_RYE_01"]
[null,null,2014,"dms_RYE_02"]
[null,null,2015,"dms_RYE_03"]
[null,null,2016,"dms_RYE_04"]
[null,null,2017,"dms_RYE_05"]
[null,null,2018,"dms_RYE_06"]
[null,null,2019,"dms_RYE_07"]
[null,null,2020,"dms_RYE_08"]
[null,null,2021,"dms_RYE_09"]

{"sheet":"Instructions","index":4,"n_rows":27,"n_cols":4,"rows_kept":27,"cut":false,"hidden":false,"merged":[[7,1,8,1],[7,2,7,3],[8,2,8,4],[1,1,1,4],[2,1,2,4],[3,1,3,4],[4,1,4,4],[5,2,5,4],[18,1,24,1],[18,2,18,4],[26,2,26,4],[10,2,10,4],[12,1,14,1],[12,2,12,4],[13,2,13,3],[14,2,14,4],[16,2,16,4]]}
[]
[null,{"$f":"CONCATENATE(dms_Sector,\" \",dms_Segment,\" \", \"Network Service Provider\")","v":"Electricity Distribution Network Service Provider"}]
[null,{"$f":"INDEX(dms_Worksheet_List,MATCH(dms_Model,dms_Model_List))","v":"RECAST HISTORICAL CATEGORY ANALYSIS - CALENDAR YEARS"}]
[null,{"$f":"CONCATENATE(\"This template is to be used by \",dms_TradingNameFull,\" to fulfil its reporting obligations to the AER.\")","v":"This template is to be used by Powercor Australia to fulfil its reporting obligations to the AER."}]
[null,"INSTRUCTIONS"]
[null,"GENERAL","Complete the Business & other details worksheet before entering data or values in any other worksheets. The Business & other details worksheet is linked to other worksheets within the workbook and automatically generates certain column headings and conditional formatting."]
[]
[null,"CONFIDENTIAL INFORMATION","\nPlease use the macro at the top of each \nworksheet to identify confidential information\nin the confidential workbook. \n\n"]
[null,null,"-Do this by selecting the cell or cells that contain confidential information and then run the Mark selection as CONFIDENTIAL macro. This will format the cells a specific colour that is identified by the AER's database which in turn marks that information as confidential.\n\n-To reverse this, select the cell or cells and run the Return selection to NON-CONFIDENTIAL macro."]
[]
[null,"RESPONSES","\nPlease return two (2) files to the AER: \n\n1. A confidential version which must contain a complete set of all responses with confidential information marked using the Mark selection CONFIDENTIAL macro and which has been completed using the locked template file provided by the AER. \n\n2. A public version with confidential information either removed completely or aggregated in some form together with writtten consent to disclose the public version of the response.\n\nUse the drop down box on the Business and other details worksheet to identify the file as either confidential ('consolidated') or public. "]
[]
[null,"AMENDMENTS","\nIf an NSP wishes to correct data previously submitted to the AER it should resubmit that data using the original completed submission as the starting point. Please make any necessary changes to the data. Data that is not being amended should be left unchanged. \n\nNSPs must identify the reason for the amendments in the Amendment Reason box on the  Business and other details worksheet. NSPs may provide further details regarding any amendments in the Amendments worksheet. \n\n."]
[null,null,"NSP may use Amended Data macro \nto highlight cells that contain amended data.\nNB: if data is also CONFIDENTIAL, re-apply \nthe Confidentiality macro after applying the \nAmended macro"]
[null,null,"Please resubmit two (2) files - a confidential version and a public version of the amended submission to the AER"]
[]
[null,"UNITS OF MEASURE","\nAll amounts are to be unrounded and reported on a one for one basis: that is 1000 is to be entered as '1000'. Applicable units of measure may be identified in the table column headings or row descriptors.\n\n"]
[]
[null,"INPUT / NON-INPUT CELLS"]
[null,null,null,"Yellow = Input cell (mandatory)"]
[null,null,null,"Darker yellow = input cell (mandatory)"]
[null,null,null,"Orange = input cell (if data available)"]
[null,null,null,"Grey = Not applicable/No inputs required"]
[null,null,null," \nPLEASE DO NOT ENTER TEXT into cells that are to contain numeric data."]
[]
[]
[null,"NAVIGATION","\nMany tables in the worksheets have been \"grouped\" to allow for easy navigation. To ungroup or group data use the outline symbols in the left margin (for Row groupings) or above the columns (for column groupings). \n\n\n\n"]

{"sheet":"Contents","index":5,"n_rows":25,"n_cols":6,"rows_kept":25,"cut":false,"hidden":false,"merged":[[5,4,5,5]]}
[null,null,null,{"$f":"INDEX(dms_Worksheet_List,MATCH(dms_Model,dms_Model_List))","v":"RECAST HISTORICAL CATEGORY ANALYSIS - CALENDAR YEARS"}]
[null,null,null,{"$f":"INDEX(dms_TradingNameFull_List,MATCH(dms_TradingName,dms_TradingName_List))","v":"Powercor Australia"}]
[null,null,null,{"$f":"dms_Header_Span","v":"2009 to 2018"}]
[]
[]
[null,null,null,null,"CONTENTS"]
[]
[null,null,null,null,"SUBMISSION","Business & other details"]
[]
[null,null,null,null,"EXPENDITURE","2.1 Expenditure summary"]
[null,null,null,null,null,"2.2 Repex"]
[null,null,null,null,null,"2.3(a) Augex"]
[null,null,null,null,null,"2.3(b) Augex"]
[null,null,null,null,null,"2.5 Connections"]
[null,null,null,null,null,"2.6 Non-network"]
[null,null,null,null,null,"2.7 Vegetation management"]
[null,null,null,null,null,"2.8 Maintenance"]
[null,null,null,null,null,"2.9 Emergency Response"]
[null,null,null,null,null,"2.11 Labour"]
[null,null,null,null,null,"2.12 Input tables"]
[]
[]
[null,null,null,null,"ALTERNATIVE CONTROL","4.2 Metering"]
[null,null,null,null,null,"4.3 Fee-based services"]
[null,null,null,null,null,"4.4 Quoted services"]

{"sheet":"Business & other details","index":6,"n_rows":74,"n_cols":80,"rows_kept":74,"cut":false,"hidden":false,"merged":[[69,43,71,87],[73,31,73,40],[73,43,73,58],[61,31,61,40],[61,43,61,58],[63,21,73,27],[63,31,63,40],[63,43,63,58],[65,31,65,40],[65,43,65,58],[67,31,67,40],[67,43,67,58],[69,31,71,40],[51,43,51,50],[51,52,51,59],[51,61,51,68],[51,70,51,77],[51,79,51,86],[53,21,55,27],[53,31,53,40],[53,43,53,50],[55,31,55,40],[55,43,55,50],[50,43,50,50],[50,52,50,59],[50,61,50,68],[50,70,50,77],[50,79,50,86],[47,43,47,50],[47,52,47,59],[47,61,47,68],[47,70,47,77],[47,79,47,86],[45,61,45,68],[45,70,45,77],[49,31,49,40],[49,43,49,50],[49,52,49,59],[49,61,49,68],[49,70,49,77],[45,79,45,86],[46,43,46,50],[46,52,46,59],[46,61,46,68],[46,70,46,77],[46,79,46,86],[49,79,49,86],[41,79,41,86],[42,43,42,50],[42,52,42,59],[42,61,42,68],[42,70,42,77],[42,79,42,86],[33,21,33,35],[33,37,33,58],[33,60,33,66],[33,68,33,89],[41,21,49,27],[41,31,41,40],[41,43,41,50],[41,52,41,59],[41,61,41,68],[41,70,41,77],[43,43,43,50],[43,52,43,59],[43,61,43,68],[43,70,43,77],[43,79,43,86],[45,31,45,40],[45,43,45,50],[45,52,45,59],[31,21,31,35],[31,37,31,58],[31,60,31,66],[31,68,31,89],[32,21,32,35],[32,37,32,58],[32,60,32,66],[32,68,32,89],[25,21,25,35],[25,37,25,40],[25,49,25,51],[25,60,25,66],[25,68,25,71],[25,80,25,82],[24,21,24,35],[24,37,24,51],[24,60,24,66],[24,68,24,82],[16,21,16,35],[16,37,16,48],[22,21,22,35],[22,37,22,58],[22,60,22,66],[22,68,22,89],[0,7,2,15],[3,21,3,57],[6,21,6,75],[8,16,8,93],[15,21,15,35],[15,37,15,58],[23,21,23,35],[23,37,23,58],[23,60,23,66],[23,68,23,89]]}
[null,null,null,null,null,null,null,null,null,null,null,null,null,null,null,null,null,null,null,null,null,{"$f":"INDEX(dms_Worksheet_List,MATCH(dms_Model,dms_Model_List))","v":"RECAST HISTORICAL CATEGORY ANALYSIS - CALENDAR YEARS"}]
[null,null,null,null,null,null,null,null,null,null,null,null,null,null,null,null,null,null,null,null,null,{"$f":"INDEX(dms_TradingNameFull_List,MATCH(dms_TradingName,dms_TradingName_List))","v":"Powercor Australia"}]
[null,null,null,null,null,null,null,null,null,null,null,null,null,null,null,null,null,null,null,null,null,{"$f":"dms_Header_Span","v":"2009 to 2018"}]
[null,null,null,null,null,null,null,null,null,null,null,null,null,null,null,null,null,null,null,null,null,"BUSINESS & OTHER DETAILS"]
[]
[null,null,null,null,null,null,null,null,null,null,null,null,null,null,null,null,null,null,null,null,null,"INSTRUCTIONS"]
[null,null,null,null,null,null,null,null,null,null,null,null,null,null,null,null,null,null,null,null,null,"Complete the following business details regulatory template before entering data or values in any other regulatory template. This regulatory template is linked to other cells within the spreadsheet and automatically generates column headings and conditional formatting to distinguish business specific input and non-input cells. "]
[]
[null,null,null,null,null,null,null,null,null,null,null,null,null,null,null,null,"SUBMISSION PARTICULARS INPUT SHEET"]
[]
[]
[null,null,null,null,null,null,null,null,null,null,null,null,null,null,null,null,null,null,null,null,null,"ENTITY DETAILS"]
[]
[null,null,null,null,null,null,null,null,null,null,null,null,null,null,null,null,null,null,null,null,null,"Business Name"]
[]
[null,null,null,null,null,null,null,null,null,null,null,null,null,null,null,null,null,null,null,null,null,"Short name",null,null,null,null,null,null,null,null,null,null,null,null,null,null,null,"Powercor Australia"]
[null,null,null,null,null,null,null,null,null,null,null,null,null,null,null,null,null,null,null,null,null,"ACN/ABN",null,null,null,null,null,null,null,null,null,null,null,null,null,null,null,{"$f":"INDEX(dms_ABN_List,MATCH(dms_TradingName,dms_TradingName_List))","v":89064651109}]
[]
[]
[]
[null,null,null,null,null,null,null,null,null,null,null,null,null,null,null,null,null,null,null,null,null,"Business Address",null,null,null,null,null,null,null,null,null,null,null,null,null,null,null,null,null,null,null,null,null,null,null,null,null,null,null,null,null,null,null,null,null,null,null,null,null,null,null,null,null,null,null,null,null,null,"Postal Address"]
[]
[null,null,null,null,null,null,null,null,null,null,null,null,null,null,null,null,null,null,null,null,null,"Address 1",null,null,null,null,null,null,null,null,null,null,null,null,null,null,null,{"$f":"INDEX(dms_Addr1_List,MATCH(dms_TradingName,dms_TradingName_List))","v":"40 Market Street"},null,null,null,null,null,null,null,null,null,null,null,null,null,null,null,null,null,null,null,null,null,null,"Address 1",null,null,null,null,null,null,null,{"$f":"INDEX(dms_PAddr1_List,MATCH(dms_TradingName,dms_TradingName_List))","v":"Locked bag 14090"}]
[null,null,null,null,null,null,null,null,null,null,null,null,null,null,null,null,null,null,null,null,null,"Address 2",null,null,null,null,null,null,null,null,null,null,null,null,null,null,null,{"$f":"IF(ISBLANK(INDEX(dms_Addr2_List,MATCH(dms_TradingName,dms_TradingName_List))),\"\",(INDEX(dms_Addr2_List,MATCH(dms_TradingName,dms_TradingName_List))))","v":""},null,null,null,null,null,null,null,null,null,null,null,null,null,null,null,null,null,null,null,null,null,null,"Address 2",null,null,null,null,null,null,null,{"$f":"IF(ISBLANK(INDEX(dms_PAddr2_List,MATCH(dms_TradingName,dms_TradingName_List))),\"\",(INDEX(dms_PAddr2_List,MATCH(dms_TradingName,dms_TradingName_List))))","v":""}]
[null,null,null,null,null,null,null,null,null,null,null,null,null,null,null,null,null,null,null,null,null,"Suburb",null,null,null,null,null,null,null,null,null,null,null,null,null,null,null,{"$f":"INDEX(dms_Suburb_List,MATCH(dms_TradingName,dms_TradingName_List))","v":"MELBOURNE"},null,null,null,null,null,null,null,null,null,null,null,null,null,null,null,null,null,null,null,null,null,null,"Suburb",null,null,null,null,null,null,null,{"$f":"INDEX(dms_PSuburb_List,MATCH(dms_TradingName,dms_TradingName_List))","v":"MELBOURNE"}]
[null,null,null,null,null,null,null,null,null,null,null,null,null,null,null,null,null,null,null,null,null,"State",null,null,null,null,null,null,null,null,null,null,null,null,null,null,null,{"$f":"INDEX(dms_State_List,MATCH(dms_TradingName,dms_TradingName_List))","v":"Vic"},null,null,null,null,null,null,null,null,null,"Post code",null,null,null,null,null,null,null,null,null,null,null,null,"State",null,null,null,null,null,null,null,{"$f":"INDEX(dms_PState_List,MATCH(dms_TradingName,dms_TradingName_List))","v":"Vic"},null,null,null,null,null,null,null,null,null,"Post code"]
[]
[null,null,null,null,null,null,null,null,null,null,null,null,null,null,null,null,null,null,null,null,null,null,null,null,null,null,null,null,null,null,null,null,null,null,null,null,null,null,null,null,null,null,null,null,null,null,null,null,null,null,null,null,"`"]
[]
[null,null,null,null,null,null,null,null,null,null,null,null,null,null,null,null,null,null,null,null,null,"Contact Names"]
[]
[null,null,null,null,null,null,null,null,null,null,null,null,null,null,null,null,null,null,null,null,null,"Name",null,null,null,null,null,null,null,null,null,null,null,null,null,null,null,"Brent Cleeve",null,null,null,null,null,null,null,null,null,null,null,null,null,null,null,null,null,null,null,null,null,null,"Name"]
[null,null,null,null,null,null,null,null,null,null,null,null,null,null,null,null,null,null,null,null,null,"Phone",null,null,null,null,null,null,null,null,null,null,null,null,null,null,null,"(03) 9683 4465",null,null,null,null,null,null,null,null,null,null,null,null,null,null,null,null,null,null,null,null,null,null,"Phone"]
[null,null,null,null,null,null,null,null,null,null,null,null,null,null,null,null,null,null,null,null,null,"Email",null,null,null,null,null,null,null,null,null,null,null,null,null,null,null,"bcleeve@powercor.com.au",null,null,null,null,null,null,null,null,null,null,null,null,null,null,null,null,null,null,null,null,null,null,"Email"]
[]
[]
[]
[]
[null,null,null,null,null,null,null,null,null,null,null,null,null,null,null,null,null,null,null,null,null,"REGULATORY CONTROL PERIODS"]
[]
[]
[null,null,null,null,null,null,null,null,null,null,null,null,null,null,null,null,null,null,null,null,null,"RESETS",null,null,null,null,null,null,null,null,null,"Forthcoming period",null,null,null,null,null,null,null,null,null,null,null,2021,null,null,null,null,null,null,null,null,{"$f":"FRCP_y2","v":2022},null,null,null,null,null,null,null,null,{"$f":"FRCP_y3","v":2023},null,null,null,null,null,null,null,null,{"$f":"FRCP_y4","v":2024},null,null,null,null,null,null,null,null,{"$f":"FRCP_y5","v":2025}]
[null,null,null,null,null,null,null,null,null,null,null,null,null,null,null,null,null,null,null,null,null,null,null,null,null,null,null,null,null,null,null,null,null,null,null,null,null,null,null,null,null,null,null,{"$f":"FRCP_y6","v":2026},null,null,null,null,null,null,null,null,{"$f":"FRCP_y7","v":2027},null,null,null,null,null,null,null,null,{"$f":"FRCP_y8","v":2028},null,null,null,null,null,null,null,null,{"$f":"FRCP_y9","v":2029},null,null,null,null,null,null,null,null,{"$f":"FRCP_y10","v":2030}]
[null,null,null,null,null,null,null,null,null,null,null,null,null,null,null,null,null,null,null,null,null,null,null,null,null,null,null,null,null,null,null,null,null,null,null,null,null,null,null,null,null,null,null,{"$f":"FRCP_y11","v":2031},null,null,null,null,null,null,null,null,{"$f":"FRCP_y12","v":2032},null,null,null,null,null,null,null,null,{"$f":"FRCP_y13","v":2033},null,null,null,null,null,null,null,null,{"$f":"FRCP_y14","v":2034},null,null,null,null,null,null,null,null,{"$f":"FRCP_y15","v":2035}]
[]
[null,null,null,null,null,null,null,null,null,null,null,null,null,null,null,null,null,null,null,null,null,null,null,null,null,null,null,null,null,null,null,"Current period",null,null,null,null,null,null,null,null,null,null,null,{"$f":"CRCP_y1","v":2016},null,null,null,null,null,null,null,null,{"$f":"CRCP_y2","v":2017},null,null,null,null,null,null,null,null,{"$f":"CRCP_y3","v":2018},null,null,null,null,null,null,null,null,{"$f":"CRCP_y4","v":2019},null,null,null,null,null,null,null,null,{"$f":"CRCP_y5","v":2020}]
[null,null,null,null,null,null,null,null,null,null,null,null,null,null,null,null,null,null,null,null,null,null,null,null,null,null,null,null,null,null,null,null,null,null,null,null,null,null,null,null,null,null,null,{"$f":"CRCP_y6","v":2021},null,null,null,null,null,null,null,null,{"$f":"CRCP_y7","v":2022},null,null,null,null,null,null,null,null,{"$f":"CRCP_y8","v":2023},null,null,null,null,null,null,null,null,{"$f":"CRCP_y9","v":2024},null,null,null,null,null,null,null,null,{"$f":"CRCP_y10","v":2025}]
[null,null,null,null,null,null,null,null,null,null,null,null,null,null,null,null,null,null,null,null,null,null,null,null,null,null,null,null,null,null,null,null,null,null,null,null,null,null,null,null,null,null,null,{"$f":"CRCP_y11","v":2026},null,null,null,null,null,null,null,null,{"$f":"CRCP_y12","v":2027},null,null,null,null,null,null,null,null,{"$f":"CRCP_y13","v":2028},null,null,null,null,null,null,null,null,{"$f":"CRCP_y14","v":2029},null,null,null,null,null,null,null,null,{"$f":"CRCP_y15","v":2030}]
[]
[null,null,null,null,null,null,null,null,null,null,null,null,null,null,null,null,null,null,null,null,null,null,null,null,null,null,null,null,null,null,null,"Previous period",null,null,null,null,null,null,null,null,null,null,null,{"$f":"PRCP_y1","v":2011},null,null,null,null,null,null,null,null,{"$f":"PRCP_y2","v":2012},null,null,null,null,null,null,null,null,{"$f":"PRCP_y3","v":2013},null,null,null,null,null,null,null,null,{"$f":"PRCP_y4","v":2014},null,null,null,null,null,null,null,null,{"$f":"PRCP_y5","v":2015}]
[null,null,null,null,null,null,null,null,null,null,null,null,null,null,null,null,null,null,null,null,null,null,null,null,null,null,null,null,null,null,null,null,null,null,null,null,null,null,null,null,null,null,null,{"$f":"PRCP_y6","v":2016},null,null,null,null,null,null,null,null,{"$f":"PRCP_y7","v":2017},null,null,null,null,null,null,null,null,{"$f":"PRCP_y8","v":2018},null,null,null,null,null,null,null,null,{"$f":"PRCP_y9","v":2019},null,null,null,null,null,null,null,null,{"$f":"PRCP_y10","v":2020}]
[null,null,null,null,null,null,null,null,null,null,null,null,null,null,null,null,null,null,null,null,null,null,null,null,null,null,null,null,null,null,null,null,null,null,null,null,null,null,null,null,null,null,null,{"$f":"PRCP_y11","v":2021},null,null,null,null,null,null,null,null,{"$f":"PRCP_y12","v":2022},null,null,null,null,null,null,null,null,{"$f":"PRCP_y13","v":2023},null,null,null,null,null,null,null,null,{"$f":"PRCP_y14","v":2024},null,null,null,null,null,null,null,null,{"$f":"PRCP_y15","v":2025}]
[]
[null,null,null,null,null,null,null,null,null,null,null,null,null,null,null,null,null,null,null,null,null,"ANNUAL RINS",null,null,null,null,null,null,null,null,null,"Commencing year",null,null,null,null,null,null,null,null,null,null,null,"2009"]
[]
[null,null,null,null,null,null,null,null,null,null,null,null,null,null,null,null,null,null,null,null,null,null,null,null,null,null,null,null,null,null,null,"Final year",null,null,null,null,null,null,null,null,null,null,null,2018]
[]
[]
[]
[null,null,null,null,null,null,null,null,null,null,null,null,null,null,null,null,null,null,null,null,null,"SUBMISSION DETAILS"]
[]
[null,null,null,null,null,null,null,null,null,null,null,null,null,null,null,null,null,null,null,null,null,null,null,null,null,null,null,null,null,null,null,"RIN type",null,null,null,null,null,null,null,null,null,null,null,{"$f":"INDIRECT(dms_Model)","v":"Category Analysis"}]
[]
[null,null,null,null,null,null,null,null,null,null,null,null,null,null,null,null,null,null,null,null,null,"THIS FILE",null,null,null,null,null,null,null,null,null,"Source",null,null,null,null,null,null,null,null,null,null,null,"Regulatory proposal"]
[]
[null,null,null,null,null,null,null,null,null,null,null,null,null,null,null,null,null,null,null,null,null,null,null,null,null,null,null,null,null,null,null,"Data Quality",null,null,null,null,null,null,null,null,null,null,null,"Consolidated"]
[]
[null,null,null,null,null,null,null,null,null,null,null,null,null,null,null,null,null,null,null,null,null,null,null,null,null,null,null,null,null,null,null,"Confidentiality Status",null,null,null,null,null,null,null,null,null,null,null,"Public"]
[]
[null,null,null,null,null,null,null,null,null,null,null,null,null,null,null,null,null,null,null,null,null,null,null,null,null,null,null,null,null,null,null,"Amended RIN \nAmendment Reason",null,null,null,null,null,null,null,null,null,null,null,"."]
[]
[]
[]
[null,null,null,null,null,null,null,null,null,null,null,null,null,null,null,null,null,null,null,null,null,null,null,null,null,null,null,null,null,null,null,"Submission Date",null,null,null,null,null,null,null,null,null,null,null,"2020-01-31"]

{"sheet":"2.1 Expenditure summary","index":7,"n_rows":158,"n_cols":12,"rows_kept":158,"cut":false,"hidden":false,"merged":[[122,2,122,11],[142,2,142,11],[104,2,104,11],[8,2,8,11],[29,2,29,11],[49,2,49,11],[67,2,67,11],[85,2,85,11]]}
[null,{"$f":"INDEX(dms_Worksheet_List,MATCH(dms_Model,dms_Model_List))","v":"RECAST HISTORICAL CATEGORY ANALYSIS - CALENDAR YEARS"}]
[null,{"$f":"INDEX(dms_TradingNameFull_List,MATCH(dms_TradingName,dms_TradingName_List))","v":"Powercor Australia"}]
[null,{"$f":"dms_Header_Span","v":"2009 to 2018"}]
[null,"2.1 EXPENDITURE SUMMARY & RECONCILIATION"]
[]
[null,"There are EIGHT tables on this worksheet - see the Instructions sheet on how to group or ungroup tables. "]
[]
[null,"2.1.1 - STANDARD CONTROL SERVICES CAPEX"]
[null,null,"EXPENDITURE ($0's)"]
[null,null,{"$f":"dms_y1","v":"2009"},{"$f":"dms_y2","v":2010},{"$f":"dms_y3","v":2011},{"$f":"dms_y4","v":2012},{"$f":"dms_y5","v":2013},{"$f":"dms_y6","v":2014},{"$f":"dms_y7","v":2015},{"$f":"dms_y8","v":2016},{"$f":"dms_y9","v":2017},{"$f":"dms_y10","v":2018}]
[null,"Replacement expenditure",44605773.057094909,52647374.046617754,64440174.37481951,80209769.633478448,90267446.125507817,90320177.336240366,74358573.496919498,51835935.098099999,69958013.038100004,69644279.750220016]
[null,"Connections",72131635.953168184,85847013.596472457,86846838.19682467,82848069.916011602,89555788.402372494,87475080,119317616.66645324,113015975.72434664,150872939,163694634.77999997]
[null,"Augmentation Expenditure",27615057.983145945,24846550.639515936,32039563.780000001,34530878.109999999,44143555.481247187,53390445.21084559,41479863.379999995,24305183.130000003,32737982,20482402.490000002]
[null,"Non-network",15604122.789090972,22982481.348923281,33492828.669999994,22039984.380000006,24407776.350000001,48314799.179999992,73705217.716954306,68199341.379999995,77001780,71306050.420000017]
[null,"capitalised network overheads",18214581.58127331,20551681.393983513,26601493.890000001,28842412.016442321,30175380.424836084,33844853.870000005,31986209.595992584,32907586,44038606.280000001,43006165.651561715]
[null,"capitalised corporate overheads",20819936.410000004,25096130.399999995,21036742.950000003,26117344.661373332,27750169.06592913,33473651.170000013,31990239.641582105,"                                                                                -  ","-",0]
[null,"Metering",0,0,0,0,0,0,0,"                                                                                -  ",0,0]
[null,"Public Lighting",0,0,0,0,0,0,0,"                                                                                -  ",0,0]
[null,"VBRC",0,0,0,0,0,0,22978.528490000001,29802392.209999997,0,82510089.720000014]
[]
[]
[]
[]
[]
[null,"balancing item",0,0,0,0,0,0,614.74218946695328,0,47862799,0]
[null,"capcons (included in the above items)",32308452.009802822,37210582.359999999,34035997.259999998,15153349.869999999,14417303.249999991,15845169.6150658,63562676.82009355,56887223,0,106038333.97999999]
[null,"TOTAL GROSS CAPEX (includes capcons)",{"$f":"+SUM(C11:C25)","v":198991107.77377331},231971231.42551297,264457641.86164415,274588458.71730572,306300115.84989268,346819006.76708597,372861313.76858121,320066413.54244661,422472119.31809998,450643622.81178176]
[]
[null,"2.1.2 - STANDARD CONTROL SERVICES OPEX"]
[null,null,"EXPENDITURE ($0's)"]
[null,null,{"$f":"dms_y1","v":"2009"},{"$f":"dms_y2","v":2010},{"$f":"dms_y3","v":2011},{"$f":"dms_y4","v":2012},{"$f":"dms_y5","v":2013},{"$f":"dms_y6","v":2014},{"$f":"dms_y7","v":2015},{"$f":"dms_y8","v":2016},{"$f":"dms_y9","v":2017},{"$f":"dms_y10","v":2018}]
[null,"Vegetation management",14000930.740000004,9958737.8999999985,26900857.550000001,40519644.10872706,45143560.041771457,36044900,35960332.700000003,23667765,29774887,42936093.115613297]
[null,"Maintenance",35010859.974123418,40762764.081367135,39425729.183280155,41100646.551239192,48695180.99782218,48615432.600577727,47564544.89630001,47384491.301899999,50756549.891900003,49655683.661031604]
[null,"Emergency response",16209473.999999998,16780415.66,18764245,20140202.428635851,21240101.912007805,20594949.814455945,18324300,22059735,23857913.07,27547359.180000003]
[null,"Non-network",0,0,0,0,0,0,0,"                                                                                -  ",0,0]
[null,"network overheads",45046384.134488009,46426017.648255304,39318452.99353838,45716040.468090042,44579406.948894113,46689599.427910142,48986702.67157945,43628229,32080560.719999999,29151860.068475448]
[null,"corporate overheads",22449708.561887138,17149298.577390954,17180282.53551418,25466898.369798932,30035922.347357415,24911327.499054126,41557962.778393753,63015557,79395327,79342897.735650688]
[null,"Metering",0,0,0,0,0,0,0,"                                                                                -  ",0,0]
[null,"Public Lighting",0,0,0,0,0,0,0,"                                                                                -  ",0,0]
[]
[]
[]
[]
[]
[]
[null,"balancing tem"]
[null,"TOTAL OPEX",{"$f":"+SUM(C32:C46)","v":132717357.41049856},131077233.86701339,141589567.26233271,172943431.92649108,189694172.24785298,176856209.34199795,192393843.0462732,199755777.3019,215865237.68189999,228633893.76077104]
[]
[null,"2.1.3 - ALTERNATIVE CONTROL SERVICES CAPEX"]
[null,null,"EXPENDITURE ($0's)"]
[null,null,{"$f":"dms_y1","v":"2009"},{"$f":"dms_y2","v":2010},{"$f":"dms_y3","v":2011},{"$f":"dms_y4","v":2012},{"$f":"dms_y5","v":2013},{"$f":"dms_y6","v":2014},{"$f":"dms_y7","v":2015},{"$f":"dms_y8","v":2016},{"$f":"dms_y9","v":2017},{"$f":"dms_y10","v":2018}]
[null,"Connections"]
[null,"capitalised network overheads"]
[null,"capitalised corporate overheads"]
[null,"Metering"]
[null,"Public lighting"]
[null,"Fee and quoted"]
[]
[]
[]
[]
[]
[]
[]
[null,"TOTAL CAPEX",{"$f":"+SUM(C52:C64)","v":0},0,0,0,0,0,0,0,0,0]
[]
[null,"2.1.4 - ALTERNATIVE CONTROL SERVICES OPEX"]
[null,null,"EXPENDITURE ($0's)"]
[null,null,{"$f":"dms_y1","v":"2009"},{"$f":"dms_y2","v":2010},{"$f":"dms_y3","v":2011},{"$f":"dms_y4","v":2012},{"$f":"dms_y5","v":2013},{"$f":"dms_y6","v":2014},{"$f":"dms_y7","v":2015},{"$f":"dms_y8","v":2016},{"$f":"dms_y9","v":2017},{"$f":"dms_y10","v":2018}]
[null,"Connections"]
[null,"network overheads"]
[null,"corporate overheads"]
[null,"Metering"]
[null,"Public lighting"]
[null,"Fee and quoted"]
[]
[]
[]
[]
[]
[]
[]
[null,"TOTAL OPEX",{"$f":"+SUM(C70:C82)","v":0},0,0,0,0,0,0,0,0,0]
[]
[null,"2.1.5 - DUAL FUNCTION ASSETS CAPEX"]
[null,null,"EXPENDITURE ($0's)"]
[null,null,{"$f":"dms_y1","v":"2009"},{"$f":"dms_y2","v":2010},{"$f":"dms_y3","v":2011},{"$f":"dms_y4","v":2012},{"$f":"dms_y5","v":2013},{"$f":"dms_y6","v":2014},{"$f":"dms_y7","v":2015},{"$f":"dms_y8","v":2016},{"$f":"dms_y9","v":2017},{"$f":"dms_y10","v":2018}]
[null,"Replacement expenditure"]
[null,"Connections"]
[null,"Augmentation Expenditure"]
[null,"Non-network"]
[null,"Capitalised network overheads"]
[null,"Capitalised corporate overheads"]
[]
[]
[]
[]
[]
[]
[]
[null,"capcons (included in the above items)"]
[null,"TOTAL GROSS CAPEX (includes capcons)",{"$f":"+SUM(C88:C100)","v":0},0,{"$f":"+SUM(E88:E100)","v":0},{"$f":"+SUM(F88:F100)","v":0},0,0,0,0,0,0]
[]
[null,"2.1.6 - DUAL FUNCTION ASSETS OPEX"]
[null,null,"EXPENDITURE ($0's)"]
[null,null,{"$f":"dms_y1","v":"2009"},{"$f":"dms_y2","v":2010},{"$f":"dms_y3","v":2011},{"$f":"dms_y4","v":2012},{"$f":"dms_y5","v":2013},{"$f":"dms_y6","v":2014},{"$f":"dms_y7","v":2015},{"$f":"dms_y8","v":2016},{"$f":"dms_y9","v":2017},{"$f":"dms_y10","v":2018}]
[null,"Vegetation management"]
[null,"Maintenance"]
[null,"Emergency response"]
[null,"Non-network"]
[null,"network overheads"]
[null,"corporate overheads"]
[null,"Metering"]
[]
[]
[]
[]
[]
[]
[null,"TOTAL OPEX",{"$f":"SUM(C107:C119)","v":0},0,0,0,0,0,0,0,0,0]
[]
[null,"2.1.7 - STANDARD CONTROL SERVICES CAPCONS"]
[null,null,"EXPENDITURE ($0's)"]
[null,null,{"$f":"dms_y1","v":"2009"},{"$f":"dms_y2","v":2010},{"$f":"dms_y3","v":2011},{"$f":"dms_y4","v":2012},{"$f":"dms_y5","v":2013},{"$f":"dms_y6","v":2014},{"$f":"dms_y7","v":2015},{"$f":"dms_y8","v":2016},{"$f":"dms_y9","v":2017},{"$f":"dms_y10","v":2018}]
[null,"Replacement expenditure"]
[null,"Connections"]
[null,"Augmentation Expenditure"]
[null,"Non-network"]
[null,"capitalised network overheads"]
[null,"capitalised corporate overheads"]
[null,"Metering"]
[null,"Public Lighting"]
[]
[]
[]
[]
[]
[]
[]
[null,"TOTAL CAPCONS",{"$f":"+SUM(C125:C139)","v":0},0,0,0,{"$f":"+SUM(G125:G139)","v":0},0,0,0,0,0]
[]
[null,"2.1.8 - STANDARD CONTROL SERVICES CAPITALISED OVERHEADS"]
[null,null,"EXPENDITURE ($0's)"]
[null,null,{"$f":"dms_y1","v":"2009"},{"$f":"dms_y2","v":2010},{"$f":"dms_y3","v":2011},{"$f":"dms_y4","v":2012},{"$f":"dms_y5","v":2013},{"$f":"dms_y6","v":2014},{"$f":"dms_y7","v":2015},{"$f":"dms_y8","v":2016},{"$f":"dms_y9","v":2017},{"$f":"dms_y10","v":2018}]
[null,"Vegetation management"]
[null,"Maintenance"]
[null,"Emergency response"]
[null,"Non-network"]
[null,"Metering"]
[null,"Public Lighting"]
[]
[]
[]
[]
[]
[]
[null,"capcons (included in the above items)"]
[null,"TOTAL CAPITALISED OVERHEADS",{"$f":"+SUM(C145:C156)","v":0},{"$f":"+SUM(D145:D156)","v":0},0,0,0,0,0,0,0,0]

{"sheet":"2.2 Repex","index":8,"n_rows":147,"n_cols":14,"rows_kept":147,"cut":false,"hidden":false,"merged":[[61,1,76,1],[77,1,105,1],[106,1,119,1],[120,1,128,1],[129,1,136,1],[9,4,9,13],[11,1,30,1],[31,1,37,1],[44,1,52,1],[53,1,60,1],[38,1,43,1]]}
[null,{"$f":"INDEX(dms_Worksheet_List,MATCH(dms_Model,dms_Model_List))","v":"RECAST HISTORICAL CATEGORY ANALYSIS - CALENDAR YEARS"}]
[null,{"$f":"INDEX(dms_TradingNameFull_List,MATCH(dms_TradingName,dms_TradingName_List))","v":"Powercor Australia"}]
[null,{"$f":"dms_Header_Span","v":"2009 to 2018"}]
[null,"2.2 REPEX"]
[]
[null,"There are TWO tables on this worksheet. These tables have been 'grouped' (and sub-grouped) for ease of navigation.  See the Instructions sheet on how to group or ungroup tables. "]
[]
[null,"2.2.1 - REPLACEMENT EXPENDITURE, VOLUMES AND ASSET FAILURES BY ASSET CATEGORY"]
[null,"EXPENDITURE"]
[null,null,null,null,"EXPENDITURE ($0's)"]
[null,"ASSET GROUP","ASSET CATEGORY",null,{"$f":"dms_y1","v":"2009"},{"$f":"dms_y2","v":2010},{"$f":"dms_y3","v":2011},{"$f":"dms_y4","v":2012},{"$f":"dms_y5","v":2013},{"$f":"dms_y6","v":2014},{"$f":"dms_y7","v":2015},{"$f":"dms_y8","v":2016},{"$f":"dms_y9","v":2017},{"$f":"dms_y10","v":2018}]
[null,"POLES BY: \nHIGHEST OPERATING VOLTAGE ; MATERIAL TYPE","Staking of a wooden pole",null,511700,612200,710400,972800,1025200,1139461,663298,704606,848903.5,455084.15370487387]
[null,null,"˂ = 1 kV; Wood",null,1132620.7666890544,1594715.7747396757,2139213.0314101684,2582161.86227981,3354842.3402574081,3865057.9286828968,3104125,2249594,2295629.8475206154,1161275.9420944513]
[null,null,"> 1 kV & < = 11 kV; Wood",null,0,0,0,57706.936587448457,10635.728173408455,11976,0,8393,16706.25184654551,0]
[null,null,"˃ 11 kV & < = 22 kV; Wood",null,5177114.8541125301,4785547.8956470257,8870585.0566281062,8789180.8647160083,11615703.990128849,14136355.727643125,9914028,9124473,7647907.8572999313,4462377.3202334708]
[null,null,"> 22 kV & < = 66 kV; Wood",null,348343.25587639422,280863.69735855306,297137.00022548309,1001181.4296295842,714214.84047410008,683593.85038536019,638063,378010,483531.36327867594,417721.00407703873]
[null,null,"> 66 kV & < = 132 kV; Wood",null,0,0,0,0,0,0,0,"                          -  ",0,0]
[null,null,"> 132 kV; Wood",null,0,0,0,0,0,0,0,"                          -  ",0,0]
[null,null,"˂ = 1 kV; Concrete",null,267487.74809074018,133673.00105365273,346182.07833410584,213015.22098745985,246143.50072199921,262831.32611441083,171096.99999999997,217337,373658.4161666031,239811.18795986872]
[null,null,"> 1 kV & < = 11 kV; Concrete",null,0,0,0,0,0,0,0,"                          -  ",0,0]
[null,null,"˃ 11 kV & < = 22 kV; Concrete",null,1981308.5429614352,1056598.395959324,939740.79822786711,1384394.4394935952,1516988.2543508797,2902159.4709875793,1391415,1119346,1549184.2104510502,1815522.4615840975]
[null,null,"> 22 kV & < = 66 kV; Concrete",null,717475.08681085287,117991.62290116717,24631.527530918524,404730.88267003477,90002.897044727346,506610.46790659794,265292,239717,250860.5451251808,85938.254045030495]
[null,null,"> 66 kV & < = 132 kV; Concrete",null,0,0,0,0,0,0,0,"                          -  ",0,0]
[null,null,"> 132 kV; Concrete",null,0,0,0,0,0,0,0,"                          -  ",0,0]
[null,null,"˂ = 1 kV; Steel",null,29735.189758898799,38504.229268212723,35641.24671526983,67324.759352023204,63814.369040450743,47906,47221,16786,33412.503693091021,0]
[null,null,"> 1 kV & < = 11 kV; Steel",null,0,0,0,0,0,0,0,"                          -  ",0,0]
[null,null,"˃ 11 kV & < = 22 kV; Steel",null,0,0,0,0,0,0,0,"                          -  ",0,0]
[null,null,"> 22 kV & < = 66 kV; Steel",null,0,0,0,0,0,0,0,"                          -  ",0,0]
[null,null,"> 66 kV & < = 132 kV; Steel",null,0,0,0,0,0,0,0,"                          -  ",0,0]
[null,null,"> 132 kV; Steel",null,0,0,0,0,0,0,0,"                          -  ",0,0]
[null,null,"Other",null,97257.257480349625,100751.08369268838,179345.64486951745,87113.85298948799,149852.22938003787,253112,142568,135150,126098.00947932078,62787.700017632771]
[null,"POLE TOP STRUCTURES BY: \nHIGHEST OPERATING VOLTAGE","˂ = 1 kV",null,2375781.9573782715,5067701.8037163569,4216825.7124215662,6145169.2861687886,8202422.9784046803,7258089.7359752962,5516699,4321205,6601093.4555795137,5068299.6508357739]
[null,null,"> 1 kV & < = 11 kV",null,0,8234.4290405469601,5600,19400,3100,19654,9243,18561,41989.278738219167,0]
[null,null,"˃ 11 kV & < = 22 kV",null,5590982.3618086865,8505135.5632293187,12710766.230083805,13363793.103610165,12766433.893064514,13529385.475755636,10013786,9135854,8520508.4375940021,6271536.5013427176]
[null,null,"> 22 kV & < = 66 kV",null,379214.02124066424,343842.38076646032,728190.00816173584,1107973.9222116487,701680.72807596321,748290.15903535369,406844,294036,355774.82965113822,781744.00323288608]
[null,null,"> 66 kV & < = 132 kV",null,0,0,0,0,0,0,0,"                          -  ",0,0]
[null,null,"> 132 kV",null,0,0,0,0,0,0,0,"                          -  ",0,0]
[null,null,"Other",null,0,0,0,0,0,0,0,"                          -  ",0,0]
[null,"STAKING WOODEN POLES BY: \nHIGHEST OPERATING VOLTAGE","˂ = 1 Kv","for year wooden pole staked"]
[null,null,"> 1 kV & < = 11 kV","for year wooden pole staked"]
[null,null,"˃ 11 kV & < = 22 kV","for year wooden pole staked"]
[null,null,"> 22 kV & < = 66 kV","for year wooden pole staked"]
[null,null,"> 66 kV & < = 132 kV","for year wooden pole staked"]
[null,null,"> 132 kV","for year wooden pole staked"]
[null,"OVERHEAD CONDUCTORS BY: \nHIGHEST OPERATING VOLTAGE; NUMBER OF PHASES (AT HV)","˂ = 1 kV","per km",38300,49400,9500,270200,266100,570143.31953477068,317921,17656.100000000006,0,205978.23929269949]
[null,null,"> 1 kV & < = 11 kV","per km",0,0,0,0,0,0,0,"                          -  ",0,0]
[null,null,"˃ 11 kV & < = 22 kV  ; SWER","per km",0,8900,58800,0,209900,719155.03,0,1102149,1952498.918730071,912332.59751767491]
[null,null,"˃ 11 kV & < = 22 kV ; Single-Phase","per km",26200,101500,656900,826100,478100,370746.59783389856,533798.00000000012,504689.69,1158345.4094007281,1149708.5592999388]
[null,null,"˃ 11 kV & < = 22 kV ; Multiple-Phase","per km",261100,232300,492800,680000,2376400,1006228.6559739024,2078335,1854179.89,2229707.735652463,4114290.9452385069]
[null,null,"> 22 kV & < = 66 kV","per km",0,0,0,514400,0,1720215.09,3435327,2008467,1161447.9362167376,132667.89794387933]
[null,null,"> 66 kV & < = 132 kV","per km",0,0,0,0,0,0,0,"                          -  ",0,0]
[null,null,"> 132 kV","per km",0,0,0,0,0,0,0,"                          -  ",0,0]
[null,null,"Other","per km",0,0,0,0,0,0,0,"                          -  ",0,0]
[null,"UNDERGROUND CABLES BY: \nHIGHEST OPERATING VOLTAGE","˂ = 1 kV","per km",803161.79249999998,432801.79249999998,989101.79250000021,810691.79249999998,487831.79249999986,353504.45016605931,456908,-0.20999999997729901,-9.6321981982327998E-4,-0.48245494568254799]
[null,null,"> 1 kV & < = 11 kV","per km",0,0,0,0,0,0,0,"                          -  ",0,0]
[null,null,"> 11 kV & < = 22 kV","per km",563906.08440000005,505096.08439999999,412926.08439999999,517506.08439999999,1482576.0844000003,0,0,81396.354400000026,28640.045230748001,268206.59558629902]
[null,null,"> 22 kV & < = 33 kV","per km",0,0,0,0,0,0,0,"                          -  ",0,0]
[null,null,"> 33 kV & < = 66 kV","per km",0,0,0,0,0,0,111174,"                          -  ",0,0]
[null,null,"> 66 kV & < = 132 kV","per km",0,0,0,0,0,0,0,"                          -  ",0,0]
[null,null,">  132 kV","per km",0,0,0,0,0,0,0,"                          -  ",0,0]
[null,null,"Other","per km",0,0,0,0,0,0,0,"                          -  ",0,0]
[null,"SERVICE LINES BY: \nCONNECTION VOLTAGE; CUSTOMER TYPE; CONNECTION COMPLEXITY ","˂ = 11 kV ; Residential ; Simple Type","per number of spans",3709641.7106379163,3364132.2102109599,3698524.8909692713,4009047.9781351434,5891894.6585474946,4940371.7427460141,6684670.4399999995,3279274,4576693.9277627273,5973729.5936743617]
[null,null,"˂ = 11 kV ; Commercial & Industrial ; Simple Type","per number\n of spans",0,0,0,0,0,0,0,"                          -  ",0,0]
[null,null,"˂ = 11 kV ; Residential ; Complex Type","per number\n of spans",0,0,0,0,0,0,0,"                          -  ",0,0]
[null,null,"˂ = 11 kV ; Commercial & Industrial ; Complex Type","per number\n of spans",0,0,0,0,0,0,0,"                          -  ",0,0]
[null,null,"˂ = 11 kV ; Subdivision ; Complex Type","per number\n of spans",0,0,0,0,0,0,0,"                          -  ",0,0]
[null,null,"> 11 kV  & < = 22 kV ; Commercial & Industrial  ","per number\n of spans",0,0,0,0,0,0,0,"                          -  ",0,0]
[null,null,"> 11 kV  & < = 22 kV ; Subdivision  ","per number\n of spans",0,0,0,0,0,0,0,"                          -  ",0,0]
[null,null,"> 22 kV & < = 33 kV ; Commercial & Industrial  ","per number\n of spans",0,0,0,0,0,0,0,"                          -  ",0,0]
[null,null,"> 22 kV & < = 33 kV ; Subdivision  ","per number\n of spans",0,0,0,0,0,0,0,"                          -  ",0,0]
[null,null,"> 33 kV & < = 66 kV ; Commercial & Industrial  ","per number\n of spans",0,0,0,0,0,0,0,"                          -  ",0,0]
[null,null,"> 33 kV & < = 66 kV ; Subdivision  ","per number\n of spans",0,0,0,0,0,0,0,"                          -  ",0,0]
[null,null,"> 66 kV & < = 132 kV ; Commercial & Industrial  ","per number\n of spans",0,0,0,0,0,0,0,"                          -  ",0,0]
[null,null,"> 66 kV & < = 132 kV ; Subdivision  ","per number\n of spans",0,0,0,0,0,0,0,"                          -  ",0,0]
[null,null,"> 132 kV ; Commercial & Industrial  ","per number\n of spans",0,0,0,0,0,0,0,"                          -  ",0,0]
[null,null,"> 132 kV ; Subdivision  ","per number\n of spans",0,0,0,0,0,0,0,"                          -  ",0,0]
[null,null,"Other","per number\n of spans",0,0,0,0,0,0,0,"                          -  ",0,0]
[null,"TRANSFORMERS BY: \nMOUNTING TYPE; HIGHEST OPERATING VOLTAGE ; AMPERE RATING; NUMBER OF PHASES (AT LV)","Pole Mounted ; < = 22kV ;  < = 60 kVA ; Single Phase",null,1852852.6379562858,3325291.2321740445,2873165.1129187355,2751408.3789779632,2664874.9505279842,2372375.9669532892,2798669,1565401,1991111.9641535904,1994915.8771303531]
[null,null,"Pole Mounted ; < = 22kV ;  > 60 kVA and < = 600 kVA ; Single Phase",null,399283.5669812127,381023.47447548027,350173.27749701648,308680.26928382542,502789.71622108284,191264.04611216538,534082,128337,281146.96717762313,451014.62757396873]
[null,null,"Pole Mounted ; < = 22kV ;  > 600 kVA ; Single Phase",null,0,0,0,0,0,0,0,"                          -  ",0,0]
[null,null,"Pole Mounted ; < = 22kV ;  < = 60 kVA  ; Multiple Phase",null,230026.8376543154,379455.54570570664,396480.3029145883,297502.75040918938,278766.77926816384,267300.12502838956,240755,218923,440768.08284771431,461513.36475450126]
[null,null,"Pole Mounted ; < = 22kV ;  > 60 kVA and < = 600 kVA  ; Multiple Phase",null,1000662.9714837351,1588106.0534817618,1158121.0387203465,1683418.897337565,1748948.0125629164,1092981.3654849255,981517,1119412,1200518.8443254563,1929056.3533251258]
[null,null,"Pole Mounted ; < = 22kV ;  > 600 kVA  ; Multiple Phase",null,0,99022.883528678125,116352.2839205067,110141.45670659604,113597.33495380625,582408.58190874325,114137,"                          -  ",648733.65966633661,204599.34348956848]
[null,null,"Kiosk Mounted ; < = 22kV ;  < = 60 kVA ; Single Phase",null,0,0,0,0,0,49051,0,9951,0,0]
[null,null,"Kiosk Mounted ; < = 22kV ;  > 60 kVA and < = 600 kVA ; Single Phase",null,0,0,0,0,0,0,0,"                          -  ",0,0]
[null,null,"Kiosk Mounted ; < = 22kV ;  > 600 kVA ; Single Phase",null,0,0,0,0,0,0,0,"                          -  ",0,0]
[null,null,"Kiosk Mounted ; < = 22kV ;  < = 60 kVA  ; Multiple Phase",null,0,0,0,0,0,0,0,"                          -  ",0,0]
[null,null,"Kiosk Mounted ; < = 22kV ;  > 60 kVA and < = 600 kVA  ; Multiple Phase",null,537238.78389916674,264187.90679655469,791440.2676535534,820718.13433045917,1078817.8406884281,648210.11263355403,687694,785273,1014568.1475500454,1375973.4324281393]
[null,null,"Kiosk Mounted ; < = 22kV ;  > 600 kVA  ; Multiple Phase",null,0,302783.83188740362,116492.2839205067,0,114007.33495380623,100427.3719644621,89300,574776,113025.612654488,699360.46911573387]
[null,null,"Ground Outdoor / Indoor Chamber Mounted; ˂ 22 kV ;  < = 60 kVA ; Single Phase",null,0,21379.51991177442,25121.021345924346,0,0,0,0,"                          -  ",0,0]
[null,null,"Ground Outdoor / Indoor Chamber Mounted; ˂  22 kV ;  > 60 kVA  and < = 600 kVA ; Single Phase",null,0,0,0,0,0,0,0,"                          -  ",0,0]
[null,null,"Ground Outdoor / Indoor Chamber Mounted; ˂  22 kV ;  >  600 kVA ; Single Phase",null,0,0,0,0,0,0,0,4511,0,0]
[null,null,"Ground Outdoor / Indoor Chamber Mounted; ˂  22 kV ;  < = 60 kVA ; Multiple Phase",null,0,0,0,0,0,0,0,"                          -  ",0,0]
[null,null,"Ground Outdoor / Indoor Chamber Mounted; ˂  22 kV ;  > 60 kVA  and < = 600 kVA ; Multiple Phase",null,0,0,0,26290,0,0,49783,3311,3735.7896883016801,19724.491233568529]
[null,null,"Ground Outdoor / Indoor Chamber Mounted; ˂  22 kV ;  >  600 kVA ; Multiple Phase",null,22420,0,24720,169550,0,0,125530,113974,188449.68864298001,13198.649843816769]
[null,null,"Ground Outdoor / Indoor Chamber Mounted; > = 22 kV & < = 33 kV ;  < = 15 MVA",null,0,0,0,0,0,0,0,"                          -  ",0,0]
[null,null,"Ground Outdoor / Indoor Chamber Mounted; > = 22 kV & < = 33 kV ;  > 15 MVA and < = 40 MVA",null,0,0,0,0,0,0,0,"                          -  ",0,0]
[null,null,"Ground Outdoor / Indoor Chamber Mounted; > = 22 kV & < = 33 kV ;  > 40 MVA",null,0,0,0,0,0,0,0,"                          -  ",0,0]
[null,null,"Ground Outdoor / Indoor Chamber Mounted; > 33 kV & < = 66 kV ;  < = 15 MVA",null,6360,118310,134930,100140,34000,10550,987084,18454,36901.303359622434,6612.7604902416142]
[null,null,"Ground Outdoor / Indoor Chamber Mounted; > 33 kV & < = 66 kV ;  > 15 MVA and < = 40 MVA",null,67320,1510210,911350,552410,2476210,1356631,130050.00000000001,26086,462491.77953415498,42870.922206605821]
[null,null,"Ground Outdoor / Indoor Chamber Mounted; > 33 kV & < = 66 kV ;  > 40 MVA",null,23420,7920,0,0,0,0,0,"                          -  ",0,0]
[null,null,"Ground Outdoor / Indoor Chamber Mounted; > 66 kV & < = 132 kV ;  < = 100 MVA",null,0,0,0,0,0,0,0,"                          -  ",0,0]
[null,null,"Ground Outdoor / Indoor Chamber Mounted; > 66 kV & < = 132 kV ;  > 100 MVA",null,0,0,0,0,0,0,0,"                          -  ",0,0]
[null,null,"Ground Outdoor / Indoor Chamber Mounted; > 132 kV ;  < = 100 MVA",null,0,0,0,0,0,0,0,"                          -  ",0,0]
[null,null,"Ground Outdoor / Indoor Chamber Mounted; > 132 kV ;  > 100 MVA",null,0,0,0,0,0,0,0,"                          -  ",0,0]
[null,null,"Other",null,583961.49631022022,1054377.3957216754,105460.25477372546,852426.81032315525,347772.56899426947,1011941.0934785071,658086,346052,135199.12820709471,636649.78429115587]
[null,"SWITCHGEAR BY: \nHIGHEST OPERATING VOLTAGE ; SWITCH FUNCTION","˂ = 11 kV ;  FUSE",null,0,0,0,0,0,0,0,"                          -   ",0,0]
[null,null,"˂ = 11 kV  ; Switch",null,0,0,0,0,32870,0,0,38674,132993.48540400801,14628.124594937948]
[null,null,"˂ = 11 kV ;  Circuit Breaker",null,0,0,0,0,0,0,0,"                          -  ",0,0]
[null,null,"> 11 kV & < = 22 kV  ; Switch",null,1026471.7238771571,825845.93449972663,1139388.6581856348,1481352.6125081899,1347331.0187768969,601134.59821381711,932848,507151,760782.8468848241,2832108.0785190086]
[null,null,"> 11 kV & < = 22 kV  ; Circuit Breaker",null,805080,1819400,2735140,4705600,4192850.0000000005,647051,61172,-156,11546.002494931288,499.15419363150585]
[null,null,"> 22 kV & < = 33 kV ; Switch",null,0,0,0,0,0,0,0,74253,168663.15070418624,560155.30140398163]
[null,null,"> 22 kV & < = 33 kV ; Circuit Breaker",null,0,0,0,0,0,0,0,"                          -  ",0,0]
[null,null,"> 33 kV & < = 66 kV ; Switch",null,0,0,415550,79880,168300,0,0,"                          -  ",31011.990172336104,0]
[null,null,"> 33 kV & < = 66 kV ; Circuit Breaker",null,0,91290,67150,176930,682350,2149092,303465,66813,262716.77919642301,562063.50563658145]
[null,null,"> 66 kV & < = 132 kV ; Switch",null,0,0,0,0,0,0,0,"                          -  ",0,0]
[null,null,"> 66 kV & < = 132 kV  ; Circuit Breaker",null,0,0,0,0,0,0,0,"                          -  ",0,0]
[null,null,"> 132 kV ; Switch",null,0,0,0,0,0,0,0,"                          -  ",0,0]
[null,null,"> 132 kV ; Circuit Breaker",null,0,0,0,0,0,0,0,"                          -  ",0,0]
[null,null,"Other",null,2972600.4245604728,3773853.7192297303,5105983.117558579,4992911.8818777027,9150535.4003440421,10559935.832014704,6165449,3120311,5670343.3028232977,6836649.7771024117]
[null,"PUBLIC LIGHTING BY: \nASSET TYPE ; LIGHTING OBLIGATION","Luminaires ;  Major Road",null,173583.77142857143,208709.63885714288,169076.77188571432,194022.47516562583,286582.85555558407,524000,219657.6084456325,351219,175030.15437003775,458608.68280448864]
[null,null,"Luminaires ;  Minor Road",null,332475.15428571426,370180.29897142859,290259.78400914295,228539.20013359902,334310.41409213957,1250100,826922.06651149027,767606,778007.80535295967,1513833.8011718832]
[null,null,"Brackets ; Major Road",null,13268.571428571429,24204.342857142859,16844.914285714287,34328.153013677424,48311.699304959999,59300,67237.107910766383,29453,37682.601752073184,119726.19553970841]
[null,null,"Brackets ; Minor Road",null,1342.2857142857142,1290.4457142857145,2188.7218285714284,1822.1493107612907,5597.5250403071996,0,32310.970326143171,131236,62386.547374668546,168110.63305224417]
[null,null,"Lamps ; Major Road",null,0,0,0,0,0,0,0,"                          -  ",0,0]
[null,null,"Lamps ; Minor Road",null,0,0,0,0,0,0,0,"                          -  ",0,0]
[null,null,"Poles / Columns ; Major Road",null,330387.85714285716,652745.7142857142,396679.45142857142,936684.20600774186,1223118.8854016,1397500,552398.13357268984,368123,331075.11799342535,726011.37131958012]
[null,null,"Poles / Columns ; Minor Road",null,133542.85714285713,270269.71428571432,161087.29142857145,361221.66090116126,536379.11619264004,702400,188609.71060068111,1447455,660208.27050368953,747782.68628160853]
[null,null,"Other",null,33899.416294996226,55915.32917093204,102057.70067354997,60381.194515218871,99641.213884115583,20500,6909,1534,0,0]
[null,"SCADA, NETWORK CONTROL AND PROTECTION SYSTEMS BY: \nFUNCTION","Field Devices",null,2528000,2647000,1900000,2301000,1716000,1063500,2271490.5499999998,2002228,2347384.19,1027937.44]
[null,null,"Local Network Wiring Assets",null,0,0,0,0,0,0,0,"                          -  ",0,0]
[null,null,"Communications Network Assets",null,0,0,0,0,0,0,0,"                          -  ",0,0]
[null,null,"Master Station Assets",null,0,0,0,0,0,0,0,"                          -  ",0,0]
[null,null,"Communications Site Infrastructure",null,0,0,0,0,0,0,0,"                          -  ",0,0]
[null,null,"Communications Linear Assets",null,0,0,0,0,0,0,0,"                          -  ",0,0]
[null,null,"AFLC",null,0,0,0,0,0,0,0,"                          -  ",0,0]
[null,null,"Other",null,-700,39600,1907790.0499999998,1942043.9500000002,14325.850000000004,178453.7,0,"                          -  ",0,0]
[null,"OTHER BY: \nDNSP DEFINED","RECOVERABLE WORK - FAULTS",null,1265200,1352200,0,0,0,0,0,"                          -  ",0,0]
[null,null,"POLE CHEMICAL TREATMENT",null,2069199.9999999998,1908900,2124512,2266420,1793392.8,2027625,1841737.32,1954328,2132026,0]
[null,null,"PLANT AND STATIONS MISCELLANEOUS",null,1019434.5974934256,606001.25555035903,1565703.709181054,1694752.2250488463,4034543.2870942559,941640.4987,2779193.1036999999,2407120.1036999999,2448352.8431287771,1257805.3336850493]
[null,null,"MAJOR ZONE SUBSTATION REPLACEMENT WORKS",null,613710,493510,696860,977310,679980,4803361,3240220,1285383,58115.74880696839,611460.19587318588]
[null,null,"TV INTEREFERENCE RELATED EXPENDITURE",null,306100,338100,100867.56999999999,108197.34999999999,134499.53,40909.86,8421,4189,0,11538.870000000003]
[null,null,"ENVIRONMENTAL RELATED REPLACEMENT EXPENDITURE",null,141700,292500,132077.66999999998,191347.23,288367.13,172936.09,49642.850000000006,-159708,0,37718]
[null,null,"BUSHFIRE MITIGATION RELATED REPLACEMENT EXPENDITURE",null,118700,137200,87099.07,54019.45,24096.69,93530.89,19688.88,1051,0,0]
[null,null,"LINES MISCELLANEOUS ",null,2971500,1874100,1833377.8830779537,81580.616428538386,4344347.0739207705,4291129.7260155212,2172390.23,651606,1717383.4499999997,1613850.7500000002]
[null,null,"VBRC SWER ACRs",null,0,0,0,7599464.0099999998,550393.30875280942,0,1214947.1232195045,2935254,5401044.9696634691,9612763.1758524906]
[null,null,"POLES / COLUMNS ; MAJOR ROAD - Standard Control Service",null,0,0,0,0,0,22017,0,"                          -  ",0,0]

{"sheet":"2.3(a) Augex","index":9,"n_rows":130,"n_cols":34,"rows_kept":130,"cut":false,"hidden":false,"merged":[[73,5,74,5],[6,1,6,3],[12,21,12,22],[11,11,11,22],[13,17,13,19],[73,11,73,13],[73,14,73,16],[72,1,72,10],[73,1,74,1],[73,2,74,2],[73,3,74,3],[73,4,74,4],[73,6,74,6],[12,3,13,3],[12,4,13,4],[12,5,13,5],[74,7,74,10],[73,7,73,10],[72,11,72,22],[73,17,73,19],[73,21,73,22],[72,23,72,24],[72,25,74,25],[72,26,74,26],[72,30,72,31],[74,23,74,24],[74,27,74,29],[74,30,74,31],[72,29,73,29],[72,27,72,28],[11,30,11,31],[11,23,11,24],[11,25,13,25],[11,26,13,26],[11,27,11,28],[11,29,12,29],[13,30,13,31],[12,1,13,1],[12,2,13,2],[13,27,13,29],[12,6,13,6],[12,16,12,19],[13,23,13,24],[12,7,12,8],[12,9,12,10],[12,11,12,13],[12,14,12,15]]}
[null,{"$f":"INDEX(dms_Worksheet_List,MATCH(dms_Model,dms_Model_List))","v":"RECAST HISTORICAL CATEGORY ANALYSIS - CALENDAR YEARS"}]
[null,{"$f":"INDEX(dms_TradingNameFull_List,MATCH(dms_TradingName,dms_TradingName_List))","v":"Powercor Australia"}]
[null,{"$f":"dms_Header_Span","v":"2009 to 2018"}]
[null,"2.3 AUGEX PROJECT DATA"]
[]
[]
[null,"There are TWO tables on this worksheet - each has been 'grouped' (and sub-grouped) for easy navigation.  Both rows and columns have been grouped. See the Instructions sheet on how to group or ungroup tables. "]
[]
[null,"2.3.1 - AUGEX ASSET DATA - SUBTRANSMISSION SUBSTATIONS, SWITCHING STATIONS AND ZONE SUBSTATIONS"]
[null,"NOTE: DNSP MUST PROVIDE EXPENDITURE INFORMATION ON A PROJECT CLOSE BASIS. "]
[null,"AUG231_1","AUG231_2","AUG231_3","AUG231_4","AUG231_5","AUG231_6","ED_AUG231_00001","ED_AUG231_00002","ED_AUG231_00003","ED_AUG231_00004","ED_AUG231_00005","ED_AUG231_00006","ED_AUG231_00007","ED_AUG231_00008","ED_AUG231_00009","ED_AUG231_00010","ED_AUG231_00011",null,null,"ED_AUG231_00012","ED_AUG231_00013","ED_AUG231_00014","ED_AUG231_00015","ED_AUG231_00016","ED_AUG231_00017","ED_AUG231_00018","ED_AUG231_00019","ED_AUG231_00020","ED_AUG231_00021","ED_AUG231_00022","ED_AUG231_00023"]
[null,"PROJECT DESCRIPTION AND CHANGES",null,null,null,null,null,null,null,null,null,"PLANT AND EQUIPMENT EXPENDITURE AND VOLUME",null,null,null,null,null,null,null,null,null,null,null,"OTHER EXPENDITURE",null,"TOTAL DIRECT EXPENDITURE ($0's)","YEARS INCURRED","ALL RELATED PARTY CONTRACTS",null,"ALL NON RELATED PARTYCONTRACTS","LAND AND EASEMENTS"]
[null,"SUBSTATION ID","SUBSTATION TYPE\n(drop down)","PROJECT ID","PROJECT TYPE\n(drop down)","PROJECT TRIGGER\n(drop down)","VOLTAGE (KV)","SUBSTATION RATING\nNORMAL CYCLIC\n(MVA)",null,"SUBSTATION RATING\nN-1 EMERGENCY\n(MVA)",null,"TRANSFORMERS",null,null,"SWITCHGEAR",null,"CAPACITORS",null,null,null,"OTHER PLANT ITEM","INSTALLATION (LABOUR)",null,"CIVIL WORKS","OTHER DIRECT",null,null,"RELATED PARTY MARGINS","TOTAL",null,"LAND PURCHASE","EASEMENTS"]
[null,null,null,null,null,null,null,"PRE","POST","PRE","POST","UNITS ADDED ","MVA ADDED","EXPENDITURE ($0's)","UNITS ADDED ","EXPENDITURE ($0's)","MVAR ADDED","EXPENDITURE ($0's)",null,null,"EXPENDITURE ($0's)","VOLUME","EXPENDITURE ($0's)","EXPENDITURE ($0's)",null,null,null,"EXPENDITURE ($0's)",null,null,"EXPENDITURE ($0's)"]
[null,null,null,null,null,null,null,null,null,null,null,null,null,null,null,null,null,null,null,null,null,null,null,null,null,{"$f":"SUM(N15,P15,R15,U15,W15,X15,Y15)","v":0}]
[null,null,null,null,null,null,null,null,null,null,null,null,null,null,null,null,null,null,null,null,null,null,null,null,null,0]
[null,null,null,null,null,null,null,null,null,null,null,null,null,null,null,null,null,null,null,null,null,null,null,null,null,0]
[null,null,null,null,null,null,null,null,null,null,null,null,null,null,null,null,null,null,null,null,null,null,null,null,null,0]
[null,null,null,null,null,null,null,null,null,null,null,null,null,null,null,null,null,null,null,null,null,null,null,null,null,0]
[null,null,null,null,null,null,null,null,null,null,null,null,null,null,null,null,null,null,null,null,null,null,null,null,null,0]
[null,null,null,null,null,null,null,null,null,null,null,null,null,null,null,null,null,null,null,null,null,null,null,null,null,0]
[null,null,null,null,null,null,null,null,null,null,null,null,null,null,null,null,null,null,null,null,null,null,null,null,null,0]
[null,null,null,null,null,null,null,null,null,null,null,null,null,null,null,null,null,null,null,null,null,null,null,null,null,0]
[null,null,null,null,null,null,null,null,null,null,null,null,null,null,null,null,null,null,null,null,null,null,null,null,null,0]
[null,null,null,null,null,null,null,null,null,null,null,null,null,null,null,null,null,null,null,null,null,null,null,null,null,0]
[null,null,null,null,null,null,null,null,null,null,null,null,null,null,null,null,null,null,null,null,null,null,null,null,null,0]
[null,null,null,null,null,null,null,null,null,null,null,null,null,null,null,null,null,null,null,null,null,null,null,null,null,0]
[null,null,null,null,null,null,null,null,null,null,null,null,null,null,null,null,null,null,null,null,null,null,null,null,null,0]
[null,null,null,null,null,null,null,null,null,null,null,null,null,null,null,null,null,null,null,null,null,null,null,null,null,0]
[null,null,null,null,null,null,null,null,null,null,null,null,null,null,null,null,null,null,null,null,null,null,null,null,null,0]
[null,null,null,null,null,null,null,null,null,null,null,null,null,null,null,null,null,null,null,null,null,null,null,null,null,0]
[null,null,null,null,null,null,null,null,null,null,null,null,null,null,null,null,null,null,null,null,null,null,null,null,null,0]
[null,null,null,null,null,null,null,null,null,null,null,null,null,null,null,null,null,null,null,null,null,null,null,null,null,0]
[null,null,null,null,null,null,null,null,null,null,null,null,null,null,null,null,null,null,null,null,null,null,null,null,null,0]
[null,null,null,null,null,null,null,null,null,null,null,null,null,null,null,null,null,null,null,null,null,null,null,null,null,0]
[null,null,null,null,null,null,null,null,null,null,null,null,null,null,null,null,null,null,null,null,null,null,null,null,null,0]
[null,null,null,null,null,null,null,null,null,null,null,null,null,null,null,null,null,null,null,null,null,null,null,null,null,0]
[null,null,null,null,null,null,null,null,null,null,null,null,null,null,null,null,null,null,null,null,null,null,null,null,null,0]
[null,null,null,null,null,null,null,null,null,null,null,null,null,null,null,null,null,null,null,null,null,null,null,null,null,0]
[null,null,null,null,null,null,null,null,null,null,null,null,null,null,null,null,null,null,null,null,null,null,null,null,null,0]
[null,null,null,null,null,null,null,null,null,null,null,null,null,null,null,null,null,null,null,null,null,null,null,null,null,0]
[null,null,null,null,null,null,null,null,null,null,null,null,null,null,null,null,null,null,null,null,null,null,null,null,null,0]
[null,null,null,null,null,null,null,null,null,null,null,null,null,null,null,null,null,null,null,null,null,null,null,null,null,0]
[null,null,null,null,null,null,null,null,null,null,null,null,null,null,null,null,null,null,null,null,null,null,null,null,null,0]
[null,null,null,null,null,null,null,null,null,null,null,null,null,null,null,null,null,null,null,null,null,null,null,null,null,0]
[null,null,null,null,null,null,null,null,null,null,null,null,null,null,null,null,null,null,null,null,null,null,null,null,null,0]
[null,null,null,null,null,null,null,null,null,null,null,null,null,null,null,null,null,null,null,null,null,null,null,null,null,{"$f":"SUM(N47,P47,R47,U47,W47,X47,Y47)","v":0}]
[null,null,null,null,null,null,null,null,null,null,null,null,null,null,null,null,null,null,null,null,null,null,null,null,null,0]
[null,null,null,null,null,null,null,null,null,null,null,null,null,null,null,null,null,null,null,null,null,null,null,null,null,0]
[null,null,null,null,null,null,null,null,null,null,null,null,null,null,null,null,null,null,null,null,null,null,null,null,null,0]
[null,null,null,null,null,null,null,null,null,null,null,null,null,null,null,null,null,null,null,null,null,null,null,null,null,0]
[null,null,null,null,null,null,null,null,null,null,null,null,null,null,null,null,null,null,null,null,null,null,null,null,null,0]
[null,null,null,null,null,null,null,null,null,null,null,null,null,null,null,null,null,null,null,null,null,null,null,null,null,0]
[null,null,null,null,null,null,null,null,null,null,null,null,null,null,null,null,null,null,null,null,null,null,null,null,null,0]
[null,null,null,null,null,null,null,null,null,null,null,null,null,null,null,null,null,null,null,null,null,null,null,null,null,0]
[null,null,null,null,null,null,null,null,null,null,null,null,null,null,null,null,null,null,null,null,null,null,null,null,null,0]
[null,null,null,null,null,null,null,null,null,null,null,null,null,null,null,null,null,null,null,null,null,null,null,null,null,0]
[null,null,null,null,null,null,null,null,null,null,null,null,null,null,null,null,null,null,null,null,null,null,null,null,null,0]
[null,null,null,null,null,null,null,null,null,null,null,null,null,null,null,null,null,null,null,null,null,null,null,null,null,0]
[null,null,null,null,null,null,null,null,null,null,null,null,null,null,null,null,null,null,null,null,null,null,null,null,null,0]
[null,null,null,null,null,null,null,null,null,null,null,null,null,null,null,null,null,null,null,null,null,null,null,null,null,0]
[null,null,null,null,null,null,null,null,null,null,null,null,null,null,null,null,null,null,null,null,null,null,null,null,null,0]
[null,null,null,null,null,null,null,null,null,null,null,null,null,null,null,null,null,null,null,null,null,null,null,null,null,0]
[null,null,null,null,null,null,null,null,null,null,null,null,null,null,null,null,null,null,null,null,null,null,null,null,null,0]
[null,null,null,null,null,null,null,null,null,null,null,null,null,null,null,null,null,null,null,null,null,null,null,null,null,0]
[null,null,null,null,null,null,null,null,null,null,null,null,null,null,null,null,null,null,null,null,null,null,null,null,null,0]
[null,null,null,"Non material projects - [actual]"]
[]
[]
[null,"AUG232_1","AUG232_2","AUG232_3","AUG232_4","AUG232_5","AUG232_6","ED_AUG232_00001","ED_AUG232_00002","ED_AUG232_00003","ED_AUG232_00004","ED_AUG232_00005","ED_AUG232_00006","ED_AUG232_00007","ED_AUG232_00008","ED_AUG232_00009","ED_AUG232_00010","ED_AUG232_00011","ED_AUG232_00012","ED_AUG232_00013","ED_AUG232_00014","ED_AUG232_00015","ED_AUG232_00016","ED_AUG232_00017","ED_AUG232_00018","ED_AUG232_00019","ED_AUG232_00020","ED_AUG232_00021"]
[null,"2.3.2 - AUGEX ASSET DATA - SUBTRANSMISSION LINES"]
[null,"NOTE: DNSP MUST PROVIDE EXPENDITURE INFORMATION ON A PROJECT CLOSE BASIS."]
[null,"PROJECT DESCRIPTION AND CHANGES",null,null,null,null,null,null,null,null,null,"PLANT AND EQUIPMENT EXPENDITURE AND VOLUME",null,null,null,null,null,null,null,null,null,null,null,"OTHER EXPENDITURE",null,"TOTAL DIRECT EXPENDITURE ($0's)","YEARS INCURRED","ALL RELATED PARTY CONTRACTS",null,"ALL NON RELATED PARTYCONTRACTS","LAND AND EASEMENTS"]
[null,"LINE ID","PROJECT ID","PROJECT TYPE","PROJECT TRIGGER","PROJECT TRIGGER\n(drop down)","VOLTAGE (KV)","ROUTE LINE LENGTH ADDED",null,null,null,"POLES/TOWERS (INCLUDING STRUCTURES, AND CIVIL WORKS)",null,null,"OVERHEAD LINES",null,null,"UNDERGROUND CABLES",null,null,"OTHER PLANT ITEM","INSTALLATION (LABOUR)",null,"CIVIL WORKS","OTHER DIRECT",null,null,"RELATED PARTY MARGINS","TOTAL",null,"LAND PURCHASE","EASEMENTS"]
[null,null,null,null,null,null,null,"KM ADDED",null,null,null,"POLES/TOWERS ADDED","POLES/TOWERS UPGRADED","EXPENDITURE ($0's)","CIRCUIT KM ADDED","CIRCUIT KM UPGRADED","EXPENDITURE ($0's)","CIRCUIT KM ADDED","CIRCUIT KM UPGRADED","EXPENDITURE ($0's)","EXPENDITURE ($0's)","VOLUME","EXPENDITURE ($0's)","EXPENDITURE ($0's)",null,null,null,"EXPENDITURE ($0's)",null,null,"EXPENDITURE ($0's)"]
[null,null,null,null,null,null,null,null,null,null,null,null,null,null,null,null,null,null,null,null,null,null,null,null,null,{"$f":"SUM(N76,Q76,T76,U76,W76,X76,Y76)","v":0},null,null,null,null,null,null,null,"New line on new route - single circuit"]
[null,null,null,null,null,null,null,null,null,null,null,null,null,null,null,null,null,null,null,null,null,null,null,null,null,0,null,null,null,null,null,null,null,"New line on new route - dual circuit"]
[null,null,null,null,null,null,null,null,null,null,null,null,null,null,null,null,null,null,null,null,null,null,null,null,null,0,null,null,null,null,null,null,null,"New line on new route - other"]
[null,null,null,null,null,null,null,null,null,null,null,null,null,null,null,null,null,null,null,null,null,null,null,null,null,0,null,null,null,null,null,null,null,"Line rebuild over existing route - single circuit"]
[null,null,null,null,null,null,null,null,null,null,null,null,null,null,null,null,null,null,null,null,null,null,null,null,null,0,null,null,null,null,null,null,null,"Line rebuild over existing route - dual circuit"]
[null,null,null,null,null,null,null,null,null,null,null,null,null,null,null,null,null,null,null,null,null,null,null,null,null,0,null,null,null,null,null,null,null,"Reconductor - Single circuit"]
[null,null,null,null,null,null,null,null,null,null,null,null,null,null,null,null,null,null,null,null,null,null,null,null,null,0,null,null,null,null,null,null,null,"Reconductor - Dual circuit"]
[null,null,null,null,null,null,null,null,null,null,null,null,null,null,null,null,null,null,null,null,null,null,null,null,null,0,null,null,null,null,null,null,null,"Reconductor - Other"]
[null,null,null,null,null,null,null,null,null,null,null,null,null,null,null,null,null,null,null,null,null,null,null,null,null,0,null,null,null,null,null,null,null,"Line upgrade - raising/retensoring"]
[null,null,null,null,null,null,null,null,null,null,null,null,null,null,null,null,null,null,null,null,null,null,null,null,null,0,null,null,null,null,null,null,null,"Line upgrade - voltage upgrade"]
[null,null,null,null,null,null,null,null,null,null,null,null,null,null,null,null,null,null,null,null,null,null,null,null,null,0,null,null,null,null,null,null,null,"Line upgrade - capacity"]
[null,null,null,null,null,null,null,null,null,null,null,null,null,null,null,null,null,null,null,null,null,null,null,null,null,0,null,null,null,null,null,null,null,"String spare circuit"]
[null,null,null,null,null,null,null,null,null,null,null,null,null,null,null,null,null,null,null,null,null,null,null,null,null,0,null,null,null,null,null,null,null,"Other"]
[null,null,null,null,null,null,null,null,null,null,null,null,null,null,null,null,null,null,null,null,null,null,null,null,null,0]
[null,null,null,null,null,null,null,null,null,null,null,null,null,null,null,null,null,null,null,null,null,null,null,null,null,0]
[null,null,null,null,null,null,null,null,null,null,null,null,null,null,null,null,null,null,null,null,null,null,null,null,null,0]
[null,null,null,null,null,null,null,null,null,null,null,null,null,null,null,null,null,null,null,null,null,null,null,null,null,0]
[null,null,null,null,null,null,null,null,null,null,null,null,null,null,null,null,null,null,null,null,null,null,null,null,null,0]
[null,null,null,null,null,null,null,null,null,null,null,null,null,null,null,null,null,null,null,null,null,null,null,null,null,0]
[null,null,null,null,null,null,null,null,null,null,null,null,null,null,null,null,null,null,null,null,null,null,null,null,null,0]
[null,null,null,null,null,null,null,null,null,null,null,null,null,null,null,null,null,null,null,null,null,null,null,null,null,0]
[null,null,null,null,null,null,null,null,null,null,null,null,null,null,null,null,null,null,null,null,null,null,null,null,null,0]
[null,null,null,null,null,null,null,null,null,null,null,null,null,null,null,null,null,null,null,null,null,null,null,null,null,0]
[null,null,null,null,null,null,null,null,null,null,null,null,null,null,null,null,null,null,null,null,null,null,null,null,null,0]
[null,null,null,null,null,null,null,null,null,null,null,null,null,null,null,null,null,null,null,null,null,null,null,null,null,0]
[null,null,null,null,null,null,null,null,null,null,null,null,null,null,null,null,null,null,null,null,null,null,null,null,null,0]
[null,null,null,null,null,null,null,null,null,null,null,null,null,null,null,null,null,null,null,null,null,null,null,null,null,0]
[null,null,null,null,null,null,null,null,null,null,null,null,null,null,null,null,null,null,null,null,null,null,null,null,null,0]
[null,null,null,null,null,null,null,null,null,null,null,null,null,null,null,null,null,null,null,null,null,null,null,null,null,0]
[null,null,null,null,null,null,null,null,null,null,null,null,null,null,null,null,null,null,null,null,null,null,null,null,null,0]
[null,null,null,null,null,null,null,null,null,null,null,null,null,null,null,null,null,null,null,null,null,null,null,null,null,0]
[null,null,null,null,null,null,null,null,null,null,null,null,null,null,null,null,null,null,null,null,null,null,null,null,null,0]
[null,null,null,null,null,null,null,null,null,null,null,null,null,null,null,null,null,null,null,null,null,null,null,null,null,{"$f":"SUM(N108,Q108,T108,U108,W108,X108,Y108)","v":0}]
[null,null,null,null,null,null,null,null,null,null,null,null,null,null,null,null,null,null,null,null,null,null,null,null,null,0]
[null,null,null,null,null,null,null,null,null,null,null,null,null,null,null,null,null,null,null,null,null,null,null,null,null,0]
[null,null,null,null,null,null,null,null,null,null,null,null,null,null,null,null,null,null,null,null,null,null,null,null,null,0]
[null,null,null,null,null,null,null,null,null,null,null,null,null,null,null,null,null,null,null,null,null,null,null,null,null,0]
[null,null,null,null,null,null,null,null,null,null,null,null,null,null,null,null,null,null,null,null,null,null,null,null,null,0]
[null,null,null,null,null,null,null,null,null,null,null,null,null,null,null,null,null,null,null,null,null,null,null,null,null,0]
[null,null,null,null,null,null,null,null,null,null,null,null,null,null,null,null,null,null,null,null,null,null,null,null,null,0]
[null,null,null,null,null,null,null,null,null,null,null,null,null,null,null,null,null,null,null,null,null,null,null,null,null,0]
[null,null,null,null,null,null,null,null,null,null,null,null,null,null,null,null,null,null,null,null,null,null,null,null,null,0]
[null,null,null,null,null,null,null,null,null,null,null,null,null,null,null,null,null,null,null,null,null,null,null,null,null,0]
[null,null,null,null,null,null,null,null,null,null,null,null,null,null,null,null,null,null,null,null,null,null,null,null,null,0]
[null,null,null,null,null,null,null,null,null,null,null,null,null,null,null,null,null,null,null,null,null,null,null,null,null,0]
[null,null,null,null,null,null,null,null,null,null,null,null,null,null,null,null,null,null,null,null,null,null,null,null,null,0]
[null,null,null,null,null,null,null,null,null,null,null,null,null,null,null,null,null,null,null,null,null,null,null,null,null,0]
[null,null,null,null,null,null,null,null,null,null,null,null,null,null,null,null,null,null,null,null,null,null,null,null,null,0]
[null,null,null,null,null,null,null,null,null,null,null,null,null,null,null,null,null,null,null,null,null,null,null,null,null,0]
[null,null,null,null,null,null,null,null,null,null,null,null,null,null,null,null,null,null,null,null,null,null,null,null,null,0]
[null,null,null,null,null,null,null,null,null,null,null,null,null,null,null,null,null,null,null,null,null,null,null,null,null,0]
[null,null,null,null,null,null,null,null,null,null,null,null,null,null,null,null,null,null,null,null,null,null,null,null,null,0]
[null,null,null,null,null,null,null,null,null,null,null,null,null,null,null,null,null,null,null,null,null,null,null,null,null,0]
[null,null,null,null,null,null,null,null,null,null,null,null,null,null,null,null,null,null,null,null,null,null,null,null,null,0]
[null,null,"Non material projects - [actual]"]

{"sheet":"2.3(b) Augex","index":10,"n_rows":36,"n_cols":13,"rows_kept":36,"cut":false,"hidden":false,"merged":[[5,1,5,2],[10,3,10,12],[25,3,25,12],[10,1,11,2],[25,1,26,2]]}
[null,{"$f":"INDEX(dms_Worksheet_List,MATCH(dms_Model,dms_Model_List))","v":"RECAST HISTORICAL CATEGORY ANALYSIS - CALENDAR YEARS"}]
[null,{"$f":"INDEX(dms_TradingNameFull_List,MATCH(dms_TradingName,dms_TradingName_List))","v":"Powercor Australia"}]
[null,{"$f":"dms_Header_Span","v":"2009 to 2018"}]
[null,"2.3 AUGEX  PROJECT DATA"]
[]
[null,"There are FOUR tables on this worksheet. These tables have been 'grouped' (and sub-grouped) for easy navigation.  See the Instructions sheet on how to group or ungroup tables. "]
[]
[null,"NOTE: DNSP MUST PROVIDE EXPENDITURE INFORMATION ON AN AS INCURRED BASIS."]
[null,"2.3.3 - AUGEX DATA - HV/LV FEEDERS AND DISTRIBUTION SUBSTATIONS"]
[null,"COST METRICS"]
[null,"TOTAL DIRECT EXPENDITURE - Project Type",null,"EXPENDITURE\n($0's)"]
[null,null,null,{"$f":"dms_y1","v":"2009"},{"$f":"dms_y2","v":2010},{"$f":"dms_y3","v":2011},{"$f":"dms_y4","v":2012},{"$f":"dms_y5","v":2013},{"$f":"dms_y6","v":2014},{"$f":"dms_y7","v":2015},{"$f":"dms_y8","v":2016},{"$f":"dms_y9","v":2017},{"$f":"dms_y10","v":2018}]
[null,"HV Feeder Augmentations - Overhead Lines"]
[null,"HV Feeder Augmentations - Underground Cables"]
[null,"HV Feeder Non-Material Projects"]
[null,"LV Feeder Augmentations - Overhead Lines"]
[null,"LV Feeder Augmentations - Underground Cables"]
[null,"LV Feeder Non-Material Projects"]
[null,"Distribution Substation Augmentations - Pole Mounted"]
[null,"Distribution Substation Augmentations - Ground Mounted"]
[null,"Distribution Substation Augmentations - Indoor"]
[]
[]
[]
[null,"2.3.4 - AUGEX  - TOTAL EXPENDITURE"]
[null,"AUGMENTATION CAPEX (as incurred)",null,"EXPENDITURE\n($0's)"]
[null,null,null,{"$f":"dms_y1","v":"2009"},{"$f":"dms_y2","v":2010},{"$f":"dms_y3","v":2011},{"$f":"dms_y4","v":2012},{"$f":"dms_y5","v":2013},{"$f":"dms_y6","v":2014},{"$f":"dms_y7","v":2015},{"$f":"dms_y8","v":2016},{"$f":"dms_y9","v":2017},{"$f":"dms_y10","v":2018}]
[null,"Subtransmission Substations, Switching Stations, Zone Substations"]
[null,"Subtransmission Lines"]
[null,"HV Feeders"]
[null,"HV Feeders - Land Purchases and Easements"]
[null,"Distribution Substations"]
[null,"Distribution Substations - Land Purchases And Easements"]
[null,"LV Feeders"]
[null,"LV Feeders - Land Purchases And Easements"]
[null,"Other Assets"]

{"sheet":"2.5 Connections","index":11,"n_rows":71,"n_cols":14,"rows_kept":71,"cut":false,"hidden":false,"merged":[[5,1,5,2],[8,4,8,13],[55,4,55,13]]}
[null,{"$f":"INDEX(dms_Worksheet_List,MATCH(dms_Model,dms_Model_List))","v":"RECAST HISTORICAL CATEGORY ANALYSIS - CALENDAR YEARS"}]
[null,{"$f":"INDEX(dms_TradingNameFull_List,MATCH(dms_TradingName,dms_TradingName_List))","v":"Powercor Australia"}]
[null,{"$f":"dms_Header_Span","v":"2009 to 2018"}]
[null,"2.5 CONNECTIONS"]
[]
[null,"There are THREE tables on this worksheet - each has been 'grouped' (and sub-grouped) for easy navigation. See the Instructions sheet on how to group or ungroup tables. "]
[]
[null,"2.5.1 - DESCRIPTOR METRICS"]
[null,null,null,null,"VOLUMES AND EXPENDITURE"]
[null,null,null,"Units",{"$f":"dms_y1","v":"2009"},{"$f":"dms_y2","v":2010},{"$f":"dms_y3","v":2011},{"$f":"dms_y4","v":2012},{"$f":"dms_y5","v":2013},{"$f":"dms_y6","v":2014},{"$f":"dms_y7","v":2015},{"$f":"dms_y8","v":2016},{"$f":"dms_y9","v":2017},{"$f":"dms_y10","v":2018}]
[null,"RESIDENTIAL","Underground connections","0's"]
[null,null,"Overhead connections","0's"]
[null,null,"Distribution substation installed (MVA added)","MVA"]
[null,null,"Distribution substations installed","0's"]
[null,null,"Distribution substation installed (total spend $0's)","total spend $0s"]
[null,null,"Augmentation HV (net circuit KM added)","KM"]
[null,null,"Augmentation HV (total spend $0's)","total spend $0s"]
[null,null,"Augmentation LV (net circuit KM added)","KM"]
[null,null,"Augmentation LV (total spend $0's)","total spend $0s"]
[null,null,"Mean days to connect residential customer with LV single phase connection","0's"]
[null,null,"Volume of GSL breaches for residential customers","0's"]
[null,null,"Volume of customer complaints relating to connection services","0's"]
[null,null,"GSL payments","$0s"]
[null,"COMMERCIAL/INDUSTRIAL","Underground connections","0's"]
[null,null,"Overhead connections","0's"]
[null,null,"Distribution substation installed (MVA added)","MVA"]
[null,null,"Distribution substations installed (0's)","0's"]
[null,null,"Distribution substation installed (total spend ($0's)","total spend $0s"]
[null,null,"Augmentation HV (net circuit KM added)","KM"]
[null,null,"Augmentation HV (total spend $0's)","total spend $0s"]
[null,null,"Augmentation LV (net circuit KM added)","KM"]
[null,null,"Augmentation LV (total spend $0's)","total spend $0s"]
[null,"SUBDIVISION","Underground connections","0's"]
[null,null,"Overhead connections","0's"]
[null,null,"Distribution substation installed (MVA added)","MVA"]
[null,null,"Distribution substations installed","0's"]
[null,null,"Distribution substation installed (total spend $0's)","total spend $0s"]
[null,null,"Augmentation HV (net circuit KM added)","KM"]
[null,null,"Augmentation HV (total spend $0's)","total spend $0s"]
[null,null,"Augmentation LV (net circuit KM added)","KM"]
[null,null,"Augmentation LV (total spend $0's)","total spend $0s"]
[null,null,"Cost per lot ($)","$0s"]
[null,"EMBEDDED GENERATION","Underground connections","0's"]
[null,null,"Overhead connections","0's"]
[null,null,"Distribution substation installed (MVA added)","MVA"]
[null,null,"Distribution substations installed","0's"]
[null,null,"Distribution substation installed (total spend $0's)","total spend $0s"]
[null,null,"Augmentation HV (net circuit KM added)","KM"]
[null,null,"Augmentation HV (total spend $0's)","total spend $0s"]
[null,null,"Augmentation LV (net circuit KM added)","KM"]
[null,null,"Augmentation LV (total spend $0's)","total spend $0s"]
[]
[]
[]
[null,"2.5.2 - COST METRICS BY CONNECTION CLASSIFICATION"]
[null,null,null,null,"EXPENDITURE\n($0's)"]
[null,null,null,null,{"$f":"dms_y1","v":"2009"},{"$f":"dms_y2","v":2010},{"$f":"dms_y3","v":2011},{"$f":"dms_y4","v":2012},{"$f":"dms_y5","v":2013},{"$f":"dms_y6","v":2014},{"$f":"dms_y7","v":2015},{"$f":"dms_y8","v":2016},{"$f":"dms_y9","v":2017},{"$f":"dms_y10","v":2018}]
[null,"RESIDENTIAL","Simple connection LV"]
[null,null,"Complex connection LV"]
[null,null,"Complex connection HV"]
[null,"COMMERCIAL/INDUSTRIAL","Simple connection LV"]
[null,null,"Complex connection HV (customer connected at LV, minor HV works)"]
[null,null,"Complex connection HV (customer connected at LV, upstream asset works)"]
[null,null,"Complex connection HV (customer connected at HV)"]
[null,null,"Complex connection sub-transmission"]
[null,"SUBDIVISION","Complex connection LV"]
[null,null,"Complex connection HV (no upstream asset works)"]
[null,null,"Complex connection HV (with upstream asset works)"]
[null,"EMBEDDED GENERATION","Simple connection LV"]
[null,null,"Complex connection HV (small capacity)"]
[null,null,"Complex connection HV (large capacity)"]

{"sheet":"2.6 Non-network","index":12,"n_rows":40,"n_cols":14,"rows_kept":40,"cut":false,"hidden":false,"merged":[[8,4,8,13],[5,1,5,2],[9,2,9,3]]}
[null,{"$f":"INDEX(dms_Worksheet_List,MATCH(dms_Model,dms_Model_List))","v":"RECAST HISTORICAL CATEGORY ANALYSIS - CALENDAR YEARS"}]
[null,{"$f":"INDEX(dms_TradingNameFull_List,MATCH(dms_TradingName,dms_TradingName_List))","v":"Powercor Australia"}]
[null,{"$f":"dms_Header_Span","v":"2009 to 2018"}]
[null,"2.6 NON-NETWORK EXPENDITURE"]
[]
[null,"There are THREE tables on this worksheet - each has been 'grouped' (and sub-grouped) for easy navigation. See the Instructions sheet on how to group or ungroup tables. "]
[]
[null,"2.6.1 - NON-NETWORK EXPENDITURE"]
[null,null,null,null,"EXPENDITURE\n($0's)"]
[null,"SERVICE SUBCATEGORY","ASSET CATEGORY",null,{"$f":"dms_y1","v":"2009"},{"$f":"dms_y2","v":2010},{"$f":"dms_y3","v":2011},{"$f":"dms_y4","v":2012},{"$f":"dms_y5","v":2013},{"$f":"dms_y6","v":2014},{"$f":"dms_y7","v":2015},{"$f":"dms_y8","v":2016},{"$f":"dms_y9","v":2017},{"$f":"dms_y10","v":2018}]
[null,"OPEX"]
[null,"IT & COMMUNICATIONS","Total"]
[null,"MOTOR VEHICLES","Car"]
[null,null,"Light commercial vehicle"]
[null,null,"Elevated work platform (LCV)  "]
[null,null,"Elevated work platform (HCV)"]
[null,null,"Heavy commercial vehicle"]
[null,"BUILDINGS AND PROPERTY","Total buildings and property expenditure"]
[null,"OTHER","Other expenditure"]
[null,"OTHER - DNSP nominated"]
[]
[]
[]
[]
[]
[]
[]
[]
[]
[]
[null,"CAPEX"]
[null,"IT & COMMUNICATIONS","Total"]
[null,"MOTOR VEHICLES","Car"]
[null,null,"Light commercial vehicle"]
[null,null,"Elevated work platform (LCV)  "]
[null,null,"Elevated work platform (HCV)"]
[null,null,"Heavy commercial vehicle"]
[null,"BUILDINGS AND PROPERTY","Total buildings and property expenditure"]
[null,"OTHER","Other expenditure"]
[null,"OTHER - DNSP nominated"]

{"sheet":"2.7 Vegetation management","index":13,"n_rows":174,"n_cols":14,"rows_kept":174,"cut":false,"hidden":false,"merged":[[5,1,5,2],[9,2,9,3],[8,4,8,13]]}
[null,{"$f":"INDEX(dms_Worksheet_List,MATCH(dms_Model,dms_Model_List))","v":"RECAST HISTORICAL CATEGORY ANALYSIS - CALENDAR YEARS"}]
[null,{"$f":"INDEX(dms_TradingNameFull_List,MATCH(dms_TradingName,dms_TradingName_List))","v":"Powercor Australia"}]
[null,{"$f":"dms_Header_Span","v":"2009 to 2018"}]
[null,"2.7 VEGETATION MANAGEMENT"]
[]
[null,"There are THREE tables on this worksheet. Each has been 'grouped' (and sub-grouped) for easy navigation. See the Instructions sheet on how to group and ungroup data."]
[]
[null,"2.7.2 - EXPENDITURE METRICS BY ZONE"]
[null,null,null,null,"EXPENDITURE\n($0's)"]
[null,"ZONES","SERVICE SUBCATEGORY",null,{"$f":"dms_y1","v":"2009"},{"$f":"dms_y2","v":2010},{"$f":"dms_y3","v":2011},{"$f":"dms_y4","v":2012},{"$f":"dms_y5","v":2013},{"$f":"dms_y6","v":2014},{"$f":"dms_y7","v":2015},{"$f":"dms_y8","v":2016},{"$f":"dms_y9","v":2017},{"$f":"dms_y10","v":2018}]
[null,"Zone 1","Tree trimming (excluding hazard trees) "]
[null,null,"Hazard tree cutting "]
[null,null,"Ground clearance "]
[null,null,"Vegetation corridor clearance "]
[null,null,"Inspection "]
[null,null,"Vegetation audit "]
[null,null,"Contractor liaison expenditure "]
[null,null,"Tree replacement program costs ",null,"","","","","","",""]
[null,null,"Other vegetation management costs not specified in sheet ",null,"","","","","","",""]
[null,"Zone 2","Tree trimming (excluding hazard trees) ",null,"","","","","","",""]
[null,null,"Hazard tree cutting "]
[null,null,"Ground clearance "]
[null,null,"Vegetation corridor clearance ",null,"","","","","","",""]
[null,null,"Inspection "]
[null,null,"Vegetation audit "]
[null,null,"Contractor liaison expenditure ",null,"","","","","","",""]
[null,null,"Tree replacement program costs ",null,"","","","","","",""]
[null,null,"Other vegetation management costs not specified in sheet ",null,"","","","","","",""]
[null,"Zone 3","Tree trimming (excluding hazard trees) ",null,"","","","","","",""]
[null,null,"Hazard tree cutting "]
[null,null,"Ground clearance "]
[null,null,"Vegetation corridor clearance ",null,"","","","","","",""]
[null,null,"Inspection "]
[null,null,"Vegetation audit "]
[null,null,"Contractor liaison expenditure ",null,"","","","","","",""]
[null,null,"Tree replacement program costs ",null,"","","","","","",""]
[null,null,"Other vegetation management costs not specified in sheet ",null,"","","","","","",""]
[null,"Zone 4","Tree trimming (excluding hazard trees) ",null,"","","","","","",""]
[null,null,"Hazard tree cutting "]
[null,null,"Ground clearance "]
[null,null,"Vegetation corridor clearance ",null,"","","","","","",""]
[null,null,"Inspection "]
[null,null,"Vegetation audit "]
[null,null,"Contractor liaison expenditure ",null,"","","","","","",""]
[null,null,"Tree replacement program costs ",null,"","","","","","",""]
[null,null,"Other vegetation management costs not specified in sheet ",null,"","","","","","",""]
[null,"Zone 5","Tree trimming (excluding hazard trees) ",null,"","","","","","",""]
[null,null,"Hazard tree cutting "]
[null,null,"Ground clearance "]
[null,null,"Vegetation corridor clearance ",null,"","","","","","",""]
[null,null,"Inspection "]
[null,null,"Vegetation audit "]
[null,null,"Contractor liaison expenditure ",null,"","","","","","",""]
[null,null,"Tree replacement program costs ",null,"","","","","","",""]
[null,null,"Other vegetation management costs not specified in sheet ",null,"","","","","","",""]
[null,"Zone 6","Tree trimming (excluding hazard trees) ",null,"","","","","","",""]
[null,null,"Hazard tree cutting "]
[null,null,"Ground clearance "]
[null,null,"Vegetation corridor clearance ",null,"","","","","","",""]
[null,null,"Inspection "]
[null,null,"Vegetation audit "]
[null,null,"Contractor liaison expenditure ",null,"","","","","","",""]
[null,null,"Tree replacement program costs ",null,"","","","","","",""]
[null,null,"Other vegetation management costs not specified in sheet ",null,"","","","","","",""]
[null,"Zone 7","Tree trimming (excluding hazard trees) ",null,"","","","","","",""]
[null,null,"Hazard tree cutting "]
[null,null,"Ground clearance "]
[null,null,"Vegetation corridor clearance ",null,"","","","","","",""]
[null,null,"Inspection "]
[null,null,"Vegetation audit "]
[null,null,"Contractor liaison expenditure ",null,"","","","","","",""]
[null,null,"Tree replacement program costs ",null,"","","","","","",""]
[null,null,"Other vegetation management costs not specified in sheet ",null,"","","","","","",""]
[null,"Zone 8","Tree trimming (excluding hazard trees) ",null,"","","","","","",""]
[null,null,"Hazard tree cutting "]
[null,null,"Ground clearance "]
[null,null,"Vegetation corridor clearance ",null,"","","","","","",""]
[null,null,"Inspection "]
[null,null,"Vegetation audit "]
[null,null,"Contractor liaison expenditure ",null,"","","","","","",""]
[null,null,"Tree replacement program costs ",null,"","","","","","",""]
[null,null,"Other vegetation management costs not specified in sheet ",null,"","","","","","",""]
[null,"Zone 9","Tree trimming (excluding hazard trees) ",null,"","","","","","",""]
[null,null,"Hazard tree cutting "]
[null,null,"Ground clearance "]
[null,null,"Vegetation corridor clearance ",null,"","","","","","",""]
[null,null,"Inspection "]
[null,null,"Vegetation audit "]
[null,null,"Contractor liaison expenditure ",null,"","","","","","",""]
[null,null,"Tree replacement program costs ",null,"","","","","","",""]
[null,null,"Other vegetation management costs not specified in sheet ",null,"","","","","","",""]
[null,"Zone 10","Tree trimming (excluding hazard trees) ",null,"","","","","","",""]
[null,null,"Hazard tree cutting "]
[null,null,"Ground clearance "]
[null,null,"Vegetation corridor clearance ",null,"","","","","","",""]
[null,null,"Inspection "]
[null,null,"Vegetation audit "]
[null,null,"Contractor liaison expenditure ",null,"","","","","","",""]
[null,null,"Tree replacement program costs ",null,"","","","","","",""]
[null,null,"Other vegetation management costs not specified in sheet ",null,"","","","","","",""]
[null,"Zone 11","Tree trimming (excluding hazard trees) ",null,"","","","","","",""]
[null,null,"Hazard tree cutting "]
[null,null,"Ground clearance "]
[null,null,"Vegetation corridor clearance ",null,"","","","","","",""]
[null,null,"Inspection "]
[null,null,"Vegetation audit "]
[null,null,"Contractor liaison expenditure ",null,"","","","","","",""]
[null,null,"Tree replacement program costs ",null,"","","","","","",""]
[null,null,"Other vegetation management costs not specified in sheet ",null,"","","","","","",""]
[null,"Zone 12","Tree trimming (excluding hazard trees) ",null,"","","","","","",""]
[null,null,"Hazard tree cutting "]
[null,null,"Ground clearance "]
[null,null,"Vegetation corridor clearance ",null,"","","","","","",""]
[null,null,"Inspection "]
[null,null,"Vegetation audit "]
[null,null,"Contractor liaison expenditure ",null,"","","","","","",""]
[null,null,"Tree replacement program costs ",null,"","","","","","",""]
[null,null,"Other vegetation management costs not specified in sheet ",null,"","","","","","",""]
[null,"Zone 13","Tree trimming (excluding hazard trees) ",null,"","","","","","",""]
[null,null,"Hazard tree cutting "]
[null,null,"Ground clearance "]
[null,null,"Vegetation corridor clearance ",null,"","","","","","",""]
[null,null,"Inspection "]
[null,null,"Vegetation audit "]
[null,null,"Contractor liaison expenditure ",null,"","","","","","",""]
[null,null,"Tree replacement program costs ",null,"","","","","","",""]
[null,null,"Other vegetation management costs not specified in sheet ",null,"","","","","","",""]
[null,"Zone 14","Tree trimming (excluding hazard trees) ",null,"","","","","","",""]
[null,null,"Hazard tree cutting "]
[null,null,"Ground clearance "]
[null,null,"Vegetation corridor clearance ",null,"","","","","","",""]
[null,null,"Inspection "]
[null,null,"Vegetation audit "]
[null,null,"Contractor liaison expenditure ",null,"","","","","","",""]
[null,null,"Tree replacement program costs ",null,"","","","","","",""]
[null,null,"Other vegetation management costs not specified in sheet ",null,"","","","","","",""]
[null,"Zone 15","Tree trimming (excluding hazard trees) ",null,"","","","","","",""]
[null,null,"Hazard tree cutting "]
[null,null,"Ground clearance "]
[null,null,"Vegetation corridor clearance ",null,"","","","","","",""]
[null,null,"Inspection "]
[null,null,"Vegetation audit "]
[null,null,"Contractor liaison expenditure ",null,"","","","","","",""]
[null,null,"Tree replacement program costs ",null,"","","","","","",""]
[null,null,"Other vegetation management costs not specified in sheet ",null,"","","","","","",""]
[null,"Zone 16","Tree trimming (excluding hazard trees) ",null,"","","","","","",""]
[null,null,"Hazard tree cutting "]
[null,null,"Ground clearance "]
[null,null,"Vegetation corridor clearance ",null,"","","","","","",""]
[null,null,"Inspection "]
[null,null,"Vegetation audit "]
[null,null,"Contractor liaison expenditure ",null,"","","","","","",""]
[null,null,"Tree replacement program costs ",null,"","","","","","",""]
[null,null,"Other vegetation management costs not specified in sheet ",null,"","","","","","",""]
[null,"Zone 17","Tree trimming (excluding hazard trees) ",null,"","","","","","",""]
[null,null,"Hazard tree cutting "]
[null,null,"Ground clearance "]
[null,null,"Vegetation corridor clearance ",null,"","","","","","",""]
[null,null,"Inspection "]
[null,null,"Vegetation audit "]
[null,null,"Contractor liaison expenditure ",null,"","","","","","",""]
[null,null,"Tree replacement program costs ",null,"","","","","","",""]
[null,null,"Other vegetation management costs not specified in sheet ",null,"","","","","","",""]
[null,"Zone 18","Tree trimming (excluding hazard trees) ",null,"","","","","","",""]
[null,null,"Hazard tree cutting "]
[null,null,"Ground clearance "]
[null,null,"Vegetation corridor clearance ",null,"","","","","","",""]
[null,null,"Inspection "]
[null,null,"Vegetation audit "]
[null,null,"Contractor liaison expenditure ",null,"","","","","","",""]
[null,null,"Tree replacement program costs ",null,"","","","","","",""]
[null,null,"Other vegetation management costs not specified in sheet ",null,"","","","","","",""]
[]
[null,"2.7.3 - DESCRIPTOR METRICS ACROSS ALL ZONES - UNPLANNED VEGETATION EVENTS"]

{"sheet":"2.8 Maintenance","index":14,"n_rows":85,"n_cols":15,"rows_kept":85,"cut":false,"hidden":false,"merged":[[68,1,69,1],[48,5,48,14],[49,5,49,14],[5,1,5,2],[9,5,9,14],[10,5,10,14],[29,1,30,1]]}
[null,{"$f":"INDEX(dms_Worksheet_List,MATCH(dms_Model,dms_Model_List))","v":"RECAST HISTORICAL CATEGORY ANALYSIS - CALENDAR YEARS"}]
[null,{"$f":"INDEX(dms_TradingNameFull_List,MATCH(dms_TradingName,dms_TradingName_List))","v":"Powercor Australia"}]
[null,{"$f":"dms_Header_Span","v":"2009 to 2018"}]
[null,"2.8 MAINTENANCE"]
[]
[null,"There are TWO tables on this worksheet. It has been 'grouped' (and sub-grouped) for easy navigation.  See the Instructions sheet on how to group or ungroup data."]
[]
[null,"2.8.2 - COST METRICS FOR ROUTINE AND NON-ROUTINE MAINTENANCE"]
[null,"ROUTINE MAINTENANCE"]
[null,null,null,null,null,"EXPENDITURE"]
[null,null,null,null,null,"($0'S)"]
[null,"MAINTENANCE ACTIVITY","MAINTENANCE ASSET CATEGORY","ASSET QUANTITY","Units",{"$f":"dms_y1","v":"2009"},{"$f":"dms_y2","v":2010},{"$f":"dms_y3","v":2011},{"$f":"dms_y4","v":2012},{"$f":"dms_y5","v":2013},{"$f":"dms_y6","v":2014},{"$f":"dms_y7","v":2015},{"$f":"dms_y8","v":2016},{"$f":"dms_y9","v":2017},{"$f":"dms_y10","v":2018}]
[null,"Pole top, overhead line & service line maintenance","Pole tops and overhead lines","Number of poles","Number"]
[null,null,"Service lines","Number of customers","Number"]
[null,"Pole inspection and treatment","All poles","Number of poles","Number"]
[null,"Overhead asset inspection","All overhead assets","Line patrolled (route KM)","KM"]
[null,"Network underground cable maintenance: by voltage","LV - 11 to 22 KV","Length (KM)","KM"]
[null,null,"33 KV and above","Length (KM)","KM"]
[null,"Network underground cable maintenance: by location","Cbd","Length (KM)","KM"]
[null,null,"Non-CBD","Length (KM)","KM"]
[null,"Distribution substation equipment & property maintenance","Distribution substation transformers","Number of installed transformers","Number"]
[null,null,"Distribution substation switchgear\n (within-substations and stand-alone switchgear)","Number of switches","Number"]
[null,null,"Distribution substation - other equipment","Earth mat","Number"]
[null,null,"Distribution substation - property","Number of distribution substation properties maintained","Number"]
[null,"Zone substation equipment maintenance","Transformers - zone substation","Number","Number"]
[null,null,"Transformers - distribution","Number of distribution transformers within zone substation","Number"]
[null,null,"Transformers - HV","Number of HV transformers","Number"]
[null,null,"Zone substation - other equipment"]
[null,"Zone substation property maintenance","All zone substation properties","Number of zone substation properties maintained","Number"]
[null,"Public lighting maintenance","Minor roads","Number of public lights maintained","Number"]
[null,null,"Major roads","Number of public lights maintained","Number"]
[null,"SCADA & network control maintenance","SCADA & network control","Number of systems","Number"]
[null,"Protection systems maintenance","Protection systems","Number of systems","Number"]
[null,"Subtransmission asset maintenance","Subtransmission asset maintenance\n- for DNSPs with dual function assets"]
[null,"Various assets"," includes rates, electricity, communications equip, metering","Various","Number"]
[null,"Ground clearance - access tracks","Access tracks","Number","Number"]
[null,"Other"]
[null,null,"Zone Substation Switchyard Lighting Refurbishment"]
[null,null,"Transformer Oil Regeration"]
[]
[]
[]
[]
[]
[]
[]
[]
[null,"NON-ROUTINE MAINTENANCE"]
[null,null,null,null,null,"EXPENDITURE"]
[null,null,null,null,null,"($0'S)"]
[null,"MAINTENANCE ACTIVITY","MAINTENANCE ASSET CATEGORY","ASSET QUANTITY","Units",{"$f":"dms_y1","v":"2009"},{"$f":"dms_y2","v":2010},{"$f":"dms_y3","v":2011},{"$f":"dms_y4","v":2012},{"$f":"dms_y5","v":2013},{"$f":"dms_y6","v":2014},{"$f":"dms_y7","v":2015},{"$f":"dms_y8","v":2016},{"$f":"dms_y9","v":2017},{"$f":"dms_y10","v":2018}]
[null,"Pole top, overhead line & service line maintenance","Pole tops and overhead lines","Number of poles","Number",9309764.6109526642,11674236.341338824,11079333.786933893,8834073.8253162242,12528260.814980702,12138514,8625254,14986455,19066800,19552974.770827375]
[null,null,"Service lines","Number of customers","Number",937322.10904733371,1138715.188661176,785862.58306610829,1041192.0012246751,1209179.23736846,861387,672718,650078,999300,3449958.7693393733]
[null,"Pole inspection and treatment","All poles","Number of poles","Number",0,0,0,0,0,0,0,"                             -  ",0,0]
[null,"Overhead asset inspection","All overhead assets","Line patrolled (route KM)","KM",324622.8,180493.88967412099,214209.15316134499,137632.44021979399,243713.53650291901,421149.89334257197,381000,688430,706686,746772.33000000007]
[null,"Network underground cable maintenance: by voltage","LV - 11 to 22 KV","Length (KM)","KM",1214409.2492466441,582256.24887001398,810887.36905189499,888944.36551924492,1012926.440442077,673332.865166059,639033,2430953.4056000002,1275762.2555999998,2017404.5409439639]
[null,null,"33 KV and above","Length (KM)","KM",0,0,0,0,0,2610,0,10545,143630,92149.287754129298]
[null,"Network underground cable maintenance: by location","Cbd","Length (KM)","KM",0,0,0,0,0,0,0,"                             -  ",0,0]
[null,null,"Non-CBD","Length (KM)","KM",1214985.4823983249,582277.53877924744,810980.08584645693,888929.49553023791,1013336.5836044085,675942.865166059,639033,2441498.4056000002,1419392.2555999998,2109553.8286980931]
[null,"Distribution substation equipment & property maintenance","Distribution substation transformers","Number of installed transformers","Number",138450,109160,127470,233110,339290,296810,796134,471678,1923640,641223.71758115001]
[null,null,"Distribution substation switchgear\n (within-substations and stand-alone switchgear)","Number of switches","Number",233823.18685441272,396217.18135891511,297974.17015386559,236873.39203350939,348653.90201864525,1379950,2737643,1138248,2418062,750932.60603962501]
[null,null,"Distribution substation - other equipment","Earth mat","Number",0,0,0,0,0,0,0,115749,85964,136078.789966193]
[null,null,"Distribution substation - property","Number of distribution substation properties maintained","Number",520,600,3870,100,50,35110,30416,376391,48727,0]
[null,"Zone substation equipment maintenance","Transformers - zone substation","Number","Number",401230,1010050,491200,745940,483230,197510,987373,1132253,485414,300628.23633098701]
[null,null,"Transformers - distribution","Number of distribution transformers within zone substation","Number",0,0,0,0,0,0,0,"                             -  ",0,0]
[null,null,"Transformers - HV","Number of HV transformers","Number",0,0,0,0,0,0,0,"                             -  ",0,0]
[null,null,"Zone substation - other equipment",{"$f":"IF(ISBLANK(D28),\"\",D28)","v":""},{"$f":"IF(ISBLANK(E28),\"\",E28)","v":""},668377.52629633376,842733.95753694803,1026730.0917161586,989779.433391775,898353.63187805994,1077100,863926,721255,766556,716849.36148209102]
[null,"Zone substation property maintenance","All zone substation properties","Number of zone substation properties maintained","Number",41165.665853475744,56754.646349186893,3465.9378645360525,26186.262563047105,148632.86403776615,67730,104472,56202,0,0]
[null,"Public lighting maintenance","Minor roads","Number of public lights maintained","Number",1800889.0607575641,1553112.0186428679,2493471.7618515408,2810175.6497446983,2975758.9426688836,2834600,2085634,1708373,1633964,1863601.5611387992]
[null,null,"Major roads","Number of public lights maintained","Number",217700,335300,438100,679600,725500,646400,345140,280230,259883,563738.43886120094]
[null,"SCADA & network control maintenance","SCADA & network control","Number of systems","Number",0,1151.1083474702807,13391.580212830602,6976.3401790102616,23191.373145138372,18750,24243,301776,258802,366771.59606851998]
[null,"Protection systems maintenance","Protection systems","Number of systems","Number",525062.54066670267,621518.430531519,948009.35242592602,882297.14275402529,707023.75698617171,598720,716937,335301,383281,390986.01913143037]
[null,"Subtransmission asset maintenance","Subtransmission asset maintenance\n- for DNSPs with dual function assets",{"$f":"IF(ISBLANK(D34),\"\",D34)","v":""},{"$f":"IF(ISBLANK(E34),\"\",E34)","v":""},0,0,0,0,0,0,0,0,0,0]
[null,"Various assets"," includes rates, electricity, communications equip, metering","Various","Number",0,0,0,0,0,0,0,0,0,0]
[null,"Ground clearance - access tracks","Access tracks","Number","Number",0,0,0,0,0,0,0,0,0,0]
[null,"Other",{"$f":"IF(ISBLANK(C37),\"\",C37)","v":""},{"$f":"IF(ISBLANK(D37),\"\",D37)","v":""},null,7454905.129999998,8787775.0592822861,7587339.3453951227,7631413.8231628994,8224389.50394319,0,0,7136092,9298688,8370806.1751858685]
[null,null,{"$f":"IF(ISBLANK(C38),\"\",C38)","v":"Zone Substation Switchyard Lighting Refurbishment"},"",null,152779.22099999999,152779.22099999999,152779.22099999999,152779.22099999999,152779.22099999999,152779.22099999999,152779.22099999999,152779.22099999999,152779.22099999999,152779.22099999999]
[null,null,{"$f":"IF(ISBLANK(C39),\"\",C39)","v":"Transformer Oil Regeration"},"",null,29817.675299999999,29817.675299999999,29817.675299999999,29817.675299999999,29817.675299999999,29817.675299999999,29817.675299999999,29817.675299999999,29817.675299999999,29817.675299999999]
[null,null,{"$f":"IF(ISBLANK(C40),\"\",C40)","v":""},""]
[null,null,{"$f":"IF(ISBLANK(C41),\"\",C41)","v":""},""]
[null,null,{"$f":"IF(ISBLANK(C42),\"\",C42)","v":""},""]
[null,null,{"$f":"IF(ISBLANK(C43),\"\",C43)","v":""},""]
[null,null,{"$f":"IF(ISBLANK(C44),\"\",C44)","v":""},""]
[null,null,{"$f":"IF(ISBLANK(C45),\"\",C45)","v":""},""]
[null,null,{"$f":"IF(ISBLANK(C46),\"\",C46)","v":""},""]

{"sheet":"2.9 Emergency Response","index":15,"n_rows":376,"n_cols":13,"rows_kept":376,"cut":false,"hidden":false,"merged":[[8,3,8,12]]}
[null,{"$f":"INDEX(dms_Worksheet_List,MATCH(dms_Model,dms_Model_List))","v":"RECAST HISTORICAL CATEGORY ANALYSIS - CALENDAR YEARS"}]
[null,{"$f":"INDEX(dms_TradingNameFull_List,MATCH(dms_TradingName,dms_TradingName_List))","v":"Powercor Australia"}]
[null,{"$f":"dms_Header_Span","v":"2009 to 2018"}]
[null,"2.9 EMERGENCY RESPONSE"]
[]
[null,"There is ONE table on this worksheet. It has been 'sub-grouped' for easy navigation.  See the Instructions sheet on how to group or ungroup data."]
[]
[null,"2.9.1 - EMERGENCY RESPONSE EXPENDITURE (OPEX)"]
[null,null,null,"EXPENDITURE\n($0's)"]
[null,null,null,{"$f":"dms_y1","v":"2009"},{"$f":"dms_y2","v":2010},{"$f":"dms_y3","v":2011},{"$f":"dms_y4","v":2012},{"$f":"dms_y5","v":2013},{"$f":"dms_y6","v":2014},{"$f":"dms_y7","v":2015},{"$f":"dms_y8","v":2016},{"$f":"dms_y9","v":2017},{"$f":"dms_y10","v":2018}]
[null,"(A) TOTAL EMERGENCY RESPONSE EXPENDITURE","Total Expenditure"]
[null,"(B) MAJOR EVENTS O&M EXPENDITURE"]
[]
[]
[]
[]
[]
[]
[null,null,null,"","","","","","","",null,null,""]
[]
[]
[]
[]
[]
[]
[]
[null,null,null,"","","","","","","",null,null,""]
[null,null,null,"","","","","","","",null,null,""]
[null,null,null,"","","","","","","",null,null,""]
[null,null,null,"","","","","","","",null,null,""]
[]
[]
[]
[]
[]
[]
[]
[]
[]
[]
[]
[]
[null,null,null,"","","","","","","",null,null,""]
[null,null,null,"","","","","","","",null,null,""]
[null,null,null,"","","","","","","",null,null,""]
[null,null,null,"","","","","","","",null,null,""]
[null,null,null,"","","","","","","",null,null,""]
[null,null,null,"","","","","","","",null,null,""]
[null,null,null,"","","","","","","",null,null,""]
[null,null,null,"","","","","","","",null,null,""]
[null,null,null,"","","","","","","",null,null,""]
[null,null,null,"","","","","","","",null,null,""]
[null,null,null,"","","","","","","",null,null,""]
[null,null,null,"","","","","","","",null,null,""]
[null,"(C) MAJOR EVENT DAYS O&M EXPENDITURE"]
[]
[null,null,null,"","","","","","","",null,null,""]
[null,null,null,"","","","","","","",null,null,""]
[null,null,null,"","","","","","","",null,null,""]
[null,null,null,"","","","","","","",null,null,""]
[null,null,null,"","","","","","","",null,null,""]
[null,null,null,"","","","","","","",null,null,""]
[null,null,null,"","","","","","","",null,null,""]
[null,null,null,"","","","","","","",null,null,""]
[null,null,null,"","","","","","","",null,null,""]
[null,null,null,"","","","","","","",null,null,""]
[null,null,null,"","","","","","","",null,null,""]
[null,null,null,"","","","","","","",null,null,""]
[null,null,null,"","","","","","","",null,null,""]
[null,null,null,"","","","","","","",null,null,""]
[null,null,null,"","","","","","","",null,null,""]
[null,null,null,"","","","","","","",null,null,""]
[null,null,null,"","","","","","","",null,null,""]
[null,null,null,"","","","","","","",null,null,""]
[null,null,null,"","","","","","","",null,null,""]
[null,null,null,"","","","","","","",null,null,""]
[null,null,null,"","","","","","","",null,null,""]
[null,null,null,"","","","","","","",null,null,""]
[null,null,null,"","","","","","","",null,null,""]
[null,null,null,"","","","","","","",null,null,""]
[null,null,null,"","","","","","","",null,null,""]
[null,null,null,"","","","","","","",null,null,""]
[null,null,null,"","","","","","","",null,null,""]
[null,null,null,"","","","","","","",null,null,""]
[null,null,null,"","","","","","","",null,null,""]
[null,null,null,"","","","","","","",null,null,""]
[null,null,null,"","","","","","","",null,null,""]
[null,null,null,"","","","","","","",null,null,""]
[null,null,null,"","","","","","","",null,null,""]
[null,null,null,"","","","","","","",null,null,""]
[null,null,null,"","","","","","","",null,null,""]
[null,null,null,"","","","","","","",null,null,""]
[null,null,null,"","","","","","","",null,null,""]
[null,null,null,"","","","","","","",null,null,""]
[null,null,null,"","","","","","","",null,null,""]
[null,null,null,"","","","","","","",null,null,""]
[null,null,null,"","","","","","","",null,null,""]
[null,null,null,"","","","","","","",null,null,""]
[null,null,null,"","","","","","","",null,null,""]
[null,null,null,"","","","","","","",null,null,""]
[null,null,null,"","","","","","","",null,null,""]
[null,null,null,"","","","","","","",null,null,""]
[null,null,null,"","","","","","","",null,null,""]
[null,null,null,"","","","","","","",null,null,""]
[null,null,null,"","","","","","","",null,null,""]
[null,null,null,"","","","","","","",null,null,""]
[null,null,null,"","","","","","","",null,null,""]
[null,null,null,"","","","","","","",null,null,""]
[null,null,null,"","","","","","","",null,null,""]
[null,null,null,"","","","","","","",null,null,""]
[null,null,null,"","","","","","","",null,null,""]
[null,null,null,"","","","","","","",null,null,""]
[null,null,null,"","","","","","","",null,null,""]
[null,null,null,"","","","","","","",null,null,""]
[null,null,null,"","","","","","","",null,null,""]
[null,null,null,"","","","","","","",null,null,""]
[null,null,null,"","","","","","","",null,null,""]
[null,null,null,"","","","","","","",null,null,""]
[null,null,null,"","","","","","","",null,null,""]
[null,null,null,"","","","","","","",null,null,""]
[null,null,null,"","","","","","","",null,null,""]
[null,null,null,"","","","","","","",null,null,""]
[null,null,null,"","","","","","","",null,null,""]
[null,null,null,"","","","","","","",null,null,""]
[null,null,null,"","","","","","","",null,null,""]
[null,null,null,"","","","","","","",null,null,""]
[null,null,null,"","","","","","","",null,null,""]
[null,null,null,"","","","","","","",null,null,""]
[null,null,null,"","","","","","","",null,null,""]
[null,null,null,"","","","","","","",null,null,""]
[null,null,null,"","","","","","","",null,null,""]
[null,null,null,"","","","","","","",null,null,""]
[null,null,null,"","","","","","","",null,null,""]
[null,null,null,"","","","","","","",null,null,""]
[null,null,null,"","","","","","","",null,null,""]
[null,null,null,"","","","","","","",null,null,""]
[null,null,null,"","","","","","","",null,null,""]
[null,null,null,"","","","","","","",null,null,""]
[null,null,null,"","","","","","","",null,null,""]
[null,null,null,"","","","","","","",null,null,""]
[null,null,null,"","","","","","","",null,null,""]
[null,null,null,"","","","","","","",null,null,""]
[null,null,null,"","","","","","","",null,null,""]
[null,null,null,"","","","","","","",null,null,""]
[null,null,null,"","","","","","","",null,null,""]
[null,null,null,"","","","","","","",null,null,""]
[null,null,null,"","","","","","","",null,null,""]
[null,null,null,"","","","","","","",null,null,""]
[null,null,null,"","","","","","","",null,null,""]
[null,null,null,"","","","","","","",null,null,""]
[null,null,null,"","","","","","","",null,null,""]
[null,null,null,"","","","","","","",null,null,""]
[null,null,null,"","","","","","","",null,null,""]
[null,null,null,"","","","","","","",null,null,""]
[null,null,null,"","","","","","","",null,null,""]
[null,null,null,"","","","","","","",null,null,""]
[null,null,null,"","","","","","","",null,null,""]
[null,null,null,"","","","","","","",null,null,""]
[null,null,null,"","","","","","","",null,null,""]
[null,null,null,"","","","","","","",null,null,""]
[null,null,null,"","","","","","","",null,null,""]
[null,null,null,"","","","","","","",null,null,""]
[null,null,null,"","","","","","","",null,null,""]
[null,null,null,"","","","","","","",null,null,""]
[null,null,null,"","","","","","","",null,null,""]
[null,null,null,"","","","","","","",null,null,""]
[null,null,null,"","","","","","","",null,null,""]
[null,null,null,"","","","","","","",null,null,""]
[null,null,null,"","","","","","","",null,null,""]
[null,null,null,"","","","","","","",null,null,""]
[null,null,null,"","","","","","","",null,null,""]
[null,null,null,"","","","","","","",null,null,""]
[null,null,null,"","","","","","","",null,null,""]
[null,null,null,"","","","","","","",null,null,""]
[null,null,null,"","","","","","","",null,null,""]
[null,null,null,"","","","","","","",null,null,""]
[null,null,null,"","","","","","","",null,null,""]
[null,null,null,"","","","","","","",null,null,""]
[null,null,null,"","","","","","","",null,null,""]
[null,null,null,"","","","","","","",null,null,""]
[null,null,null,"","","","","","","",null,null,""]
[null,null,null,"","","","","","","",null,null,""]
[null,null,null,"","","","","","","",null,null,""]
[null,null,null,"","","","","","","",null,null,""]
[null,null,null,"","","","","","","",null,null,""]
[null,null,null,"","","","","","","",null,null,""]
[null,null,null,"","","","","","","",null,null,""]
[null,null,null,"","","","","","","",null,null,""]
[null,null,null,"","","","","","","",null,null,""]
[null,null,null,"","","","","","","",null,null,""]
[null,null,null,"","","","","","","",null,null,""]
[null,null,null,"","","","","","","",null,null,""]
[null,null,null,"","","","","","","",null,null,""]
[null,null,null,"","","","","","","",null,null,""]
[null,null,null,"","","","","","","",null,null,""]
[null,null,null,"","","","","","","",null,null,""]
[null,null,null,"","","","","","","",null,null,""]
[null,null,null,"","","","","","","",null,null,""]
[null,null,null,"","","","","","","",null,null,""]
[null,null,null,"","","","","","","",null,null,""]
[null,null,null,"","","","","","","",null,null,""]
[null,null,null,"","","","","","","",null,null,""]
[null,null,null,"","","","","","","",null,null,""]
[null,null,null,"","","","","","","",null,null,""]
[null,null,null,"","","","","","","",null,null,""]
[null,null,null,"","","","","","","",null,null,""]
[null,null,null,"","","","","","","",null,null,""]
[null,null,null,"","","","","","","",null,null,""]
[null,null,null,"","","","","","","",null,null,""]
[null,null,null,"","","","","","","",null,null,""]
[null,null,null,"","","","","","","",null,null,""]
[null,null,null,"","","","","","","",null,null,""]
[null,null,null,"","","","","","","",null,null,""]
[null,null,null,"","","","","","","",null,null,""]
[null,null,null,"","","","","","","",null,null,""]
[null,null,null,"","","","","","","",null,null,""]
[null,null,null,"","","","","","","",null,null,""]
[null,null,null,"","","","","","","",null,null,""]
[null,null,null,"","","","","","","",null,null,""]
[null,null,null,"","","","","","","",null,null,""]
[null,null,null,"","","","","","","",null,null,""]
[null,null,null,"","","","","","","",null,null,""]
[null,null,null,"","","","","","","",null,null,""]
[null,null,null,"","","","","","","",null,null,""]
[null,null,null,"","","","","","","",null,null,""]
[null,null,null,"","","","","","","",null,null,""]
[null,null,null,"","","","","","","",null,null,""]
[null,null,null,"","","","","","","",null,null,""]
[null,null,null,"","","","","","","",null,null,""]
[null,null,null,"","","","","","","",null,null,""]
[null,null,null,"","","","","","","",null,null,""]
[null,null,null,"","","","","","","",null,null,""]
[null,null,null,"","","","","","","",null,null,""]
[null,null,null,"","","","","","","",null,null,""]
[null,null,null,"","","","","","","",null,null,""]
[null,null,null,"","","","","","","",null,null,""]
[null,null,null,"","","","","","","",null,null,""]
[null,null,null,"","","","","","","",null,null,""]
[null,null,null,"","","","","","","",null,null,""]
[null,null,null,"","","","","","","",null,null,""]
[null,null,null,"","","","","","","",null,null,""]
[null,null,null,"","","","","","","",null,null,""]
[null,null,null,"","","","","","","",null,null,""]
[null,null,null,"","","","","","","",null,null,""]
[null,null,null,"","","","","","","",null,null,""]
[null,null,null,"","","","","","","",null,null,""]
[null,null,null,"","","","","","","",null,null,""]
[null,null,null,"","","","","","","",null,null,""]
[null,null,null,"","","","","","","",null,null,""]
[null,null,null,"","","","","","","",null,null,""]
[null,null,null,"","","","","","","",null,null,""]
[null,null,null,"","","","","","","",null,null,""]
[null,null,null,"","","","","","","",null,null,""]
[null,null,null,"","","","","","","",null,null,""]
[null,null,null,"","","","","","","",null,null,""]
[null,null,null,"","","","","","","",null,null,""]
[null,null,null,"","","","","","","",null,null,""]
[null,null,null,"","","","","","","",null,null,""]
[null,null,null,"","","","","","","",null,null,""]
[null,null,null,"","","","","","","",null,null,""]
[null,null,null,"","","","","","","",null,null,""]
[null,null,null,"","","","","","","",null,null,""]
[null,null,null,"","","","","","","",null,null,""]
[null,null,null,"","","","","","","",null,null,""]
[null,null,null,"","","","","","","",null,null,""]
[null,null,null,"","","","","","","",null,null,""]
[null,null,null,"","","","","","","",null,null,""]
[null,null,null,"","","","","","","",null,null,""]
[null,null,null,"","","","","","","",null,null,""]
[null,null,null,"","","","","","","",null,null,""]
[null,null,null,"","","","","","","",null,null,""]
[null,null,null,"","","","","","","",null,null,""]
[null,null,null,"","","","","","","",null,null,""]
[null,null,null,"","","","","","","",null,null,""]
[null,null,null,"","","","","","","",null,null,""]
[null,null,null,"","","","","","","",null,null,""]
[null,null,null,"","","","","","","",null,null,""]
[null,null,null,"","","","","","","",null,null,""]
[null,null,null,"","","","","","","",null,null,""]
[null,null,null,"","","","","","","",null,null,""]
[null,null,null,"","","","","","","",null,null,""]
[null,null,null,"","","","","","","",null,null,""]
[null,null,null,"","","","","","","",null,null,""]
[null,null,null,"","","","","","","",null,null,""]
[null,null,null,"","","","","","","",null,null,""]
[null,null,null,"","","","","","","",null,null,""]
[null,null,null,"","","","","","","",null,null,""]
[null,null,null,"","","","","","","",null,null,""]
[null,null,null,"","","","","","","",null,null,""]
[null,null,null,"","","","","","","",null,null,""]
[null,null,null,"","","","","","","",null,null,""]
[null,null,null,"","","","","","","",null,null,""]
[null,null,null,"","","","","","","",null,null,""]
[null,null,null,"","","","","","","",null,null,""]
[null,null,null,"","","","","","","",null,null,""]
[null,null,null,"","","","","","","",null,null,""]
[null,null,null,"","","","","","","",null,null,""]
[null,null,null,"","","","","","","",null,null,""]
[null,null,null,"","","","","","","",null,null,""]
[null,null,null,"","","","","","","",null,null,""]
[null,null,null,"","","","","","","",null,null,""]
[null,null,null,"","","","","","","",null,null,""]
[null,null,null,"","","","","","","",null,null,""]
[null,null,null,"","","","","","","",null,null,""]
[null,null,null,"","","","","","","",null,null,""]
[null,null,null,"","","","","","","",null,null,""]
[null,null,null,"","","","","","","",null,null,""]
[null,null,null,"","","","","","","",null,null,""]
[null,null,null,"","","","","","","",null,null,""]
[null,null,null,"","","","","","","",null,null,""]
[null,null,null,"","","","","","","",null,null,""]
[null,null,null,"","","","","","","",null,null,""]
[null,null,null,"","","","","","","",null,null,""]
[null,null,null,"","","","","","","",null,null,""]
[null,null,null,"","","","","","","",null,null,""]
[null,null,null,"","","","","","","",null,null,""]
[null,null,null,"","","","","","","",null,null,""]
[null,null,null,"","","","","","","",null,null,""]
[null,null,null,"","","","","","","",null,null,""]
[null,null,null,"","","","","","","",null,null,""]
[null,null,null,"","","","","","","",null,null,""]
[null,null,null,"","","","","","","",null,null,""]
[null,null,null,"","","","","","","",null,null,""]
[null,null,null,"","","","","","","",null,null,""]
[null,null,null,"","","","","","","",null,null,""]
[null,null,null,"","","","","","","",null,null,""]
[null,null,null,"","","","","","","",null,null,""]
[null,null,null,"","","","","","","",null,null,""]
[null,null,null,"","","","","","","",null,null,""]
[null,null,null,"","","","","","","",null,null,""]
[null,null,null,"","","","","","","",null,null,""]
[null,null,null,"","","","","","","",null,null,""]
[null,null,null,"","","","","","","",null,null,""]
[null,null,null,"","","","","","","",null,null,""]
[null,null,null,"","","","","","","",null,null,""]
[null,null,null,"","","","","","","",null,null,""]
[null,null,null,"","","","","","","",null,null,""]
[null,null,null,"","","","","","","",null,null,""]
[null,null,null,"","","","","","","",null,null,""]
[null,null,null,"","","","","","","",null,null,""]
[null,null,null,"","","","","","","",null,null,""]
[null,null,null,"","","","","","","",null,null,""]
[null,null,null,"","","","","","","",null,null,""]
[null,null,null,"","","","","","","",null,null,""]
[null,null,null,"","","","","","","",null,null,""]
[null,null,null,"","","","","","","",null,null,""]
[null,null,null,"","","","","","","",null,null,""]
[null,null,null,"","","","","","","",null,null,""]
[null,null,null,"","","","","","","",null,null,""]
[null,null,null,"","","","","","","",null,null,""]
[null,null,null,"","","","","","","",null,null,""]
[null,null,null,"","","","","","","",null,null,""]
[null,null,null,"","","","","","","",null,null,""]
[null,null,null,"","","","","","","",null,null,""]
[null,null,null,"","","","","","","",null,null,""]
[null,null,null,"","","","","","","",null,null,""]
[null,null,null,"","","","","","","",null,null,""]
[null,null,null,"","","","","","","",null,null,""]
[null,null,null,"","","","","","","",null,null,""]
[null,null,null,"","","","","","","",null,null,""]
[null,null,null,"","","","","","","",null,null,""]
[null,null,null,"","","","","","","",null,null,""]
[null,null,null,"","","","","","","",null,null,""]
[null,null,null,"","","","","","","",null,null,""]
[null,null,null,"","","","","","","",null,null,""]
[null,null,null,"","","","","","","",null,null,""]
[null,null,null,"","","","","","","",null,null,""]
[null,null,null,"","","","","","","",null,null,""]
[null,null,null,"","","","","","","",null,null,""]
[null,null,null,"","","","","","","",null,null,""]
[null,null,null,"","","","","","","",null,null,""]
[null,null,null,"","","","","","","",null,null,""]
[null,null,null,"","","","","","","",null,null,""]
[null,null,null,"","","","","","","",null,null,""]
[null,null,null,"","","","","","","",null,null,""]
[null,null,null,"","","","","","","",null,null,""]

{"sheet":"2.11 Labour","index":16,"n_rows":29,"n_cols":13,"rows_kept":29,"cut":false,"hidden":false,"merged":[[5,1,5,3],[10,1,10,2],[9,3,9,12]]}
[null,{"$f":"INDEX(dms_Worksheet_List,MATCH(dms_Model,dms_Model_List))","v":"RECAST HISTORICAL CATEGORY ANALYSIS - CALENDAR YEARS"}]
[null,{"$f":"INDEX(dms_TradingNameFull_List,MATCH(dms_TradingName,dms_TradingName_List))","v":"Powercor Australia"}]
[null,{"$f":"dms_Header_Span","v":"2009 to 2018"}]
[null,"2.11 LABOUR"]
[]
[null,"There are TWO tables on this worksheet. Each table has been 'grouped' (and sub-grouped) for easy navigation.  See the Instructions sheet on how to group or ungroup data."]
[]
[null,"2.11.1 - COST METRICS PER ANNUM"]
[null,"TOTAL LABOUR EXPENDITURE"]
[null,null,null,"EXPENDITURE \n($0's)"]
[null,"INTERNAL LABOUR",null,{"$f":"dms_y1","v":"2009"},{"$f":"dms_y2","v":2010},{"$f":"dms_y3","v":2011},{"$f":"dms_y4","v":2012},{"$f":"dms_y5","v":2013},{"$f":"dms_y6","v":2014},{"$f":"dms_y7","v":2015},{"$f":"dms_y8","v":2016},{"$f":"dms_y9","v":2017},{"$f":"dms_y10","v":2018}]
[null,"CORPORATE OVERHEADS","Executive manager"]
[null,null,"Senior manager"]
[null,null,"Manager"]
[null,null,"Professional"]
[null,null,"Semi professional"]
[null,null,"Support staff"]
[null,null,"Intern, junior staff, apprentice"]
[null,"NETWORK OVERHEADS ","Executive manager"]
[null,null,"Senior manager"]
[null,null,"Manager"]
[null,null,"Professional"]
[null,null,"Semi professional"]
[null,null,"Support staff"]
[null,null,"Intern, junior staff, apprentice"]
[null,"TOTAL DIRECT NETWORK LABOUR","Skilled electrical worker"]
[null,null,"Skilled non electical worker"]
[null,null,"Apprentice"]
[null,null,"Unskilled worker"]

{"sheet":"2.12 Input tables","index":17,"n_rows":468,"n_cols":13,"rows_kept":468,"cut":false,"hidden":false,"merged":[[394,3,394,12],[395,3,395,12],[317,3,317,12],[318,3,318,12],[5,1,5,2],[240,3,240,12],[241,3,241,12],[9,3,9,12],[10,3,10,12],[86,3,86,12],[87,3,87,12],[163,3,163,12],[164,3,164,12]]}
[null,{"$f":"INDEX(dms_Worksheet_List,MATCH(dms_Model,dms_Model_List))","v":"RECAST HISTORICAL CATEGORY ANALYSIS - CALENDAR YEARS"}]
[null,{"$f":"INDEX(dms_TradingNameFull_List,MATCH(dms_TradingName,dms_TradingName_List))","v":"Powercor Australia"}]
[null,{"$f":"dms_Header_Span","v":"2009 to 2018"}]
[null,"2.12 INPUT TABLES"]
[]
[null,"There are SIX tables on this worksheet. Each table has been 'grouped' for easy navigation.  See the Instructions sheet on how to group or ungroup data."]
[]
[null,"2.12  INPUT TABLES"]
[null,"2.12.1 - DIRECT MATERIALS EXPENDITURE"]
[null,null,null,"EXPENDITURE"]
[null,null,null,"Actual ($0's)"]
[null,null,null,{"$f":"dms_y1","v":"2009"},{"$f":"dms_y2","v":2010},{"$f":"dms_y3","v":2011},{"$f":"dms_y4","v":2012},{"$f":"dms_y5","v":2013},{"$f":"dms_y6","v":2014},{"$f":"dms_y7","v":2015},{"$f":"dms_y8","v":2016},{"$f":"dms_y9","v":2017},{"$f":"dms_y10","v":2018}]
[null,"VEGETATION MANAGEMENT","Zone 1","","","","","","","",null,null,""]
[null,null,"Zone 2"]
[null,null,"Zone 3","","","","","","","",null,null,""]
[null,null,"Zone 4","","","","","","","",null,null,""]
[null,null,"Zone 5","","","","","","","",null,null,""]
[null,null,"Zone 6","","","","","","","",null,null,""]
[null,null,"Zone 7","","","","","","","",null,null,""]
[null,null,"Zone 8","","","","","","","",null,null,""]
[null,null,"Zone 9","","","","","","","",null,null,""]
[null,null,"Zone 10","","","","","","","",null,null,""]
[null,null,"Zone 11","","","","","","","",null,null,""]
[null,null,"Zone 12","","","","","","","",null,null,""]
[null,null,"Zone 13","","","","","","","",null,null,""]
[null,null,"Zone 14","","","","","","","",null,null,""]
[null,null,"Zone 15","","","","","","","",null,null,""]
[null,null,"Zone 16","","","","","","","",null,null,""]
[null,null,"Zone 17","","","","","","","",null,null,""]
[null,null,"Zone 18","","","","","","","",null,null,""]
[null,"ROUTINE MAINTENANCE","Pole top, overhead line & service line maintenance",null,"","","","","","",null,null,""]
[null,null,"Pole inspection and treatment","","","","","","","",null,null,""]
[null,null,"Overhead asset inspection","","","","","","","",null,null,""]
[null,null,"Network underground cable maintenance","","",null,null,null,""]
[null,null,"Distribution substation equipment & property maintenance","","","","","","","",null,null,""]
[null,null,"Zone substation equipment maintenance","","","","","","","",null,null,""]
[null,null,"Zone substation property maintenance","","","","","","","",null,null,""]
[null,null,"Public lighting maintenance","","","","","","","",null,null,""]
[null,null,"Scada & network control maintenance","","","","","","","",null,null,""]
[null,null,"Protection systems maintenance","","","","","","","",null,null,""]
[null,null,"Subtransmission asset maintenance - for dnsps with dual function assets","","","","","","","",null,null,""]
[null,null,"Other","","","","","","","",null,null,""]
[null,"NON-ROUTINE MAINTENANCE","Pole top, overhead line & service line maintenance","","","","","","","",null,null,""]
[null,null,"Pole inspection and treatment","","","","","","","",null,null,""]
[null,null,"Overhead asset inspection","","","","","","","",null,null,""]
[null,null,"Network underground cable maintenance","","","","","","","",null,null,""]
[null,null,"Distribution substation equipment & property maintenance","","","","","","","",null,null,""]
[null,null,"Zone substation equipment maintenance","","","","","","","",null,null,""]
[null,null,"Zone substation property maintenance","","","","","","","",null,null,""]
[null,null,"Public lighting maintenance","","","","","","","",null,null,""]
[null,null,"SCADA & network control maintenance","","","","","","","",null,null,""]
[null,null,"Protection systems maintenance","","","","","","","",null,null,""]
[null,null,"Subtransmission asset maintenance - for DNSP with dual function assets","","","","","","","",null,null,""]
[null,null,"Other","","","","","","","",null,null,""]
[null,"OVERHEADS","Network overheads","","","","","","","",null,null,""]
[null,null,"Corporate overheads","","","","","","","",null,null,""]
[null,"AUGMENTATION","Subtransmission substations, switching stations, zone substations","","","","","","","",null,null,""]
[null,null,"Subtransmission lines","","","","","","","",null,null,""]
[null,null,"HV feeders","","","","","","","",null,null,""]
[null,null,"Distribution substations","","","","","","","",null,null,""]
[null,null,"LV feeders","","","","","","","",null,null,""]
[null,null,"Other assets","","","","","","","",null,null,""]
[null,"CONNECTIONS","Simple and complex customer connections","","","","","","","",null,null,""]
[null,"EMERGENCY RESPONSE","Major storms","","","","","","","",null,null,""]
[null,null,"Major event days","","","","","","","",null,null,""]
[null,"PUBLIC LIGHTING","All public lighting services","","","","","","","",null,null,""]
[null,"METERING","All metering services","","","","","","","",null,null,""]
[null,"FEE-BASED SERVICES","All fee-based services","","","","","","","",null,null,""]
[null,"QUOTED SERVICES","All quoted services","","","","","","","",null,null,""]
[null,"REPLACEMENT","Poles","","","","","","","",null,null,""]
[null,null,"Pole top structures","","","","","","","",null,null,""]
[null,null,"Overhead conductors","","","","","","","",null,null,""]
[null,null,"Underground cables","","","","","","","",null,null,""]
[null,null,"Service lines","","","","","","","",null,null,""]
[null,null,"Transformers","","","","","","","",null,null,""]
[null,null,"Switchgear","","","","","","","",null,null,""]
[null,null,"Public lighting","","","","","","","",null,null,""]
[null,null,"SCADA network control and protection systems","","","","","","","",null,null,""]
[null,null,"Other","","","","","","","",null,null,""]
[null,"NON-NETWORK EXPENDITURE","IT and communications","","","","","","","",null,null,""]
[null,null,"Motor vehicles","","","","","","","",null,null,""]
[null,null,"Buildings and property","","","","","","","",null,null,""]
[null,null,"Other","","","","","","","",null,null,""]
[]
[]
[null,"2.12.2 - DIRECT LABOUR EXPENDITURE"]
[null,null,null,"EXPENDITURE"]
[null,null,null,"Actual ($0's)"]
[null,null,null,{"$f":"dms_y1","v":"2009"},{"$f":"dms_y2","v":2010},{"$f":"dms_y3","v":2011},{"$f":"dms_y4","v":2012},{"$f":"dms_y5","v":2013},{"$f":"dms_y6","v":2014},{"$f":"dms_y7","v":2015},{"$f":"dms_y8","v":2016},{"$f":"dms_y9","v":2017},{"$f":"dms_y10","v":2018}]
[null,"VEGETATION MANAGEMENT",{"$f":"IF(ISBLANK(C13),\" \",C13)","v":"Zone 1"},14391.401744498626,27421.988710316542,392074.13272631395,504710.09558860428,508723.7978036906,335644.15478634764,1004400.5717552522,2166636,2041247,40266581.742221154]
[null,null,{"$f":"IF(ISBLANK(C14),\" \",C14)","v":"Zone 2"},0,0,0,0,0,0,0,"                          -  ",0,0]
[null,null,"Zone 3","",0,0,0,0,0,0,"                          -  ",0,""]
[null,null,"Zone 4","",0,0,0,0,0,0,"                          -  ",0,""]
[null,null,"Zone 5","",0,0,0,0,0,0,"                          -  ",0,""]
[null,null,"Zone 6","",0,0,0,0,0,0,"                          -  ",0,""]
[null,null,"Zone 7","",0,0,0,0,0,0,"                          -  ",0,""]
[null,null,"Zone 8","",0,0,0,0,0,0,"                          -  ",0,""]
[null,null,"Zone 9","",0,0,0,0,0,0,"                          -  ",0,""]
[null,null,"Zone 10","",0,0,0,0,0,0,"                          -  ",0,""]
[null,null,"Zone 11","",0,0,0,0,0,0,"                          -  ",0,""]
[null,null,"Zone 12","",0,0,0,0,0,0,"                          -  ",0,""]
[null,null,"Zone 13","",0,0,0,0,0,0,"                          -  ",0,""]
[null,null,"Zone 14","",0,0,0,0,0,0,"                          -  ",0,""]
[null,null,"Zone 15","",0,0,0,0,0,0,"                          -  ",0,""]
[null,null,"Zone 16","",0,0,0,0,0,0,"                          -  ",0,""]
[null,null,"Zone 17","",0,0,0,0,0,0,"                          -  ",0,""]
[null,null,"Zone 18","",0,0,0,0,0,0,"                          -  ",0,""]
[null,"ROUTINE MAINTENANCE","Pole top, overhead line & service line maintenance",0,0,0,0,0,0,0,"                          -   ",0,0]
[null,null,"Pole inspection and treatment",96487.507021855185,24558.204637018531,449554.79890295939,426078.62136853026,509199.07813420397,669704.96187456464,726278.05497020448,5128693,4302850.957444191,7673476.7240115907]
[null,null,"Overhead asset inspection",95.237129155108377,67531.066548601724,3800.9601891749867,47972.231076712109,2156.8916015883192,0,855.01,222835,263074.66667580855,256912.27137705687]
[null,null,"Network underground cable maintenance",0,28618.510392783242,0,49802.333680275107,0,451033.49722963222,132590.89014380684,20958,3242.5482171669428,19817.313904460243]
[null,null,"Distribution substation equipment & property maintenance",1811768.2522319269,2431934.4095532722,2027904.1785202285,1409793.7710708382,1722077.5576292237,2933124.4078243552,4667152.3222638918,840987,3559011.663463295,2702015.5268397904]
[null,null,"Zone substation equipment maintenance",1388538.4926081493,1273595.1272014002,1110077.5021639466,931563.37988342228,1114151.7671799143,1040795.646081953,964465.35820590821,1572010,2243511.835979911,1293591.4316180791]
[null,null,"Zone substation property maintenance",677293.83299012994,875100.97539645131,1096968.787829774,2038063.5738854951,2830757.0666206311,2255045.827697848,615408.13830150315,"                          -  ",1913120.8100643863,1335019.0546824234]
[null,null,"Public lighting maintenance",1525205.0327019144,1588064.5347598493,1992035.2846127187,1815874.2890450764,1007637.0138568373,1279876.344809802,327101.18043478811,810553,1183501.1627061176,598679.8394674072]
[null,null,"Scada & network control maintenance",0,0,0,0,0,0,0,"                          -  ",3300.4213368002133,6241.838569705671]
[null,null,"Protection systems maintenance",334638.65512477909,330078.84760617797,418542.52195536747,665920.81879879255,631391.44584226166,921000.09078924498,626406.62111118122,600138,206980.73209183541,527974.93181925023]
[null,null,"Subtransmission asset maintenance - for dnsps with dual function assets",0,0,0,0,0,0,0,"                          -  ",0,0]
[null,null,"Other",883305.40349663573,206851.18487759246,1211877.1086146729,2137268.6014234619,2010947.8077912019,2502029.4590466004,1326245.4200000002,252634,401483.19283188583,438604.01353041804]
[null,"NON-ROUTINE MAINTENANCE","Pole top, overhead line & service line maintenance",6757755.2817845643,8613286.4296958521,8284189.6434047259,6738540.5406229887,9310738.5650870968,8902016.4676379077,6652056.9929803498,10434244,16589825.798188068,13160357.17545031]
[null,null,"Pole inspection and treatment",0,0,0,0,0,0,0,0,0,0]
[null,null,"Overhead asset inspection",324622.8,180493.88967412099,214209.15316134499,137632.44021979399,243713.53650291901,421149.89334257197,381000,688430,706686,746772.33000000007]
[null,null,"Network underground cable maintenance",1209125.9342355013,576795.68055087037,806454.96956073702,881919.36656397814,1003804.5692286518,672079.95403510658,631894.47648744297,2341576.4056000002,1328753.0066395442,1858576.6835812796]
[null,null,"Distribution substation equipment & property maintenance",319781.79838060972,380534.6953533772,332963.23873684794,353825.49511175469,528472.01131203154,1301646.570859588,2428341.4136700332,1619278,3700897.53735048,874328.48109352821]
[null,null,"Zone substation equipment maintenance",917508.76996058016,1393439.4767435584,1177261.2102060195,1306452.8513510227,1061242.3723409581,969169.23346009874,1261319.4714163679,1352444,1035077.2798180769,582115.69328136288]
[null,null,"Zone substation property maintenance",35311.886381927608,42683.964522614668,2688.0778154212699,19710.05033046578,114170.065133771,51499.542748175911,71178.436231970511,"                          -  ",0,0]
[null,null,"Public lighting maintenance",1339123.5174686115,1315434.8321829797,2039481.2601699536,2537555.7978254538,2725693.838623337,2654146.0480656018,367531.94074172643,1767452,1565754.7714015713,1388721.1963846756]
[null,null,"SCADA & network control maintenance",0,865.72414816590583,10386.109356395804,5250.9981414752365,17814.099187709024,14256.849646069662,16517.141718083898,257334,213966.84439042304,209836.07145772412]
[null,null,"Protection systems maintenance",450398.36949129245,467430.81572102115,735247.71899196552,664093.28357717465,543089.50385107507,455245.92107172427,488460.587878477,223746,316880.95951656374,223689.54174441227]
[null,null,"Subtransmission asset maintenance - for DNSP with dual function assets",0,0,0,0,0,0,0,"                          -  ",0,0]
[null,null,"Other",6419203.5600396143,7168148.017014211,6883528.5322939185,6554633.26990001,7341176.3330836985,6734537.0084131807,6369388.9469041899,4721468.8962999992,7870369.5113922097,4971672.9904229287]
[null,"OVERHEADS","Network overheads",37228000,39502000,36648000,42270000,42534000,48162513.029178284,47161157.927584365,46966884,51984891,48044857.385726772]
[null,null,"Corporate overheads",15983000,18397000,21209000,25091000,26416000,29020591.029702123,32905880.894435395,36044572,63022759,50289316.307246692]
[null,"AUGMENTATION","Subtransmission substations, switching stations, zone substations",3259771.6713454342,4542938.4971396094,2859375.9092227961,7619537.9733018354,2329359.1646350976,3401988.8024559231,2760241.035525098,2127636,4144545,1663687.689515762]
[null,null,"Subtransmission lines",1468869.6647245137,1785480.3676975737,3529125.9936888935,4026268.1130132508,1473354.3872502486,425363.20999821613,3146170.1667182753,1820489,2208719,1283659.7995371965]
[null,null,"HV feeders",3115016.4442990692,2642314.8333505499,4724065.0205234326,3665752.2389619988,6532647.8130697766,4659546.4903995264,1261827.8124582069,818724,2561553,2558789.4045129004]
[null,null,"Distribution substations",1210205.8926863577,1589542.2216314867,1113874.8246107928,858301.03887247294,493785.5438420162,594578.31902355328,425963.84907889535,179864,261909,855237.33717362443]
[null,null,"LV feeders",1420218.1715511929,664944.12405801774,432455.99947904039,481736.20771144785,298907.35971370857,343339.5723891473,128883.5366547921,48798,57913,302973.91579120798]
[null,null,"Other assets",721866.52995914896,677926.82273379026,1610619.8398616149,1063818.9858148682,3994850.7298447802,4308710.3360517835,4157428.3862626334,16453426,16043553,35506646.641346201]
[null,"CONNECTIONS","Simple and complex customer connections",26548205.184435084,32583819.340824176,32211605.461600114,32206577.321711585,32782052.018488858,34464472.207254075,33384571.276368923,26966802,34390584,38857199.615104161]
[null,"EMERGENCY RESPONSE","Major storms",0,0,0,0,0,0,0,"                          -   ",0,0]
[null,null,"Major event days",4791375.4116635174,4507965.0508035999,11064421.238202747,10419661.622562036,12041357.27729111,12062999.610813474,10751923.387261977,21397961,22783250.629766539,26204683.008218881]
[null,"PUBLIC LIGHTING","All public lighting services",5894836.958891456,5767747.5375364413,7579354.4649902973,8000007.4645708911,8079304.8518352844,10419547.63427466,5397522.3537725015,7183310,-2541108,6287898.2493284745]
[null,"METERING","All metering services",44862970.574726768,63950379.260357544,55257540.300243907,47855679.38491901,40570552.317412034,26810661.617158409,19355002.40222935,19097942,22323818,22735521.70608864]
[null,"FEE-BASED SERVICES","All fee-based services",823282.67241613951,744422.34769724461,8492449.0895118918,11336273.252346212,7371799.6311331587,6542441.4727457231,7732340.0244776662,3759983,867071,4709348.3468675204]
[null,"QUOTED SERVICES","All quoted services",15493272.374369174,9840500.703790877,12733376.054419426,13586336.941995451,15197143.681978539,17607378.569539387,30132166.102246933,17828090,2205615,37970296.480879977]
[null,"REPLACEMENT","Poles",5794018.4437738284,4770366.4185175635,8411310.6608003471,9229094.8432498407,11326856.798932999,14923956.122756954,10895289.426647607,9784963,9018204.5288009103,5942683.7080207672]
[null,null,"Pole top structures",4711736.4548611324,7617029.959009055,10969262.812017076,12240326.203312684,13066960.493814435,13511330.642032314,10634839.895636037,9492825,10271387.11900772,8279359.5402795449]
[null,null,"Overhead conductors",42461.614978985162,132719.15829386329,675317.98841150315,1302719.2166344263,1911167.3349443628,2592386.2852720283,4118357.7531447522,3569019.6799999997,4064333.7757816054,4213195.1894010073]
[null,null,"Underground cables",260660.37450642837,259285.79095346807,571131.30948964972,437679.44595308555,801877.5232256772,-24623.30447341199,173489.35521916882,-543757.85559999989,-284098.9877906664,-299558.58140562056]
[null,null,"Service lines",2094284.6206320873,1840204.938140593,2297107.4211039483,2377944.1406269548,3552202.7340058554,3096715.2604473699,4458036.4911336992,2260737,3029053.8320011841,4080215.1591068339]
[null,null,"Transformers",2666686.2006097911,4951547.3546994422,4349975.9644006472,4551010.7323188977,5642981.4436620101,4815932.9256866546,4932883.5064446721,3388036,4313001.2400677633,5351846.7626157571]
[null,null,"Switchgear",2712192.3744811937,3561230.7844646499,5877482.1417636648,6783598.8121132758,9389652.8017175179,8748636.3523498252,4977063.9258204605,709659,4658090.6548314765,7380854.5267062765]
[null,null,"Public lighting",458699.96410953824,596858.31152736163,420861.2491833372,503726.43195434008,947193.41992807388,1675471.4143290315,326656.77994956169,1123466,1353065.983401357,2550470.7789780349]
[null,null,"SCADA network control and protection systems",1426791.5703409808,1469589.8608867377,2364970.6409217846,2516737.5282993019,1043207.4182070103,778479.26751790522,1514867.1654133722,1380340,1553600.3036528868,702108.43318766146]
[null,null,"Other",4722308.3564496357,3747709.8443141337,3993032.958798239,7620624.925364323,7071584.583839342,7700111.0361308847,6682444.3822295833,6802235.1037000008,7719493.368004756,8920597.0590038002]
[null,"NON-NETWORK EXPENDITURE","IT and communications",6649045.5421532402,11790006.936589962,22386568.332802393,19000713.729762606,21068528.834946968,29216415.700244192,55159482.466886386,62600431,49810791,45175467.498107061]
[null,null,"Motor vehicles",-58509.019034694102,-151083.36936334032,-109177.34369077793,-12515.204433456291,-55261.699648899441,0,0,"                          -  ",167948,37157.04939494162]
[null,null,"Buildings and property",-10736.655596995508,-22342.380061720549,4240.6185957198932,24142.862764652524,-9525.5132223928085,283720.61,504014.17,"                          -  ",145949,45144.443583010616]
[null,null,"Other",-5053.2140123313511,-17740.410448239712,-11276.13157779828,-3200.5903361136416,289418.58216309507,562109.22,0,"                          -  ",15605,4610.4680919704779]
[]
[]
[null,"2.12.3 - CONTRACT EXPENDITURE"]
[null,null,null,"EXPENDITURE"]
[null,null,null,"Actual ($0's)"]
[null,null,null,{"$f":"dms_y1","v":"2009"},{"$f":"dms_y2","v":2010},{"$f":"dms_y3","v":2011},{"$f":"dms_y4","v":2012},{"$f":"dms_y5","v":2013},{"$f":"dms_y6","v":2014},{"$f":"dms_y7","v":2015},{"$f":"dms_y8","v":2016},{"$f":"dms_y9","v":2017},{"$f":"dms_y10","v":2018}]
[null,"VEGETATION MANAGEMENT",{"$f":"IF(ISBLANK(C13),\" \",C13)","v":"Zone 1"}]
[null,null,"Zone 2"]
[null,null,"Zone 3"]
[null,null,"Zone 4"]
[null,null,"Zone 5"]
[null,null,"Zone 6"]
[null,null,"Zone 7","","","","","","","",null,null,""]
[null,null,"Zone 8","","","","","","","",null,null,""]
[null,null,"Zone 9","","","","","","","",null,null,""]
[null,null,"Zone 10","","","","","","","",null,null,""]
[null,null,"Zone 11","","","","","","","",null,null,""]
[null,null,"Zone 12","","","","","","","",null,null,""]
[null,null,"Zone 13","","","","","","","",null,null,""]
[null,null,"Zone 14","","","","","","","",null,null,""]
[null,null,"Zone 15","","","","","","","",null,null,""]
[null,null,"Zone 16","","","","","","","",null,null,""]
[null,null,"Zone 17","","","","","","","",null,null,""]
[null,null,"Zone 18","","","","","","","",null,null,""]
[null,"ROUTINE MAINTENANCE","Pole top, overhead line & service line maintenance",null,"","","","","","",null,null,""]
[null,null,"Pole inspection and treatment","","","","","","","",null,null,""]
[null,null,"Overhead asset inspection","","","","","","","",null,null,""]
[null,null,"Network underground cable maintenance","","",null,null,null,""]
[null,null,"Distribution substation equipment & property maintenance","","","","","","","",null,null,""]
[null,null,"Zone substation equipment maintenance","","","","","","","",null,null,""]
[null,null,"Zone substation property maintenance","","","","","","","",null,null,""]
[null,null,"Public lighting maintenance","","","","","","","",null,null,""]
[null,null,"Scada & network control maintenance","","","","","","","",null,null,""]
[null,null,"Protection systems maintenance","","","","","","","",null,null,""]
[null,null,"Subtransmission asset maintenance - for dnsps with dual function assets","","","","","","","",null,null,""]
[null,null,"Other","","","","","","","",null,null,""]
[null,"NON-ROUTINE MAINTENANCE","Pole top, overhead line & service line maintenance","","","","","","","",null,null,""]
[null,null,"Pole inspection and treatment","","","","","","","",null,null,""]
[null,null,"Overhead asset inspection","","","","","","","",null,null,""]
[null,null,"Network underground cable maintenance","","","","","","","",null,null,""]
[null,null,"Distribution substation equipment & property maintenance","","","","","","","",null,null,""]
[null,null,"Zone substation equipment maintenance","","","","","","","",null,null,""]
[null,null,"Zone substation property maintenance","","","","","","","",null,null,""]
[null,null,"Public lighting maintenance","","","","","","","",null,null,""]
[null,null,"SCADA & network control maintenance","","","","","","","",null,null,""]
[null,null,"Protection systems maintenance","","","","","","","",null,null,""]
[null,null,"Subtransmission asset maintenance - for DNSP with dual function assets","","","","","","","",null,null,""]
[null,null,"Other","","","","","","","",null,null,""]
[null,"OVERHEADS","Network overheads","","","","","","","",null,null,""]
[null,null,"Corporate overheads","","","","","","","",null,null,""]
[null,"AUGMENTATION","Subtransmission substations, switching stations, zone substations","","","","","","","",null,null,""]
[null,null,"Subtransmission lines","","","","","","","",null,null,""]
[null,null,"HV feeders","","","","","","","",null,null,""]
[null,null,"Distribution substations","","","","","","","",null,null,""]
[null,null,"LV feeders","","","","","","","",null,null,""]
[null,null,"Other assets","","","","","","","",null,null,""]
[null,"CONNECTIONS","Simple and complex customer connections","","","","","","","",null,null,""]
[null,"EMERGENCY RESPONSE","Major storms","","","","","","","",null,null,""]
[null,null,"Major event days","","","","","","","",null,null,""]
[null,"PUBLIC LIGHTING","All public lighting services","","","","","","","",null,null,""]
[null,"METERING","All metering services","","","","","","","",null,null,""]
[null,"FEE-BASED SERVICES","All fee-based services","","","","","","","",null,null,""]
[null,"QUOTED SERVICES","All quoted services","","","","","","","",null,null,""]
[null,"REPLACEMENT","Poles","","","","","","","",null,null,""]
[null,null,"Pole top structures","","","","","","","",null,null,""]
[null,null,"Overhead conductors","","","","","","","",null,null,""]
[null,null,"Underground cables","","","","","","","",null,null,""]
[null,null,"Service lines","","","","","","","",null,null,""]
[null,null,"Transformers","","","","","","","",null,null,""]
[null,null,"Switchgear","","","","","","","",null,null,""]
[null,null,"Public lighting","","","","","","","",null,null,""]
[null,null,"SCADA network control and protection systems","","","","","","","",null,null,""]
[null,null,"Other","","","","","","","",null,null,""]
[null,"NON-NETWORK EXPENDITURE","IT and communications","","","","","","","",null,null,""]
[null,null,"Motor vehicles","","","","","","","",null,null,""]
[null,null,"Buildings and property","","","","","","","",null,null,""]
[null,null,"Other","","","","","","","",null,null,""]
[]
[]
[null,"2.12.4 - OTHER EXPENDITURE"]
[null,null,null,"EXPENDITURE"]
[null,null,null,"Actual ($0's)"]
[null,null,null,{"$f":"dms_y1","v":"2009"},{"$f":"dms_y2","v":2010},{"$f":"dms_y3","v":2011},{"$f":"dms_y4","v":2012},{"$f":"dms_y5","v":2013},{"$f":"dms_y6","v":2014},{"$f":"dms_y7","v":2015},{"$f":"dms_y8","v":2016},{"$f":"dms_y9","v":2017},{"$f":"dms_y10","v":2018}]
[null,"VEGETATION MANAGEMENT",{"$f":"IF(ISBLANK(C13),\" \",C13)","v":"Zone 1"},"","","","","","","",null,null,""]
[null,null,"Zone 2"]
[null,null,"Zone 3","","","","","","","",null,null,""]
[null,null,"Zone 4","","","","","","","",null,null,""]
[null,null,"Zone 5","","","","","","","",null,null,""]
[null,null,"Zone 6","","","","","","","",null,null,""]
[null,null,"Zone 7","","","","","","","",null,null,""]
[null,null,"Zone 8","","","","","","","",null,null,""]
[null,null,"Zone 9","","","","","","","",null,null,""]
[null,null,"Zone 10","","","","","","","",null,null,""]
[null,null,"Zone 11","","","","","","","",null,null,""]
[null,null,"Zone 12","","","","","","","",null,null,""]
[null,null,"Zone 13","","","","","","","",null,null,""]
[null,null,"Zone 14","","","","","","","",null,null,""]
[null,null,"Zone 15","","","","","","","",null,null,""]
[null,null,"Zone 16","","","","","","","",null,null,""]
[null,null,"Zone 17","","","","","","","",null,null,""]
[null,null,"Zone 18","","","","","","","",null,null,""]
[null,"ROUTINE MAINTENANCE","Pole top, overhead line & service line maintenance",null,"","","","","","",null,null,""]
[null,null,"Pole inspection and treatment","","","","","","","",null,null,""]
[null,null,"Overhead asset inspection","","","","","","","",null,null,""]
[null,null,"Network underground cable maintenance","","",null,null,null,""]
[null,null,"Distribution substation equipment & property maintenance","","","","","","","",null,null,""]
[null,null,"Zone substation equipment maintenance","","","","","","","",null,null,""]
[null,null,"Zone substation property maintenance","","","","","","","",null,null,""]
[null,null,"Public lighting maintenance","","","","","","","",null,null,""]
[null,null,"Scada & network control maintenance","","","","","","","",null,null,""]
[null,null,"Protection systems maintenance","","","","","","","",null,null,""]
[null,null,"Subtransmission asset maintenance - for dnsps with dual function assets","","","","","","","",null,null,""]
[null,null,"Other","","","","","","","",null,null,""]
[null,"NON-ROUTINE MAINTENANCE","Pole top, overhead line & service line maintenance","","","","","","","",null,null,""]
[null,null,"Pole inspection and treatment","","","","","","","",null,null,""]
[null,null,"Overhead asset inspection","","","","","","","",null,null,""]
[null,null,"Network underground cable maintenance","","","","","","","",null,null,""]
[null,null,"Distribution substation equipment & property maintenance","","","","","","","",null,null,""]
[null,null,"Zone substation equipment maintenance","","","","","","","",null,null,""]
[null,null,"Zone substation property maintenance","","","","","","","",null,null,""]
[null,null,"Public lighting maintenance","","","","","","","",null,null,""]
[null,null,"SCADA & network control maintenance","","","","","","","",null,null,""]
[null,null,"Protection systems maintenance","","","","","","","",null,null,""]
[null,null,"Subtransmission asset maintenance - for DNSP with dual function assets","","","","","","","",null,null,""]
[null,null,"Other","","","","","","","",null,null,""]
[null,"OVERHEADS","Network overheads","","","","","","","",null,null,""]
[null,null,"Corporate overheads","","","","","","","",null,null,""]
[null,"AUGMENTATION","Subtransmission substations, switching stations, zone substations","","","","","","","",null,null,""]
[null,null,"Subtransmission lines","","","","","","","",null,null,""]
[null,null,"HV feeders","","","","","","","",null,null,""]
[null,null,"Distribution substations","","","","","","","",null,null,""]
[null,null,"LV feeders","","","","","","","",null,null,""]
[null,null,"Other assets","","","","","","","",null,null,""]
[null,"CONNECTIONS","Simple and complex customer connections","","","","","","","",null,null,""]
[null,"EMERGENCY RESPONSE","Major storms","","","","","","","",null,null,""]
[null,null,"Major event days","","","","","","","",null,null,""]
[null,"PUBLIC LIGHTING","All public lighting services","","","","","","","",null,null,""]
[null,"METERING","All metering services","","","","","","","",null,null,""]
[null,"FEE-BASED SERVICES","All fee-based services","","","","","","","",null,null,""]
[null,"QUOTED SERVICES","All quoted services","","","","","","","",null,null,""]
[null,"REPLACEMENT","Poles","","","","","","","",null,null,""]
[null,null,"Pole top structures","","","","","","","",null,null,""]
[null,null,"Overhead conductors","","","","","","","",null,null,""]
[null,null,"Underground cables","","","","","","","",null,null,""]
[null,null,"Service lines","","","","","","","",null,null,""]
[null,null,"Transformers","","","","","","","",null,null,""]
[null,null,"Switchgear","","","","","","","",null,null,""]
[null,null,"Public lighting","","","","","","","",null,null,""]
[null,null,"SCADA network control and protection systems","","","","","","","",null,null,""]
[null,null,"Other","","","","","","","",null,null,""]
[null,"NON-NETWORK EXPENDITURE","IT and communications","","","","","","","",null,null,""]
[null,null,"Motor vehicles","","","","","","","",null,null,""]
[null,null,"Buildings and property","","","","","","","",null,null,""]
[null,null,"Other","","","","","","","",null,null,""]
[]
[]
[null,"2.12.5 - RELATED PARTY CONTRACT EXPENDITURE"]
[null,null,null,"EXPENDITURE"]
[null,null,null,"Actual ($0's)"]
[null,null,null,{"$f":"dms_y1","v":"2009"},{"$f":"dms_y2","v":2010},{"$f":"dms_y3","v":2011},{"$f":"dms_y4","v":2012},{"$f":"dms_y5","v":2013},{"$f":"dms_y6","v":2014},{"$f":"dms_y7","v":2015},{"$f":"dms_y8","v":2016},{"$f":"dms_y9","v":2017},{"$f":"dms_y10","v":2018}]
[null,"VEGETATION MANAGEMENT",{"$f":"IF(ISBLANK(C13),\" \",C13)","v":"Zone 1"},"","","","","","","",null,null,""]
[null,null,"Zone 2"]
[null,null,"Zone 3","","","","","","","",null,null,""]
[null,null,"Zone 4","","","","","","","",null,null,""]
[null,null,"Zone 5","","","","","","","",null,null,""]
[null,null,"Zone 6","","","","","","","",null,null,""]
[null,null,"Zone 7","","","","","","","",null,null,""]
[null,null,"Zone 8","","","","","","","",null,null,""]
[null,null,"Zone 9","","","","","","","",null,null,""]
[null,null,"Zone 10","","","","","","","",null,null,""]
[null,null,"Zone 11","","","","","","","",null,null,""]
[null,null,"Zone 12","","","","","","","",null,null,""]
[null,null,"Zone 13","","","","","","","",null,null,""]
[null,null,"Zone 14","","","","","","","",null,null,""]
[null,null,"Zone 15","","","","","","","",null,null,""]
[null,null,"Zone 16","","","","","","","",null,null,""]
[null,null,"Zone 17","","","","","","","",null,null,""]
[null,null,"Zone 18","","","","","","","",null,null,""]
[null,"ROUTINE MAINTENANCE","Pole top, overhead line & service line maintenance",null,"","","","","","",null,null,""]
[null,null,"Pole inspection and treatment","","","","","","","",null,null,""]
[null,null,"Overhead asset inspection","","","","","","","",null,null,""]
[null,null,"Network underground cable maintenance","","",null,null,null,""]
[null,null,"Distribution substation equipment & property maintenance","","","","","","","",null,null,""]
[null,null,"Zone substation equipment maintenance","","","","","","","",null,null,""]
[null,null,"Zone substation property maintenance","","","","","","","",null,null,""]
[null,null,"Public lighting maintenance","","","","","","","",null,null,""]
[null,null,"Scada & network control maintenance","","","","","","","",null,null,""]
[null,null,"Protection systems maintenance","","","","","","","",null,null,""]
[null,null,"Subtransmission asset maintenance - for dnsps with dual function assets","","","","","","","",null,null,""]
[null,null,"Other","","","","","","","",null,null,""]
[null,"NON-ROUTINE MAINTENANCE","Pole top, overhead line & service line maintenance","","","","","","","",null,null,""]
[null,null,"Pole inspection and treatment","","","","","","","",null,null,""]
[null,null,"Overhead asset inspection","","","","","","","",null,null,""]
[null,null,"Network underground cable maintenance","","","","","","","",null,null,""]
[null,null,"Distribution substation equipment & property maintenance","","","","","","","",null,null,""]
[null,null,"Zone substation equipment maintenance","","","","","","","",null,null,""]
[null,null,"Zone substation property maintenance","","","","","","","",null,null,""]
[null,null,"Public lighting maintenance","","","","","","","",null,null,""]
[null,null,"SCADA & network control maintenance","","","","","","","",null,null,""]
[null,null,"Protection systems maintenance","","","","","","","",null,null,""]
[null,null,"Subtransmission asset maintenance - for DNSP with dual function assets","","","","","","","",null,null,""]
[null,null,"Other","","","","","","","",null,null,""]
[null,"OVERHEADS","Network overheads","","","","","","","",null,null,""]
[null,null,"Corporate overheads","","","","","","","",null,null,""]
[null,"AUGMENTATION","Subtransmission substations, switching stations, zone substations","","","","","","","",null,null,""]
[null,null,"Subtransmission lines","","","","","","","",null,null,""]
[null,null,"HV feeders","","","","","","","",null,null,""]
[null,null,"Distribution substations","","","","","","","",null,null,""]
[null,null,"LV feeders","","","","","","","",null,null,""]
[null,null,"Other assets","","","","","","","",null,null,""]
[null,"CONNECTIONS","Simple and complex customer connections","","","","","","","",null,null,""]
[null,"EMERGENCY RESPONSE","Major storms","","","","","","","",null,null,""]
[null,null,"Major event days","","","","","","","",null,null,""]
[null,"PUBLIC LIGHTING","All public lighting services","","","","","","","",null,null,""]
[null,"METERING","All metering services","","","","","","","",null,null,""]
[null,"FEE-BASED SERVICES","All fee-based services","","","","","","","",null,null,""]
[null,"QUOTED SERVICES","All quoted services","","","","","","","",null,null,""]
[null,"REPLACEMENT","Poles","","","","","","","",null,null,""]
[null,null,"Pole top structures","","","","","","","",null,null,""]
[null,null,"Overhead conductors","","","","","","","",null,null,""]
[null,null,"Underground cables","","","","","","","",null,null,""]
[null,null,"Service lines","","","","","","","",null,null,""]
[null,null,"Transformers","","","","","","","",null,null,""]
[null,null,"Switchgear","","","","","","","",null,null,""]
[null,null,"Public lighting","","","","","","","",null,null,""]
[null,null,"SCADA network control and protection systems","","","","","","","",null,null,""]
[null,null,"Other","","","","","","","",null,null,""]
[null,"NON-NETWORK EXPENDITURE","IT and communications","","","","","","","",null,null,""]
[null,null,"Motor vehicles","","","","","","","",null,null,""]
[null,null,"Buildings and property","","","","","","","",null,null,""]
[null,null,"Other","","","","","","","",null,null,""]
[]
[]
[null,"2.12.6 - RELATED PARTY CONTRACT MARGIN EXPENDITURE"]
[null,null,null,"EXPENDITURE"]
[null,null,null,"Actual ($0's)"]
[null,null,null,{"$f":"dms_y1","v":"2009"},{"$f":"dms_y2","v":2010},{"$f":"dms_y3","v":2011},{"$f":"dms_y4","v":2012},{"$f":"dms_y5","v":2013},{"$f":"dms_y6","v":2014},{"$f":"dms_y7","v":2015},{"$f":"dms_y8","v":2016},{"$f":"dms_y9","v":2017},{"$f":"dms_y10","v":2018}]
[null,"VEGETATION MANAGEMENT",{"$f":"IF(ISBLANK(C13),\" \",C13)","v":"Zone 1"},"","","","","","","",null,null,""]
[null,null,"Zone 2"]
[null,null,"Zone 3","","","","","","","",null,null,""]
[null,null,"Zone 4","","","","","","","",null,null,""]
[null,null,"Zone 5","","","","","","","",null,null,""]
[null,null,"Zone 6","","","","","","","",null,null,""]
[null,null,"Zone 7","","","","","","","",null,null,""]
[null,null,"Zone 8","","","","","","","",null,null,""]
[null,null,"Zone 9","","","","","","","",null,null,""]
[null,null,"Zone 10","","","","","","","",null,null,""]
[null,null,"Zone 11","","","","","","","",null,null,""]
[null,null,"Zone 12","","","","","","","",null,null,""]
[null,null,"Zone 13","","","","","","","",null,null,""]
[null,null,"Zone 14","","","","","","","",null,null,""]
[null,null,"Zone 15","","","","","","","",null,null,""]
[null,null,"Zone 16","","","","","","","",null,null,""]
[null,null,"Zone 17","","","","","","","",null,null,""]
[null,null,"Zone 18","","","","","","","",null,null,""]
[null,"ROUTINE MAINTENANCE","Pole top, overhead line & service line maintenance",null,"","","","","","",null,null,""]
[null,null,"Pole inspection and treatment","","","","","","","",null,null,""]
[null,null,"Overhead asset inspection","","","","","","","",null,null,""]
[null,null,"Network underground cable maintenance","","",null,null,null,""]
[null,null,"Distribution substation equipment & property maintenance","","","","","","","",null,null,""]
[null,null,"Zone substation equipment maintenance","","","","","","","",null,null,""]
[null,null,"Zone substation property maintenance","","","","","","","",null,null,""]
[null,null,"Public lighting maintenance","","","","","","","",null,null,""]
[null,null,"Scada & network control maintenance","","","","","","","",null,null,""]
[null,null,"Protection systems maintenance","","","","","","","",null,null,""]
[null,null,"Subtransmission asset maintenance - for dnsps with dual function assets","","","","","","","",null,null,""]
[null,null,"Other","","","","","","","",null,null,""]
[null,"NON-ROUTINE MAINTENANCE","Pole top, overhead line & service line maintenance","","","","","","","",null,null,""]
[null,null,"Pole inspection and treatment","","","","","","","",null,null,""]
[null,null,"Overhead asset inspection","","","","","","","",null,null,""]
[null,null,"Network underground cable maintenance","","","","","","","",null,null,""]
[null,null,"Distribution substation equipment & property maintenance","","","","","","","",null,null,""]
[null,null,"Zone substation equipment maintenance","","","","","","","",null,null,""]
[null,null,"Zone substation property maintenance","","","","","","","",null,null,""]
[null,null,"Public lighting maintenance","","","","","","","",null,null,""]
[null,null,"SCADA & network control maintenance","","","","","","","",null,null,""]
[null,null,"Protection systems maintenance","","","","","","","",null,null,""]
[null,null,"Subtransmission asset maintenance - for DNSP with dual function assets","","","","","","","",null,null,""]
[null,null,"Other","","","","","","","",null,null,""]
[null,"OVERHEADS","Network overheads","","","","","","","",null,null,""]
[null,null,"Corporate overheads","","","","","","","",null,null,""]
[null,"AUGMENTATION","Subtransmission substations, switching stations, zone substations","","","","","","","",null,null,""]
[null,null,"Subtransmission lines","","","","","","","",null,null,""]
[null,null,"HV feeders","","","","","","","",null,null,""]
[null,null,"Distribution substations","","","","","","","",null,null,""]
[null,null,"LV feeders","","","","","","","",null,null,""]
[null,null,"Other assets","","","","","","","",null,null,""]
[null,"CONNECTIONS","Simple and complex customer connections","","","","","","","",null,null,""]
[null,"EMERGENCY RESPONSE","Major storms","","","","","","","",null,null,""]
[null,null,"Major event days","","","","","","","",null,null,""]
[null,"PUBLIC LIGHTING","All public lighting services","","","","","","","",null,null,""]
[null,"METERING","All metering services","","","","","","","",null,null,""]
[null,"FEE-BASED SERVICES","All fee-based services","","","","","","","",null,null,""]
[null,"QUOTED SERVICES","All quoted services","","","","","","","",null,null,""]
[null,"REPLACEMENT","Poles","","","","","","","",null,null,""]
[null,null,"Pole top structures","","","","","","","",null,null,""]
[null,null,"Overhead conductors","","","","","","","",null,null,""]
[null,null,"Underground cables","","","","","","","",null,null,""]
[null,null,"Service lines","","","","","","","",null,null,""]
[null,null,"Transformers","","","","","","","",null,null,""]
[null,null,"Switchgear","","","","","","","",null,null,""]
[null,null,"Public lighting","","","","","","","",null,null,""]
[null,null,"SCADA network control and protection systems","","","","","","","",null,null,""]
[null,null,"Other","","","","","","","",null,null,""]
[null,"NON-NETWORK EXPENDITURE","IT and communications","","","","","","","",null,null,""]
[null,null,"Motor vehicles","","","","","","","",null,null,""]
[null,null,"Buildings and property","","","","","","","",null,null,""]
[null,null,"Other","","","","","","","",null,null,""]

{"sheet":"4.2 Metering","index":18,"n_rows":45,"n_cols":13,"rows_kept":45,"cut":false,"hidden":false,"merged":[[9,3,9,12],[5,1,5,2]]}
[null,{"$f":"INDEX(dms_Worksheet_List,MATCH(dms_Model,dms_Model_List))","v":"RECAST HISTORICAL CATEGORY ANALYSIS - CALENDAR YEARS"}]
[null,{"$f":"INDEX(dms_TradingNameFull_List,MATCH(dms_TradingName,dms_TradingName_List))","v":"Powercor Australia"}]
[null,{"$f":"dms_Header_Span","v":"2009 to 2018"}]
[null,"4.2 METERING"]
[]
[null,"There are TWO tables on this worksheet. Each table has been 'grouped' (and 'sub-grouped') for easy navigation. See the Instructions sheet on how to group or ungroup data."]
[]
[null,"4.2.2 - COST METRICS"]
[null,"EXPENDITURE"]
[null,null,null,"EXPENDITURE\n($0's)"]
[null,"SERVICE SUBCATEGORY","METER TYPE",{"$f":"dms_y1","v":"2009"},{"$f":"dms_y2","v":2010},{"$f":"dms_y3","v":2011},{"$f":"dms_y4","v":2012},{"$f":"dms_y5","v":2013},{"$f":"dms_y6","v":2014},{"$f":"dms_y7","v":2015},{"$f":"dms_y8","v":2016},{"$f":"dms_y9","v":2017},{"$f":"dms_y10","v":2018}]
[null,"Meter purchase ","Meter Type 4"]
[null,null,"Meter Type 5"]
[null,null,"Meter Type 6"]
[null,"Meter testing ","Meter Type 4"]
[null,null,"Meter Type 5"]
[null,null,"Meter Type 6"]
[null,"Meter investigation ","Meter Type 4"]
[null,null,"Meter Type 5"]
[null,null,"Meter Type 6"]
[null,"Scheduled meter reading ","Meter Type 4"]
[null,null,"Meter Type 5"]
[null,null,"Meter Type 6"]
[null,"Special meter reading ","Meter Type 4"]
[null,null,"Meter Type 5"]
[null,null,"Meter Type 6"]
[null,"New meter installation ","Meter Type 4"]
[null,null,"Meter Type 5"]
[null,null,"Meter Type 6"]
[null,"Meter replacement ","Meter Type 4"]
[null,null,"Meter Type 5"]
[null,null,"Meter Type 6"]
[null,"Meter maintenance ","Meter Type 4"]
[null,null,"Meter Type 5"]
[null,null,"Meter Type 6"]
[null,"Remote meter reading ","Meter Type 4"]
[null,"Remote meter re-configuration ","Meter Type 4"]
[null,"Other metering ","Meter Type 4"]
[null,null,"Meter Type 5"]
[null,null,"Meter Type 6"]
[null,null,"Meter Type 7"]
[null,"IT infrastructure capex ","Meter Type 4"]
[null,"IT infrastructure opex ","Meter Type 4"]
[null,"Communications infrastructure capex ","Meter Type 4"]
[null,"Communications infrastructure opex ","Meter Type 4"]

{"sheet":"4.3 Fee-based services","index":19,"n_rows":483,"n_cols":12,"rows_kept":483,"cut":false,"hidden":false,"merged":[[9,2,9,11],[5,1,5,2]]}
[null,{"$f":"INDEX(dms_Worksheet_List,MATCH(dms_Model,dms_Model_List))","v":"RECAST HISTORICAL CATEGORY ANALYSIS - CALENDAR YEARS"}]
[null,{"$f":"INDEX(dms_TradingNameFull_List,MATCH(dms_TradingName,dms_TradingName_List))","v":"Powercor Australia"}]
[null,{"$f":"dms_Header_Span","v":"2009 to 2018"}]
[null,"4.3 ANCILLARY SERVICES - FEE BASED SERVICES"]
[]
[null,"There is ONE table on this worksheet. The COLUMNS AND ROWS have been 'grouped' for easy navigation. See the Instructions sheet on how to group or ungroup data."]
[]
[null,"4.3.1 - COST METRICS FOR FEE-BASED SERVICES"]
[null,"COMMON FEE-BASED SERVICES"]
[null,null,"EXPENDITURE \n($0's)"]
[null,"SERVICE SUBCATEGORY",{"$f":"dms_y1","v":"2009"},{"$f":"dms_y2","v":2010},{"$f":"dms_y3","v":2011},{"$f":"dms_y4","v":2012},{"$f":"dms_y5","v":2013},{"$f":"dms_y6","v":2014},{"$f":"dms_y7","v":2015},{"$f":"dms_y8","v":2016},{"$f":"dms_y9","v":2017},{"$f":"dms_y10","v":2018}]
[null,"Energisation"]
[null,"De-energisation"]
[null,"Re-energisation"]
[null,"MISCELLANEOUS FEE-BASED SERVICES"]
[null,"< Enter description of service >"]
[]
[]
[]
[]
[]
[]
[]
[]
[null,null,"","","","","","",""]
[null,null,"","","","","","",""]
[null,null,"","","","","","",""]
[null,null,"","","","","","",""]
[null,null,"","","","","","",""]
[null,null,"","","","","","",""]
[null,null,"","","","","","",""]
[null,null,"","","","","","",""]
[null,null,"","","","","","",""]
[null,null,"","","","","","",""]
[null,null,"","","","","","",""]
[null,null,"","","","","","",""]
[null,null,"","","","","","",""]
[null,null,"","","","","","",""]
[null,null,"","","","","","",""]
[null,null,"","","","","","",""]
[null,null,"","","","","","",""]
[null,null,"","","","","","",""]
[null,null,"","","","","","",""]
[null,null,"","","","","","",""]
[null,null,"","","","","","",""]
[null,null,"","","","","","",""]
[null,null,"","","","","","",""]
[null,null,"","","","","","",""]
[null,null,"","","","","","",""]
[null,null,"","","","","","",""]
[null,null,"","","","","","",""]
[null,null,"","","","","","",""]
[null,null,"","","","","","",""]
[null,null,"","","","","","",""]
[null,null,"","","","","","",""]
[null,null,"","","","","","",""]
[null,null,"","","","","","",""]
[null,null,"","","","","","",""]
[null,null,"","","","","","",""]
[null,null,"","","","","","",""]
[null,null,"","","","","","",""]
[null,null,"","","","","","",""]
[null,null,"","","","","","",""]
[null,null,"","","","","","",""]
[null,null,"","","","","","",""]
[null,null,"","","","","","",""]
[null,null,"","","","","","",""]
[null,null,"","","","","","",""]
[null,null,"","","","","","",""]
[null,null,"","","","","","",""]
[null,null,"","","","","","",""]
[null,null,"","","","","","",""]
[null,null,"","","","","","",""]
[null,null,"","","","","","",""]
[null,null,"","","","","","",""]
[null,null,"","","","","","",""]
[null,null,"","","","","","",""]
[null,null,"","","","","","",""]
[null,null,"","","","","","",""]
[null,null,"","","","","","",""]
[null,null,"","","","","","",""]
[null,null,"","","","","","",""]
[null,null,"","","","","","",""]
[null,null,"","","","","","",""]
[null,null,"","","","","","",""]
[null,null,"","","","","","",""]
[null,null,"","","","","","",""]
[null,null,"","","","","","",""]
[null,null,"","","","","","",""]
[null,null,"","","","","","",""]
[null,null,"","","","","","",""]
[null,null,"","","","","","",""]
[null,null,"","","","","","",""]
[null,null,"","","","","","",""]
[null,null,"","","","","","",""]
[null,null,"","","","","","",""]
[null,null,"","","","","","",""]
[null,null,"","","","","","",""]
[null,null,"","","","","","",""]
[null,null,"","","","","","",""]
[null,null,"","","","","","",""]
[null,null,"","","","","","",""]
[null,null,"","","","","","",""]
[null,null,"","","","","","",""]
[null,null,"","","","","","",""]
[null,null,"","","","","","",""]
[null,null,"","","","","","",""]
[null,null,"","","","","","",""]
[null,null,"","","","","","",""]
[null,null,"","","","","","",""]
[null,null,"","","","","","",""]
[null,null,"","","","","","",""]
[null,null,"","","","","","",""]
[null,null,"","","","","","",""]
[null,null,"","","","","","",""]
[null,null,"","","","","","",""]
[null,null,"","","","","","",""]
[null,null,"","","","","","",""]
[null,null,"","","","","","",""]
[null,null,"","","","","","",""]
[null,null,"","","","","","",""]
[null,null,"","","","","","",""]
[null,null,"","","","","","",""]
[null,null,"","","","","","",""]
[null,null,"","","","","","",""]
[null,null,"","","","","","",""]
[null,null,"","","","","","",""]
[null,null,"","","","","","",""]
[null,null,"","","","","","",""]
[null,null,"","","","","","",""]
[null,null,"","","","","","",""]
[null,null,"","","","","","",""]
[null,null,"","","","","","",""]
[null,null,"","","","","","",""]
[null,null,"","","","","","",""]
[null,null,"","","","","","",""]
[null,null,"","","","","","",""]
[null,null,"","","","","","",""]
[null,null,"","","","","","",""]
[null,null,"","","","","","",""]
[null,null,"","","","","","",""]
[null,null,"","","","","","",""]
[null,null,"","","","","","",""]
[null,null,"","","","","","",""]
[null,null,"","","","","","",""]
[null,null,"","","","","","",""]
[null,null,"","","","","","",""]
[null,null,"","","","","","",""]
[null,null,"","","","","","",""]
[null,null,"","","","","","",""]
[null,null,"","","","","","",""]
[null,null,"","","","","","",""]
[null,null,"","","","","","",""]
[null,null,"","","","","","",""]
[null,null,"","","","","","",""]
[null,null,"","","","","","",""]
[null,null,"","","","","","",""]
[null,null,"","","","","","",""]
[null,null,"","","","","","",""]
[null,null,"","","","","","",""]
[null,null,"","","","","","",""]
[null,null,"","","","","","",""]
[null,null,"","","","","","",""]
[null,null,"","","","","","",""]
[null,null,"","","","","","",""]
[null,null,"","","","","","",""]
[null,null,"","","","","","",""]
[null,null,"","","","","","",""]
[null,null,"","","","","","",""]
[null,null,"","","","","","",""]
[null,null,"","","","","","",""]
[null,null,"","","","","","",""]
[null,null,"","","","","","",""]
[null,null,"","","","","","",""]
[null,null,"","","","","","",""]
[null,null,"","","","","","",""]
[null,null,"","","","","","",""]
[null,null,"","","","","","",""]
[null,null,"","","","","","",""]
[null,null,"","","","","","",""]
[null,null,"","","","","","",""]
[null,null,"","","","","","",""]
[null,null,"","","","","","",""]
[null,null,"","","","","","",""]
[null,null,"","","","","","",""]
[null,null,"","","","","","",""]
[null,null,"","","","","","",""]
[null,null,"","","","","","",""]
[null,null,"","","","","","",""]
[null,null,"","","","","","",""]
[null,null,"","","","","","",""]
[null,null,"","","","","","",""]
[null,null,"","","","","","",""]
[null,null,"","","","","","",""]
[null,null,"","","","","","",""]
[null,null,"","","","","","",""]
[null,null,"","","","","","",""]
[null,null,"","","","","","",""]
[null,null,"","","","","","",""]
[null,null,"","","","","","",""]
[null,null,"","","","","","",""]
[null,null,"","","","","","",""]
[null,null,"","","","","","",""]
[null,null,"","","","","","",""]
[null,null,"","","","","","",""]
[null,null,"","","","","","",""]
[null,null,"","","","","","",""]
[null,null,"","","","","","",""]
[null,null,"","","","","","",""]
[null,null,"","","","","","",""]
[null,null,"","","","","","",""]
[null,null,"","","","","","",""]
[null,null,"","","","","","",""]
[null,null,"","","","","","",""]
[null,null,"","","","","","",""]
[null,null,"","","","","","",""]
[null,null,"","","","","","",""]
[null,null,"","","","","","",""]
[null,null,"","","","","","",""]
[null,null,"","","","","","",""]
[null,null,"","","","","","",""]
[null,null,"","","","","","",""]
[null,null,"","","","","","",""]
[null,null,"","","","","","",""]
[null,null,"","","","","","",""]
[null,null,"","","","","","",""]
[null,null,"","","","","","",""]
[null,null,"","","","","","",""]
[null,null,"","","","","","",""]
[null,null,"","","","","","",""]
[null,null,"","","","","","",""]
[null,null,"","","","","","",""]
[null,null,"","","","","","",""]
[null,null,"","","","","","",""]
[null,null,"","","","","","",""]
[null,null,"","","","","","",""]
[null,null,"","","","","","",""]
[null,null,"","","","","","",""]
[null,null,"","","","","","",""]
[null,null,"","","","","","",""]
[null,null,"","","","","","",""]
[null,null,"","","","","","",""]
[null,null,"","","","","","",""]
[null,null,"","","","","","",""]
[]
[null,null,"","","","","","",""]
[null,null,"","","","","","",""]
[null,null,"","","","","","",""]
[null,null,"","","","","","",""]
[null,null,"","","","","","",""]
[null,null,"","","","","","",""]
[null,null,"","","","","","",""]
[null,null,"","","","","","",""]
[null,null,"","","","","","",""]
[null,null,"","","","","","",""]
[null,null,"","","","","","",""]
[null,null,"","","","","","",""]
[null,null,"","","","","","",""]
[null,null,"","","","","","",""]
[null,null,"","","","","","",""]
[null,null,"","","","","","",""]
[null,null,"","","","","","",""]
[null,null,"","","","","","",""]
[null,null,"","","","","","",""]
[null,null,"","","","","","",""]
[null,null,"","","","","","",""]
[null,null,"","","","","","",""]
[null,null,"","","","","","",""]
[null,null,"","","","","","",""]
[null,null,"","","","","","",""]
[null,null,"","","","","","",""]
[null,null,"","","","","","",""]
[null,null,"","","","","","",""]
[null,null,"","","","","","",""]
[null,null,"","","","","","",""]
[null,null,"","","","","","",""]
[null,null,"","","","","","",""]
[null,null,"","","","","","",""]
[null,null,"","","","","","",""]
[null,null,"","","","","","",""]
[null,null,"","","","","","",""]
[null,null,"","","","","","",""]
[null,null,"","","","","","",""]
[null,null,"","","","","","",""]
[null,null,"","","","","","",""]
[null,null,"","","","","","",""]
[null,null,"","","","","","",""]
[null,null,"","","","","","",""]
[null,null,"","","","","","",""]
[null,null,"","","","","","",""]
[null,null,"","","","","","",""]
[null,null,"","","","","","",""]
[null,null,"","","","","","",""]
[null,null,"","","","","","",""]
[null,null,"","","","","","",""]
[null,null,"","","","","","",""]
[null,null,"","","","","","",""]
[null,null,"","","","","","",""]
[null,null,"","","","","","",""]
[null,null,"","","","","","",""]
[null,null,"","","","","","",""]
[null,null,"","","","","","",""]
[null,null,"","","","","","",""]
[null,null,"","","","","","",""]
[null,null,"","","","","","",""]
[null,null,"","","","","","",""]
[null,null,"","","","","","",""]
[null,null,"","","","","","",""]
[null,null,"","","","","","",""]
[null,null,"","","","","","",""]
[null,null,"","","","","","",""]
[null,null,"","","","","","",""]
[null,null,"","","","","","",""]
[null,null,"","","","","","",""]
[null,null,"","","","","","",""]
[null,null,"","","","","","",""]
[null,null,"","","","","","",""]
[null,null,"","","","","","",""]
[null,null,"","","","","","",""]
[null,null,"","","","","","",""]
[null,null,"","","","","","",""]
[null,null,"","","","","","",""]
[null,null,"","","","","","",""]
[null,null,"","","","","","",""]
[null,null,"","","","","","",""]
[null,null,"","","","","","",""]
[null,null,"","","","","","",""]
[null,null,"","","","","","",""]
[null,null,"","","","","","",""]
[null,null,"","","","","","",""]
[null,null,"","","","","","",""]
[null,null,"","","","","","",""]
[null,null,"","","","","","",""]
[null,null,"","","","","","",""]
[null,null,"","","","","","",""]
[null,null,"","","","","","",""]
[null,null,"","","","","","",""]
[null,null,"","","","","","",""]
[null,null,"","","","","","",""]
[null,null,"","","","","","",""]
[null,null,"","","","","","",""]
[null,null,"","","","","","",""]
[null,null,"","","","","","",""]
[null,null,"","","","","","",""]
[null,null,"","","","","","",""]
[null,null,"","","","","","",""]
[null,null,"","","","","","",""]
[null,null,"","","","","","",""]
[null,null,"","","","","","",""]
[null,null,"","","","","","",""]
[null,null,"","","","","","",""]
[null,null,"","","","","","",""]
[null,null,"","","","","","",""]
[null,null,"","","","","","",""]
[null,null,"","","","","","",""]
[null,null,"","","","","","",""]
[null,null,"","","","","","",""]
[null,null,"","","","","","",""]
[null,null,"","","","","","",""]
[null,null,"","","","","","",""]
[null,null,"","","","","","",""]
[null,null,"","","","","","",""]
[null,null,"","","","","","",""]
[null,null,"","","","","","",""]
[null,null,"","","","","","",""]
[null,null,"","","","","","",""]
[null,null,"","","","","","",""]
[null,null,"","","","","","",""]
[null,null,"","","","","","",""]
[null,null,"","","","","","",""]
[null,null,"","","","","","",""]
[null,null,"","","","","","",""]
[null,null,"","","","","","",""]
[null,null,"","","","","","",""]
[null,null,"","","","","","",""]
[null,null,"","","","","","",""]
[null,null,"","","","","","",""]
[null,null,"","","","","","",""]
[null,null,"","","","","","",""]
[null,null,"","","","","","",""]
[null,null,"","","","","","",""]
[null,null,"","","","","","",""]
[null,null,"","","","","","",""]
[null,null,"","","","","","",""]
[null,null,"","","","","","",""]
[null,null,"","","","","","",""]
[null,null,"","","","","","",""]
[null,null,"","","","","","",""]
[null,null,"","","","","","",""]
[null,null,"","","","","","",""]
[null,null,"","","","","","",""]
[null,null,"","","","","","",""]
[null,null,"","","","","","",""]
[null,null,"","","","","","",""]
[null,null,"","","","","","",""]
[null,null,"","","","","","",""]
[null,null,"","","","","","",""]
[null,null,"","","","","","",""]
[null,null,"","","","","","",""]
[null,null,"","","","","","",""]
[null,null,"","","","","","",""]
[null,null,"","","","","","",""]
[null,null,"","","","","","",""]
[null,null,"","","","","","",""]
[null,null,"","","","","","",""]
[null,null,"","","","","","",""]
[null,null,"","","","","","",""]
[null,null,"","","","","","",""]
[null,null,"","","","","","",""]
[null,null,"","","","","","",""]
[null,null,"","","","","","",""]
[null,null,"","","","","","",""]
[null,null,"","","","","","",""]
[null,null,"","","","","","",""]
[null,null,"","","","","","",""]
[null,null,"","","","","","",""]
[null,null,"","","","","","",""]
[null,null,"","","","","","",""]
[null,null,"","","","","","",""]
[null,null,"","","","","","",""]
[null,null,"","","","","","",""]
[null,null,"","","","","","",""]
[null,null,"","","","","","",""]
[null,null,"","","","","","",""]
[null,null,"","","","","","",""]
[null,null,"","","","","","",""]
[null,null,"","","","","","",""]
[null,null,"","","","","","",""]
[null,null,"","","","","","",""]
[null,null,"","","","","","",""]
[null,null,"","","","","","",""]
[null,null,"","","","","","",""]
[null,null,"","","","","","",""]
[null,null,"","","","","","",""]
[null,null,"","","","","","",""]
[null,null,"","","","","","",""]
[null,null,"","","","","","",""]
[null,null,"","","","","","",""]
[null,null,"","","","","","",""]
[null,null,"","","","","","",""]
[null,null,"","","","","","",""]
[null,null,"","","","","","",""]
[null,null,"","","","","","",""]
[null,null,"","","","","","",""]
[null,null,"","","","","","",""]
[null,null,"","","","","","",""]
[null,null,"","","","","","",""]
[null,null,"","","","","","",""]
[null,null,"","","","","","",""]
[null,null,"","","","","","",""]
[null,null,"","","","","","",""]
[null,null,"","","","","","",""]
[null,null,"","","","","","",""]
[null,null,"","","","","","",""]
[null,null,"","","","","","",""]
[null,null,"","","","","","",""]
[null,null,"","","","","","",""]
[null,null,"","","","","","",""]
[null,null,"","","","","","",""]
[null,null,"","","","","","",""]
[null,null,"","","","","","",""]
[null,null,"","","","","","",""]
[null,null,"","","","","","",""]
[null,null,"","","","","","",""]
[null,null,"","","","","","",""]
[null,null,"","","","","","",""]
[null,null,"","","","","","",""]
[null,null,"","","","","","",""]
[null,null,"","","","","","",""]
[null,null,"","","","","","",""]
[null,null,"","","","","","",""]
[null,null,"","","","","","",""]
[null,null,"","","","","","",""]
[null,null,"","","","","","",""]
[null,null,"","","","","","",""]
[null,null,"","","","","","",""]
[null,null,"","","","","","",""]
[null,null,"","","","","","",""]
[null,null,"","","","","","",""]
[null,null,"","","","","","",""]
[null,null,"","","","","","",""]
[null,null,"","","","","","",""]
[null,null,"","","","","","",""]

{"sheet":"4.4 Quoted services","index":20,"n_rows":483,"n_cols":12,"rows_kept":483,"cut":false,"hidden":false,"merged":[[8,2,8,11],[5,1,5,2],[8,1,9,1]]}
[null,{"$f":"INDEX(dms_Worksheet_List,MATCH(dms_Model,dms_Model_List))","v":"RECAST HISTORICAL CATEGORY ANALYSIS - CALENDAR YEARS"}]
[null,{"$f":"INDEX(dms_TradingNameFull_List,MATCH(dms_TradingName,dms_TradingName_List))","v":"Powercor Australia"}]
[null,{"$f":"dms_Header_Span","v":"2009 to 2018"}]
[null,"4.4 ANCILLARY SERVICES - QUOTED SERVICES"]
[]
[null,"There is ONE table on this worksheet. The COLUMNS  have been 'grouped' for easy navigation. See the Instructions sheet on how to group or ungroup data."]
[]
[null,"4.4.1 - COST METRICS FOR QUOTED SERVICES"]
[null,"SERVICE SUBCATEGORY","EXPENDITURE \n($0's)"]
[null,null,{"$f":"dms_y1","v":"2009"},{"$f":"dms_y2","v":2010},{"$f":"dms_y3","v":2011},{"$f":"dms_y4","v":2012},{"$f":"dms_y5","v":2013},{"$f":"dms_y6","v":2014},{"$f":"dms_y7","v":2015},{"$f":"dms_y8","v":2016},{"$f":"dms_y9","v":2017},{"$f":"dms_y10","v":2018}]
[null,"< Enter description for service subcategory >"]
[]
[]
[]
[]
[]
[]
[]
[]
[]
[]
[]
[]
[]
[]
[]
[]
[]
[]
[]
[]
[]
[]
[]
[]
[]
[]
[]
[]
[]
[]
[]
[]
[null,null,"","","","","","",""]
[null,null,"","","","","","",""]
[null,null,"","","","","","",""]
[null,null,"","","","","","",""]
[null,null,"","","","","","",""]
[null,null,"","","","","","",""]
[null,null,"","","","","","",""]
[null,null,"","","","","","",""]
[null,null,"","","","","","",""]
[null,null,"","","","","","",""]
[null,null,"","","","","","",""]
[null,null,"","","","","","",""]
[null,null,"","","","","","",""]
[null,null,"","","","","","",""]
[null,null,"","","","","","",""]
[null,null,"","","","","","",""]
[null,null,"","","","","","",""]
[null,null,"","","","","","",""]
[null,null,"","","","","","",""]
[null,null,"","","","","","",""]
[null,null,"","","","","","",""]
[null,null,"","","","","","",""]
[null,null,"","","","","","",""]
[null,null,"","","","","","",""]
[null,null,"","","","","","",""]
[null,null,"","","","","","",""]
[null,null,"","","","","","",""]
[null,null,"","","","","","",""]
[null,null,"","","","","","",""]
[null,null,"","","","","","",""]
[null,null,"","","","","","",""]
[null,null,"","","","","","",""]
[null,null,"","","","","","",""]
[null,null,"","","","","","",""]
[null,null,"","","","","","",""]
[null,null,"","","","","","",""]
[null,null,"","","","","","",""]
[null,null,"","","","","","",""]
[null,null,"","","","","","",""]
[null,null,"","","","","","",""]
[null,null,"","","","","","",""]
[null,null,"","","","","","",""]
[null,null,"","","","","","",""]
[null,null,"","","","","","",""]
[null,null,"","","","","","",""]
[null,null,"","","","","","",""]
[null,null,"","","","","","",""]
[null,null,"","","","","","",""]
[null,null,"","","","","","",""]
[null,null,"","","","","","",""]
[null,null,"","","","","","",""]
[null,null,"","","","","","",""]
[null,null,"","","","","","",""]
[null,null,"","","","","","",""]
[null,null,"","","","","","",""]
[null,null,"","","","","","",""]
[null,null,"","","","","","",""]
[null,null,"","","","","","",""]
[null,null,"","","","","","",""]
[null,null,"","","","","","",""]
[null,null,"","","","","","",""]
[null,null,"","","","","","",""]
[null,null,"","","","","","",""]
[null,null,"","","","","","",""]
[null,null,"","","","","","",""]
[null,null,"","","","","","",""]
[null,null,"","","","","","",""]
[null,null,"","","","","","",""]
[null,null,"","","","","","",""]
[null,null,"","","","","","",""]
[null,null,"","","","","","",""]
[null,null,"","","","","","",""]
[null,null,"","","","","","",""]
[null,null,"","","","","","",""]
[null,null,"","","","","","",""]
[null,null,"","","","","","",""]
[null,null,"","","","","","",""]
[null,null,"","","","","","",""]
[null,null,"","","","","","",""]
[null,null,"","","","","","",""]
[null,null,"","","","","","",""]
[null,null,"","","","","","",""]
[null,null,"","","","","","",""]
[null,null,"","","","","","",""]
[null,null,"","","","","","",""]
[null,null,"","","","","","",""]
[null,null,"","","","","","",""]
[null,null,"","","","","","",""]
[null,null,"","","","","","",""]
[null,null,"","","","","","",""]
[null,null,"","","","","","",""]
[null,null,"","","","","","",""]
[null,null,"","","","","","",""]
[null,null,"","","","","","",""]
[null,null,"","","","","","",""]
[null,null,"","","","","","",""]
[null,null,"","","","","","",""]
[null,null,"","","","","","",""]
[null,null,"","","","","","",""]
[null,null,"","","","","","",""]
[null,null,"","","","","","",""]
[null,null,"","","","","","",""]
[null,null,"","","","","","",""]
[null,null,"","","","","","",""]
[null,null,"","","","","","",""]
[null,null,"","","","","","",""]
[null,null,"","","","","","",""]
[null,null,"","","","","","",""]
[null,null,"","","","","","",""]
[null,null,"","","","","","",""]
[null,null,"","","","","","",""]
[null,null,"","","","","","",""]
[null,null,"","","","","","",""]
[null,null,"","","","","","",""]
[null,null,"","","","","","",""]
[null,null,"","","","","","",""]
[null,null,"","","","","","",""]
[null,null,"","","","","","",""]
[null,null,"","","","","","",""]
[null,null,"","","","","","",""]
[null,null,"","","","","","",""]
[null,null,"","","","","","",""]
[null,null,"","","","","","",""]
[null,null,"","","","","","",""]
[null,null,"","","","","","",""]
[null,null,"","","","","","",""]
[null,null,"","","","","","",""]
[null,null,"","","","","","",""]
[null,null,"","","","","","",""]
[null,null,"","","","","","",""]
[null,null,"","","","","","",""]
[null,null,"","","","","","",""]
[null,null,"","","","","","",""]
[null,null,"","","","","","",""]
[null,null,"","","","","","",""]
[null,null,"","","","","","",""]
[null,null,"","","","","","",""]
[null,null,"","","","","","",""]
[null,null,"","","","","","",""]
[null,null,"","","","","","",""]
[null,null,"","","","","","",""]
[null,null,"","","","","","",""]
[null,null,"","","","","","",""]
[null,null,"","","","","","",""]
[null,null,"","","","","","",""]
[null,null,"","","","","","",""]
[null,null,"","","","","","",""]
[null,null,"","","","","","",""]
[null,null,"","","","","","",""]
[null,null,"","","","","","",""]
[null,null,"","","","","","",""]
[null,null,"","","","","","",""]
[null,null,"","","","","","",""]
[null,null,"","","","","","",""]
[null,null,"","","","","","",""]
[null,null,"","","","","","",""]
[null,null,"","","","","","",""]
[null,null,"","","","","","",""]
[null,null,"","","","","","",""]
[null,null,"","","","","","",""]
[null,null,"","","","","","",""]
[null,null,"","","","","","",""]
[null,null,"","","","","","",""]
[null,null,"","","","","","",""]
[null,null,"","","","","","",""]
[null,null,"","","","","","",""]
[null,null,"","","","","","",""]
[null,null,"","","","","","",""]
[null,null,"","","","","","",""]
[null,null,"","","","","","",""]
[null,null,"","","","","","",""]
[null,null,"","","","","","",""]
[null,null,"","","","","","",""]
[null,null,"","","","","","",""]
[null,null,"","","","","","",""]
[null,null,"","","","","","",""]
[null,null,"","","","","","",""]
[null,null,"","","","","","",""]
[null,null,"","","","","","",""]
[null,null,"","","","","","",""]
[null,null,"","","","","","",""]
[null,null,"","","","","","",""]
[null,null,"","","","","","",""]
[null,null,"","","","","","",""]
[null,null,"","","","","","",""]
[null,null,"","","","","","",""]
[null,null,"","","","","","",""]
[null,null,"","","","","","",""]
[null,null,"","","","","","",""]
[null,null,"","","","","","",""]
[null,null,"","","","","","",""]
[null,null,"","","","","","",""]
[null,null,"","","","","","",""]
[null,null,"","","","","","",""]
[null,null,"","","","","","",""]
[null,null,"","","","","","",""]
[null,null,"","","","","","",""]
[null,null,"","","","","","",""]
[null,null,"","","","","","",""]
[null,null,"","","","","","",""]
[null,null,"","","","","","",""]
[null,null,"","","","","","",""]
[null,null,"","","","","","",""]
[null,null,"","","","","","",""]
[null,null,"","","","","","",""]
[null,null,"","","","","","",""]
[null,null,"","","","","","",""]
[null,null,"","","","","","",""]
[null,null,"","","","","","",""]
[null,null,"","","","","","",""]
[null,null,"","","","","","",""]
[null,null,"","","","","","",""]
[null,null,"","","","","","",""]
[null,null,"","","","","","",""]
[null,null,"","","","","","",""]
[null,null,"","","","","","",""]
[null,null,"","","","","","",""]
[null,null,"","","","","","",""]
[null,null,"","","","","","",""]
[null,null,"","","","","","",""]
[null,null,"","","","","","",""]
[null,null,"","","","","","",""]
[null,null,"","","","","","",""]
[null,null,"","","","","","",""]
[null,null,"","","","","","",""]
[null,null,"","","","","","",""]
[null,null,"","","","","","",""]
[null,null,"","","","","","",""]
[null,null,"","","","","","",""]
[null,null,"","","","","","",""]
[null,null,"","","","","","",""]
[null,null,"","","","","","",""]
[null,null,"","","","","","",""]
[null,null,"","","","","","",""]
[null,null,"","","","","","",""]
[null,null,"","","","","","",""]
[null,null,"","","","","","",""]
[null,null,"","","","","","",""]
[null,null,"","","","","","",""]
[null,null,"","","","","","",""]
[null,null,"","","","","","",""]
[null,null,"","","","","","",""]
[null,null,"","","","","","",""]
[null,null,"","","","","","",""]
[null,null,"","","","","","",""]
[null,null,"","","","","","",""]
[null,null,"","","","","","",""]
[null,null,"","","","","","",""]
[null,null,"","","","","","",""]
[null,null,"","","","","","",""]
[null,null,"","","","","","",""]
[null,null,"","","","","","",""]
[null,null,"","","","","","",""]
[null,null,"","","","","","",""]
[null,null,"","","","","","",""]
[null,null,"","","","","","",""]
[null,null,"","","","","","",""]
[null,null,"","","","","","",""]
[null,null,"","","","","","",""]
[null,null,"","","","","","",""]
[null,null,"","","","","","",""]
[null,null,"","","","","","",""]
[null,null,"","","","","","",""]
[null,null,"","","","","","",""]
[null,null,"","","","","","",""]
[null,null,"","","","","","",""]
[null,null,"","","","","","",""]
[null,null,"","","","","","",""]
[null,null,"","","","","","",""]
[null,null,"","","","","","",""]
[null,null,"","","","","","",""]
[null,null,"","","","","","",""]
[null,null,"","","","","","",""]
[null,null,"","","","","","",""]
[null,null,"","","","","","",""]
[null,null,"","","","","","",""]
[null,null,"","","","","","",""]
[null,null,"","","","","","",""]
[null,null,"","","","","","",""]
[null,null,"","","","","","",""]
[null,null,"","","","","","",""]
[null,null,"","","","","","",""]
[null,null,"","","","","","",""]
[null,null,"","","","","","",""]
[null,null,"","","","","","",""]
[null,null,"","","","","","",""]
[null,null,"","","","","","",""]
[null,null,"","","","","","",""]
[null,null,"","","","","","",""]
[null,null,"","","","","","",""]
[null,null,"","","","","","",""]
[null,null,"","","","","","",""]
[null,null,"","","","","","",""]
[null,null,"","","","","","",""]
[null,null,"","","","","","",""]
[null,null,"","","","","","",""]
[null,null,"","","","","","",""]
[null,null,"","","","","","",""]
[null,null,"","","","","","",""]
[null,null,"","","","","","",""]
[null,null,"","","","","","",""]
[null,null,"","","","","","",""]
[null,null,"","","","","","",""]
[null,null,"","","","","","",""]
[null,null,"","","","","","",""]
[null,null,"","","","","","",""]
[null,null,"","","","","","",""]
[null,null,"","","","","","",""]
[null,null,"","","","","","",""]
[null,null,"","","","","","",""]
[null,null,"","","","","","",""]
[null,null,"","","","","","",""]
[null,null,"","","","","","",""]
[null,null,"","","","","","",""]
[null,null,"","","","","","",""]
[null,null,"","","","","","",""]
[null,null,"","","","","","",""]
[null,null,"","","","","","",""]
[null,null,"","","","","","",""]
[null,null,"","","","","","",""]
[null,null,"","","","","","",""]
[null,null,"","","","","","",""]
[null,null,"","","","","","",""]
[null,null,"","","","","","",""]
[null,null,"","","","","","",""]
[null,null,"","","","","","",""]
[null,null,"","","","","","",""]
[null,null,"","","","","","",""]
[null,null,"","","","","","",""]
[null,null,"","","","","","",""]
[null,null,"","","","","","",""]
[null,null,"","","","","","",""]
[null,null,"","","","","","",""]
[null,null,"","","","","","",""]
[null,null,"","","","","","",""]
[null,null,"","","","","","",""]
[null,null,"","","","","","",""]
[null,null,"","","","","","",""]
[null,null,"","","","","","",""]
[null,null,"","","","","","",""]
[null,null,"","","","","","",""]
[null,null,"","","","","","",""]
[null,null,"","","","","","",""]
[null,null,"","","","","","",""]
[null,null,"","","","","","",""]
[null,null,"","","","","","",""]
[null,null,"","","","","","",""]
[null,null,"","","","","","",""]
[null,null,"","","","","","",""]
[null,null,"","","","","","",""]
[null,null,"","","","","","",""]
[null,null,"","","","","","",""]
[null,null,"","","","","","",""]
[null,null,"","","","","","",""]
[null,null,"","","","","","",""]
[null,null,"","","","","","",""]
[null,null,"","","","","","",""]
[null,null,"","","","","","",""]
[null,null,"","","","","","",""]
[null,null,"","","","","","",""]
[null,null,"","","","","","",""]
[null,null,"","","","","","",""]
[null,null,"","","","","","",""]
[null,null,"","","","","","",""]
[null,null,"","","","","","",""]
[null,null,"","","","","","",""]
[null,null,"","","","","","",""]
[null,null,"","","","","","",""]
[null,null,"","","","","","",""]
[null,null,"","","","","","",""]
[null,null,"","","","","","",""]
[null,null,"","","","","","",""]
[null,null,"","","","","","",""]
[null,null,"","","","","","",""]
[null,null,"","","","","","",""]
[null,null,"","","","","","",""]
[null,null,"","","","","","",""]
[null,null,"","","","","","",""]
[null,null,"","","","","","",""]
[null,null,"","","","","","",""]
[null,null,"","","","","","",""]
[null,null,"","","","","","",""]
[null,null,"","","","","","",""]
[null,null,"","","","","","",""]
[null,null,"","","","","","",""]
[null,null,"","","","","","",""]
[null,null,"","","","","","",""]
[null,null,"","","","","","",""]
[null,null,"","","","","","",""]
[null,null,"","","","","","",""]
[null,null,"","","","","","",""]
[null,null,"","","","","","",""]
[null,null,"","","","","","",""]
[null,null,"","","","","","",""]
[null,null,"","","","","","",""]
[null,null,"","","","","","",""]
[null,null,"","","","","","",""]
[null,null,"","","","","","",""]
[null,null,"","","","","","",""]
[null,null,"","","","","","",""]
[null,null,"","","","","","",""]
[null,null,"","","","","","",""]
[null,null,"","","","","","",""]
[null,null,"","","","","","",""]
[null,null,"","","","","","",""]
[null,null,"","","","","","",""]
[null,null,"","","","","","",""]
[null,null,"","","","","","",""]
[null,null,"","","","","","",""]
[null,null,"","","","","","",""]
[null,null,"","","","","","",""]
[null,null,"","","","","","",""]
[null,null,"","","","","","",""]
[null,null,"","","","","","",""]
[null,null,"","","","","","",""]
[null,null,"","","","","","",""]
[null,null,"","","","","","",""]
[null,null,"","","","","","",""]
[null,null,"","","","","","",""]
[null,null,"","","","","","",""]
[null,null,"","","","","","",""]
[null,null,"","","","","","",""]
[null,null,"","","","","","",""]
[null,null,"","","","","","",""]
[null,null,"","","","","","",""]
[null,null,"","","","","","",""]
[null,null,"","","","","","",""]
[null,null,"","","","","","",""]
[null,null,"","","","","","",""]
[null,null,"","","","","","",""]
[null,null,"","","","","","",""]
[null,null,"","","","","","",""]
[null,null,"","","","","","",""]
[null,null,"","","","","","",""]
[null,null,"","","","","","",""]
[null,null,"","","","","","",""]
[null,null,"","","","","","",""]
[null,null,"","","","","","",""]
[null,null,"","","","","","",""]
[null,null,"","","","","","",""]

{"sheet":"Amendments","index":21,"n_rows":3,"n_cols":4,"rows_kept":3,"cut":false,"hidden":false,"merged":[[1,1,1,3]]}
[null,{"$f":"CONCATENATE(\"If \",dms_TradingName,\" resubmits this Regulatory Reporting Statement, please use this worksheet to identify amendments made to data resubmitted to the AER.\")","v":"If Powercor Australia resubmits this Regulatory Reporting Statement, please use this worksheet to identify amendments made to data resubmitted to the AER."}]
[null,"NSP data amendments"]
[null,"Worksheet","Table/Cell","Reason for amendment"]